Workbook

Sheet Contest Rules
B1: Excel Datavis Contest - Chandoo.org - 2014
B3: Contest Rules
C5: Make a dashboard or set of charts.
C6: Help us understand state to state migration trends and interesting facts
C7: Use any standard Excel feature (no add-ins, no Power Pivot etc.)
C8: You can use Macros & VBA to add interaction to charts. (Code must be commented clearly and sources should be credited)
C9: You can add additional demographic or economic data as long as,
C10: You use publicly available data sources
C11: You provide links to the data sources and credit them
C12: Examples: Percaptia income, weather or living conditions
C13: You may ignore the Margin of Error data (provided in extreme right in the data tables).
C14: You may submit more than one entry. For voting & selecting winners only 1 entry from each individual is considered.
B16: Important Dates
C18: Contest start date | E18: 9th of April, 2014
C19: Last date for submission | E19: 20th of April, 2014 | G19: =DATE(2014,4,20)-TODAY() -> 0
B21: How to submit your entry?
C23: Email
C24: Send to: chandoo.d@gmail.com
C25: Subject: Datavis contest 2014
C26: Include: Your workbook, Your name, Email Address & Version of Excel used to make it
C28: Facebook
C29: Join chandoo.org fan page (Click here)
C30: Send your entry as a message (with workbook as attachment)
C31: Include: Your workbook, Your name, Email Address & Version of Excel used to make it
B33: What do you get?
C34: First prize
C35: iPad (Latest version) 16 GB
C37: Second prize
C38: iPad Mini (latest version) 16 GB
C40: Third prize (2 nos)
C41: Samsung Galaxy Tab 3
B43: How winners are selected
C44: Winners will be selected by voting and a panel of judges (to be revealed). If there is a tie, Judges' decision will be given more weightage.
B46: Fine Print
C47: Prizes will be delivered thru Amazon.com. If you are located in a country where shipping Amazon goods is not possible (or prohibitively expensive) you will be offered a choice of either getting money payment or purchase from a local website. You also agree that Chandoo.org reserves the right to showcase your files, share them, use them in courses & training programs or any other publication as deemed fit. You agree to share the copy-right of your workbook with Chandoo.org indefinetly for no compensation. Chandoo.org may get in touch with you if we need any clarifications or we are unable to use your file. Chandoo.org reserves the right to disqualify a contest entry based on sole discretion.
C48: For updates on rules, dates & policies, please click below link:
C49: http://chandoo.org/wp/2014/04/09/visualize-state-migration-contest/

Sheet Dashboard
K7: People Arrive %
K8: People Leave %
L18: 1 | O18: =IF(L18=1,"Data!AJ:AQ",IF(L18=2,"Data!AS:AZ","Data!BB:BI")) -> Data!AJ:AQ
H20: Leave From | J20: Arrive To | K20: No. of People
G22: 1 | H22: =VLOOKUP(G22,INDIRECT($O$18),5,0) -> California | J22: =VLOOKUP(G22,INDIRECT($O$18),7,0) -> Texas | K22: =VLOOKUP(G22,INDIRECT($O$18),8,0) -> 68959
G23: 2 | H23: New York | J23: =VLOOKUP(G23,INDIRECT($O$18),7,0) -> Florida | K23: =VLOOKUP(G23,INDIRECT($O$18),8,0) -> 55011
G24: 3 | H24: Florida | J24: Georgia | K24: 49901
G25: 4 | H25: California | J25: Arizona | K25: 47164
G26: 5 | H26: New Jersey | J26: Pennsylvania | K26: 42456
G27: 6 | H27: New York | J27: New Jersey | K27: 41374
G28: 7 | H28: California | J28: Washington | K28: 39468
G29: 8 | H29: Texas | J29: California | K29: 36582
G30: 9 | H30: Georgia | J30: Florida | K30: 35615
G31: 10 | H31: California | J31: Nevada | K31: 35472
G32: 11 | H32: New Jersey | J32: New York | K32: 35333
G33: 12 | H33: California | J33: Oregon | K33: 34190
G34: 13 | H34: Arizona | J34: California | K34: 33854
G35: 14 | H35: Louisiana | J35: Texas | K35: 31149
G36: 15 | H36: Florida | J36: New York | K36: 30553
F40: =pickedregion & " Region - " & pickedstate &"- " & Pickedyear -> MidWest Region - Illinois- 2012 | J40: =VLOOKUP(pickedstate, Picture_tbl, 2, FALSE) -> illinois
A41: Touch Region | B41: Touch State
A43: MidWest | B43: ='State List'!H2 -> Illinois
A44: NorthEast | B44: ='State List'!H3 -> Indiana
A45: South | B45: ='State List'!H4 -> Iowa
A46: West | B46: ='State List'!H5 -> Kansas
B47: ='State List'!H6 -> Michigan
A48: Touch Year | B48: ='State List'!H7 -> Minnesota
B49: ='State List'!H8 -> Missouri
A50: 2010 | B50: ='State List'!H9 -> Nebraska
A51: 2011 | B51: ='State List'!H10 -> North Dakota
A52: 2012 | B52: ='State List'!H11 -> Ohio
B53: ='State List'!H12 -> South Dakota
B54: ='State List'!H13 -> Wisconsin
B55: ='State List'!H14 -> 
B56: ='State List'!H15 -> 
B57: ='State List'!H16 -> 
B58: ='State List'!H17 -> 
D65: State | F65: =IFERROR(CLEAN(TRIM(VLOOKUP(D65,INDIRECT('Data-3'!$L$3),2,0))),"") -> Illinois was the 21st state in the USA; it became a state on December 3, 1818.
D66: State Abbreviation | F66: =IFERROR(CLEAN(TRIM(VLOOKUP(D66,INDIRECT('Data-3'!$L$3),2,0))),"") -> IL
D67: State Capital | F67: =IFERROR(CLEAN(TRIM(VLOOKUP(D67,INDIRECT('Data-3'!$L$3),2,0))),"") -> Springfield
D68: Largest City | F68: =IFERROR(CLEAN(TRIM(VLOOKUP(D68,INDIRECT('Data-3'!$L$3),2,0))),"") -> Chicago
D69: Area | F69: =IFERROR(CLEAN(TRIM(VLOOKUP(D69,INDIRECT('Data-3'!$L$3),2,0))),"") -> 57,918 square miles [Illinois is the 25th biggest state in the USA]
D70: Population | F70: =IFERROR(CLEAN(TRIM(VLOOKUP(D70,INDIRECT('Data-3'!$L$3),2,0))),"") -> 12,882,135 (as of 2013) [Illinois is the fifth most populous state in the USA, after California, New York, Texas, and Florida]
D71: Name for Residents | F71: =IFERROR(CLEAN(TRIM(VLOOKUP(D71,INDIRECT('Data-3'!$L$3),2,0))),"") -> Illinoisan
D72: Major Industries | F72: =IFERROR(CLEAN(TRIM(VLOOKUP(D72,INDIRECT('Data-3'!$L$3),2,0))),"") -> agriculture (corn, soybeans, wheat, oats, barley, rye, sorghum), cattle, manufacturing, mining
D73: Major Rivers | F73: =IFERROR(CLEAN(TRIM(VLOOKUP(D73,INDIRECT('Data-3'!$L$3),2,0))),"") -> Mississippi River, Ohio River, Illinois River, Wabash River
D74: Major Lakes | F74: =IFERROR(CLEAN(TRIM(VLOOKUP(D74,INDIRECT('Data-3'!$L$3),2,0))),"") -> Lake Michigan, Rend Lake
D75: Highest Point | F75: =IFERROR(CLEAN(TRIM(VLOOKUP(D75,INDIRECT('Data-3'!$L$3),2,0))),"") -> Charles Mound
D76: Number of Counties | F76: =IFERROR(CLEAN(TRIM(VLOOKUP(D76,INDIRECT('Data-3'!$L$3),2,0))),"") -> 102
D77: Bordering States | F77: =IFERROR(CLEAN(TRIM(VLOOKUP(D77,INDIRECT('Data-3'!$L$3),2,0))),"") -> Indiana, Kentucky, Missouri, Iowa, Wisconsin
D78: Bordering Bodies of Water | F78: =IFERROR(CLEAN(TRIM(VLOOKUP(D78,INDIRECT('Data-3'!$L$3),2,0))),"") -> Lake Michigan
D79: Origin of the Name | F79: =IFERROR(CLEAN(TRIM(VLOOKUP(D79,INDIRECT('Data-3'!$L$3),2,0))),"") -> Illinois comes from the word Illini, a confederation of the Cahokia, Kaskaskia, Michigamea, Moingwena, Peoria and Tamaroa Indian tribes.
D80: State Nickname | F80: =IFERROR(CLEAN(TRIM(VLOOKUP(D80,INDIRECT('Data-3'!$L$3),2,0))),"") -> Prairie State
D81: State Motto | F81: =IFERROR(CLEAN(TRIM(VLOOKUP(D81,INDIRECT('Data-3'!$L$3),2,0))),"") -> State Sovereignty, National Union
B82: Go to Top | D82: State Song | F82: =IFERROR(CLEAN(TRIM(VLOOKUP(D82,INDIRECT('Data-3'!$L$3),2,0))),"") -> "Illinois"
J83: Source: http://www.enchantedlearning.com/usa/states/
K87: Author: | L87: krishna_kumar_24_2004@yahoo.com

Sheet Data
A1: Rank | B1: Year | C1: Direction | D1: Last ResidentRegion | E1: Last Residence City | F1: Current ResidentRegion | G1: Current Resident City | H1: Total | V1: FALSE | W1: TRUE | AJ1: Rank | AK1: Year | AL1: Direction | AM1: Last ResidentRegion | AN1: Last Residence City | AO1: Current ResidentRegion | AP1: Current Resident City | AQ1: Total | AS1: Rank | AT1: Year | AU1: Direction | AV1: Last ResidentRegion | AW1: Last Residence City | AX1: Current ResidentRegion | AY1: Current Resident City | AZ1: Total | BB1: Rank | BC1: Year | BD1: Direction | BE1: Last ResidentRegion | BF1: Last Residence City | BG1: Current ResidentRegion | BH1: Current Resident City | BI1: Total
A2: =RANK(H2,$H$2:$H$2705) -> 2399 | B2: 2010 | C2: South --> South | D2: South | E2: Alabama | F2: South | G2: Alabama | H2: 0 | AJ2: =RANK(AQ2,AQ:AQ,0) -> 2399 | AK2: 2010 | AL2: South --> South | AM2: South | AN2: Alabama | AO2: South | AP2: Alabama | AQ2: 0 | AS2: =RANK(AZ2,AZ:AZ) -> 2462 | AT2: 2011 | AU2: South --> South | AV2: South | AW2: Alabama | AX2: South | AY2: Alabama | AZ2: 0 | BB2: =RANK(BI2,BI:BI,0) -> 2470 | BC2: 2012 | BD2: South --> South | BE2: South | BF2: Alabama | BG2: South | BH2: Alabama | BI2: 0
A3: =RANK(H3,$H$2:$H$2705) -> 1614 | B3: 2010 | C3: South --> West | D3: South | E3: Alabama | F3: West | G3: Alaska | H3: 477 | L3: 2012 | M3: 2011 | N3: 2010 | P3: Rank | R3: From | S3: To | V3: 2010 | W3: 2011 | X3: 2012 | AB3: Year | AC3: Migration From | AD3: Migration To | AE3: Current Residence State | AJ3: =RANK(AQ3,AQ:AQ,0) -> 1614 | AK3: 2010 | AL3: South --> West | AM3: South | AN3: Alabama | AO3: West | AP3: Alaska | AQ3: 477 | AS3: =RANK(AZ3,AZ:AZ) -> 2232 | AT3: 2011 | AU3: South --> West | AV3: South | AW3: Alabama | AX3: West | AY3: Alaska | AZ3: 93 | BB3: =RANK(BI3,BI:BI,0) -> 1166 | BC3: 2012 | BD3: South --> West | BE3: South | BF3: Alabama | BG3: West | BH3: Alaska | BI3: 1097
A4: =RANK(H4,$H$2:$H$2705) -> 1686 | B4: 2010 | C4: South --> West | D4: South | E4: Alabama | F4: West | G4: Arizona | H4: 416 | K4: Midwest --> Northeast | L4: =SUMIFS($H:$H,$C:$C,$K4,$B:$B,L$3) -> 88259 | M4: 100026 | N4: 104217 | O4: =SUM(L4:N4) -> 292502 | P4: =IF(AND($V$1=TRUE,$W$1=TRUE),RANK(O4,$O$4:$O$19,0),IF($W$1=TRUE,RANK(O4,$O$4:$O$15,0),"")) -> 12 | R4: South | S4: South | T4: =ROWS(($T$4:T4)) -> 1 | U4: =IFERROR(INDEX(K$4:K$103,MATCH($T4:$T103,$P$4:$P$103,0)),"") -> Midwest --> South | V4: =IFERROR(VLOOKUP(U4,K:L,2,0),"") -> 517733 | W4: =IFERROR(VLOOKUP(U4,K:M,3,0),"") -> 521969 | X4: =IFERROR(VLOOKUP(U4,K:N,4,0),"") -> 507139 | AA4: 1 | AJ4: 1686 | AK4: 2010 | AL4: South --> West | AM4: South | AN4: Alabama | AO4: West | AP4: Arizona | AQ4: 416 | AS4: 1343 | AT4: 2011 | AU4: South --> West | AV4: South | AW4: Alabama | AX4: West | AY4: Arizona | AZ4: 833 | BB4: 1034 | BC4: 2012 | BD4: South --> West | BE4: South | BF4: Alabama | BG4: West | BH4: Arizona | BI4: 1331
A5: 998 | B5: 2010 | C5: South --> South | D5: South | E5: Alabama | F5: South | G5: Arkansas | H5: 1405 | K5: South --> West | L5: 433726 | M5: 417401 | N5: 423274 | O5: =SUM(L5:N5) -> 1274401 | P5: 4 | R5: West | S5: West | T5: =ROWS(($T$4:T5)) -> 2 | U5: =IFERROR(INDEX(K$4:K$103,MATCH($T5:$T104,$P$4:$P$103,0)),"") -> Northeast --> South | V5: =IFERROR(VLOOKUP(U5,K:L,2,0),"") -> 527585 | W5: =IFERROR(VLOOKUP(U5,K:M,3,0),"") -> 517863 | X5: =IFERROR(VLOOKUP(U5,K:N,4,0),"") -> 473931 | AA5: 2 | AJ5: 998 | AK5: 2010 | AL5: South --> South | AM5: South | AN5: Alabama | AO5: South | AP5: Arkansas | AQ5: 1405 | AS5: 1424 | AT5: 2011 | AU5: South --> South | AV5: South | AW5: Alabama | AX5: South | AY5: Arkansas | AZ5: 691 | BB5: 1761 | BC5: 2012 | BD5: South --> South | BE5: South | BF5: Alabama | BG5: South | BH5: Arkansas | BI5: 374
A6: 519 | B6: 2010 | C6: South --> West | D6: South | E6: Alabama | F6: West | G6: California | H6: 3364 | K6: South --> Northeast | L6: 308193 | M6: 322822 | N6: 313662 | O6: 944677 | P6: 6 | R6: Midwest | S6: Midwest | T6: =ROWS(($T$4:T6)) -> 3 | U6: =IFERROR(INDEX(K$4:K$103,MATCH($T6:$T105,$P$4:$P$103,0)),"") -> West --> South | V6: =IFERROR(VLOOKUP(U6,K:L,2,0),"") -> 497604 | W6: =IFERROR(VLOOKUP(U6,K:M,3,0),"") -> 496085 | X6: =IFERROR(VLOOKUP(U6,K:N,4,0),"") -> 478301 | AA6: 3 | AJ6: 519 | AK6: 2010 | AL6: South --> West | AM6: South | AN6: Alabama | AO6: West | AP6: California | AQ6: 3364 | AS6: 775 | AT6: 2011 | AU6: South --> West | AV6: South | AW6: Alabama | AX6: West | AY6: California | AZ6: 2087 | BB6: 693 | BC6: 2012 | BD6: South --> West | BE6: South | BF6: Alabama | BG6: West | BH6: California | BI6: 2509
A7: 1225 | B7: 2010 | C7: South --> West | D7: South | E7: Alabama | F7: West | G7: Colorado | H7: 954 | K7: South --> Midwest | L7: 418313 | M7: 398829 | N7: 371705 | O7: 1188847 | P7: 5 | R7: Midwest | S7: South | T7: =ROWS(($T$4:T7)) -> 4 | U7: =IFERROR(INDEX(K$4:K$103,MATCH($T7:$T106,$P$4:$P$103,0)),"") -> South --> West | V7: =IFERROR(VLOOKUP(U7,K:L,2,0),"") -> 433726 | W7: =IFERROR(VLOOKUP(U7,K:M,3,0),"") -> 417401 | X7: =IFERROR(VLOOKUP(U7,K:N,4,0),"") -> 423274 | AA7: 4 | AJ7: 1225 | AK7: 2010 | AL7: South --> West | AM7: South | AN7: Alabama | AO7: West | AP7: Colorado | AQ7: 954 | AS7: 713 | AT7: 2011 | AU7: South --> West | AV7: South | AW7: Alabama | AX7: West | AY7: Colorado | AZ7: 2340 | BB7: 577 | BC7: 2012 | BD7: South --> West | BE7: South | BF7: Alabama | BG7: West | BH7: Colorado | BI7: 3108
A8: 1250 | B8: 2010 | C8: South --> Northeast | D8: South | E8: Alabama | F8: Northeast | G8: Connecticut | H8: 896 | K8: West --> South | L8: 497604 | M8: 496085 | N8: 478301 | O8: 1471990 | P8: 3 | R8: Northeast | S8: South | T8: =ROWS(($T$4:T8)) -> 5 | U8: =IFERROR(INDEX(K$4:K$103,MATCH($T8:$T107,$P$4:$P$103,0)),"") -> South --> Midwest | V8: =IFERROR(VLOOKUP(U8,K:L,2,0),"") -> 418313 | W8: =IFERROR(VLOOKUP(U8,K:M,3,0),"") -> 398829 | X8: =IFERROR(VLOOKUP(U8,K:N,4,0),"") -> 371705 | AA8: 5 | AJ8: 1250 | AK8: 2010 | AL8: South --> Northeast | AM8: South | AN8: Alabama | AO8: Northeast | AP8: Connecticut | AQ8: 896 | AS8: 2220 | AT8: 2011 | AU8: South --> Northeast | AV8: South | AW8: Alabama | AX8: Northeast | AY8: Connecticut | AZ8: 101 | BB8: 2369 | BC8: 2012 | BD8: South --> Northeast | BE8: South | BF8: Alabama | BG8: Northeast | BH8: Connecticut | BI8: 46
A9: 2129 | B9: 2010 | C9: South --> South | D9: South | E9: Alabama | F9: South | G9: Delaware | H9: 128 | K9: West --> Northeast | L9: 125614 | M9: 134760 | N9: 142177 | O9: 402551 | P9: 10 | R9: West | S9: South | T9: =ROWS(($T$4:T9)) -> 6 | U9: South --> Northeast | V9: 308193 | W9: 322822 | X9: 313662 | AA9: 5 | AJ9: 2129 | AK9: 2010 | AL9: South --> South | AM9: South | AN9: Alabama | AO9: South | AP9: Delaware | AQ9: 128 | AS9: 2262 | AT9: 2011 | AU9: South --> South | AV9: South | AW9: Alabama | AX9: South | AY9: Delaware | AZ9: 81 | BB9: 2193 | BC9: 2012 | BD9: South --> South | BE9: South | BF9: Alabama | BG9: South | BH9: Delaware | BI9: 119
A10: 1758 | B10: 2010 | C10: South --> South | D10: South | E10: Alabama | F10: South | G10: District of Columbia | H10: 360 | K10: West --> Midwest | L10: 241253 | M10: 248283 | N10: 219162 | O10: 708698 | P10: 8 | R10: Northeast | S10: Northeast | T10: =ROWS(($T$4:T10)) -> 7 | U10: Midwest --> West | V10: 270028 | W10: 267785 | X10: 247763 | AA10: 6 | AJ10: 1758 | AK10: 2010 | AL10: South --> South | AM10: South | AN10: Alabama | AO10: South | AP10: District of Columbia | AQ10: 360 | AS10: 2432 | AT10: 2011 | AU10: South --> South | AV10: South | AW10: Alabama | AX10: South | AY10: District of Columbia | AZ10: 13 | BB10: 2288 | BC10: 2012 | BD10: South --> South | BE10: South | BF10: Alabama | BG10: South | BH10: District of Columbia | BI10: 79
A11: 83 | B11: 2010 | C11: South --> South | D11: South | E11: Alabama | F11: South | G11: Florida | H11: 15830 | K11: Northeast --> South | L11: 527585 | M11: 517863 | N11: 473931 | O11: 1519379 | P11: 2 | R11: South | S11: West | T11: =ROWS(($T$4:T11)) -> 8 | U11: West --> Midwest | V11: 241253 | W11: 248283 | X11: 219162 | AA11: 7 | AJ11: 83 | AK11: 2010 | AL11: South --> South | AM11: South | AN11: Alabama | AO11: South | AP11: Florida | AQ11: 15830 | AS11: 126 | AT11: 2011 | AU11: South --> South | AV11: South | AW11: Alabama | AX11: South | AY11: Florida | AZ11: 12635 | BB11: 69 | BC11: 2012 | BD11: South --> South | BE11: South | BF11: Alabama | BG11: South | BH11: Florida | BI11: 18599
A12: 101 | B12: 2010 | C12: South --> South | D12: South | E12: Alabama | F12: South | G12: Georgia | H12: 13840 | K12: Northeast --> West | L12: 181111 | M12: 146015 | N12: 142053 | O12: 469179 | P12: 9 | R12: South | S12: Midwest | T12: =ROWS(($T$4:T12)) -> 9 | U12: Northeast --> West | V12: 181111 | W12: 146015 | X12: 142053 | AA12: 8 | AJ12: 101 | AK12: 2010 | AL12: South --> South | AM12: South | AN12: Alabama | AO12: South | AP12: Georgia | AQ12: 13840 | AS12: 67 | AT12: 2011 | AU12: South --> South | AV12: South | AW12: Alabama | AX12: South | AY12: Georgia | AZ12: 18799 | BB12: 112 | BC12: 2012 | BD12: South --> South | BE12: South | BF12: Alabama | BG12: South | BH12: Georgia | BI12: 13864
A13: 1351 | B13: 2010 | C13: South --> West | D13: South | E13: Alabama | F13: West | G13: Hawaii | H13: 749 | K13: Midwest --> West | L13: 270028 | M13: 267785 | N13: 247763 | O13: 785576 | P13: 7 | R13: South | S13: Northeast | T13: =ROWS(($T$4:T13)) -> 10 | U13: West --> Northeast | V13: 125614 | W13: 134760 | X13: 142177 | AA13: 9 | AJ13: 1351 | AK13: 2010 | AL13: South --> West | AM13: South | AN13: Alabama | AO13: West | AP13: Hawaii | AQ13: 749 | AS13: 1085 | AT13: 2011 | AU13: South --> West | AV13: South | AW13: Alabama | AX13: West | AY13: Hawaii | AZ13: 1268 | BB13: 1520 | BC13: 2012 | BD13: South --> West | BE13: South | BF13: Alabama | BG13: West | BH13: Hawaii | BI13: 608
A14: 1743 | B14: 2010 | C14: South --> West | D14: South | E14: Alabama | F14: West | G14: Idaho | H14: 376 | K14: Northeast --> Midwest | L14: 113049 | M14: 119908 | N14: 104730 | O14: 337687 | P14: 11 | R14: Midwest | S14: West | T14: =ROWS(($T$4:T14)) -> 11 | U14: Northeast --> Midwest | V14: 113049 | W14: 119908 | X14: 104730 | AA14: 10 | AJ14: 1743 | AK14: 2010 | AL14: South --> West | AM14: South | AN14: Alabama | AO14: West | AP14: Idaho | AQ14: 376 | AS14: 1913 | AT14: 2011 | AU14: South --> West | AV14: South | AW14: Alabama | AX14: West | AY14: Idaho | AZ14: 263 | BB14: 1553 | BC14: 2012 | BD14: South --> West | BE14: South | BF14: Alabama | BG14: West | BH14: Idaho | BI14: 575
A15: 1002 | B15: 2010 | C15: South --> Midwest | D15: South | E15: Alabama | F15: Midwest | G15: Illinois | H15: 1397 | K15: Midwest --> South | L15: 517733 | M15: 521969 | N15: 507139 | O15: 1546841 | P15: 1 | R15: West | S15: Midwest | T15: =ROWS(($T$4:T15)) -> 12 | U15: Midwest --> Northeast | V15: 88259 | W15: 100026 | X15: 104217 | AJ15: 1002 | AK15: 2010 | AL15: South --> Midwest | AM15: South | AN15: Alabama | AO15: Midwest | AP15: Illinois | AQ15: 1397 | AS15: 622 | AT15: 2011 | AU15: South --> Midwest | AV15: South | AW15: Alabama | AX15: Midwest | AY15: Illinois | AZ15: 2823 | BB15: 1316 | BC15: 2012 | BD15: South --> Midwest | BE15: South | BF15: Alabama | BG15: Midwest | BH15: Illinois | BI15: 883
A16: 962 | B16: 2010 | C16: South --> Midwest | D16: South | E16: Alabama | F16: Midwest | G16: Indiana | H16: 1502 | K16: West --> West | L16: 872095 | M16: 879413 | N16: 817814 | O16: 2569322 | P16: =IF(AND($V$1=TRUE,$W$1=TRUE),RANK(O16,$O$4:$O$19,0),IF($V$1=TRUE,RANK(O16,$O$16:$O$19,0),"")) ->  | R16: Northeast | S16: West | T16: =ROWS(($T$4:T16)) -> 13 | AJ16: 962 | AK16: 2010 | AL16: South --> Midwest | AM16: South | AN16: Alabama | AO16: Midwest | AP16: Indiana | AQ16: 1502 | AS16: 950 | AT16: 2011 | AU16: South --> Midwest | AV16: South | AW16: Alabama | AX16: Midwest | AY16: Indiana | AZ16: 1562 | BB16: 908 | BC16: 2012 | BD16: South --> Midwest | BE16: South | BF16: Alabama | BG16: Midwest | BH16: Indiana | BI16: 1625
A17: 1796 | B17: 2010 | C17: South --> Midwest | D17: South | E17: Alabama | F17: Midwest | G17: Iowa | H17: 330 | K17: Midwest --> Midwest | L17: 542694 | M17: 541465 | N17: 535286 | O17: 1619445 | P17: =IF(AND($V$1=TRUE,$W$1=TRUE),RANK(O17,$O$4:$O$19,0),IF($V$1=TRUE,RANK(O17,$O$16:$O$19,0),"")) ->  | R17: West | S17: Northeast | T17: =ROWS(($T$4:T17)) -> 14 | AJ17: 1796 | AK17: 2010 | AL17: South --> Midwest | AM17: South | AN17: Alabama | AO17: Midwest | AP17: Iowa | AQ17: 330 | AS17: 2017 | AT17: 2011 | AU17: South --> Midwest | AV17: South | AW17: Alabama | AX17: Midwest | AY17: Iowa | AZ17: 207 | BB17: 1621 | BC17: 2012 | BD17: South --> Midwest | BE17: South | BF17: Alabama | BG17: Midwest | BH17: Iowa | BI17: 503
A18: 2349 | B18: 2010 | C18: South --> Midwest | D18: South | E18: Alabama | F18: Midwest | G18: Kansas | H18: 44 | K18: South --> South | L18: 1529851 | M18: 1498030 | N18: 1488977 | O18: 4516858 | P18: =IF(AND($V$1=TRUE,$W$1=TRUE),RANK(O18,$O$4:$O$19,0),IF($V$1=TRUE,RANK(O18,$O$16:$O$19,0),"")) ->  | R18: Northeast | S18: Midwest | T18: =ROWS(($T$4:T18)) -> 15 | AJ18: 2349 | AK18: 2010 | AL18: South --> Midwest | AM18: South | AN18: Alabama | AO18: Midwest | AP18: Kansas | AQ18: 44 | AS18: 1670 | AT18: 2011 | AU18: South --> Midwest | AV18: South | AW18: Alabama | AX18: Midwest | AY18: Kansas | AZ18: 434 | BB18: 1332 | BC18: 2012 | BD18: South --> Midwest | BE18: South | BF18: Alabama | BG18: Midwest | BH18: Kansas | BI18: 853
A19: 738 | B19: 2010 | C19: South --> South | D19: South | E19: Alabama | F19: South | G19: Kentucky | H19: 2161 | K19: Northeast --> Northeast | L19: 497781 | M19: 475629 | N19: 464655 | O19: 1438065 | P19: =IF(AND($V$1=TRUE,$W$1=TRUE),RANK(O19,$O$4:$O$19,0),IF($V$1=TRUE,RANK(O19,$O$16:$O$19,0),"")) ->  | R19: Midwest | S19: Northeast | T19: =ROWS(($T$4:T19)) -> 16 | AJ19: 738 | AK19: 2010 | AL19: South --> South | AM19: South | AN19: Alabama | AO19: South | AP19: Kentucky | AQ19: 2161 | AS19: 1270 | AT19: 2011 | AU19: South --> South | AV19: South | AW19: Alabama | AX19: South | AY19: Kentucky | AZ19: 925 | BB19: 449 | BC19: 2012 | BD19: South --> South | BE19: South | BF19: Alabama | BG19: South | BH19: Kentucky | BI19: 4137
A20: 316 | B20: 2010 | C20: South --> South | D20: South | E20: Alabama | F20: South | G20: Louisiana | H20: 5740 | AJ20: 316 | AK20: 2010 | AL20: South --> South | AM20: South | AN20: Alabama | AO20: South | AP20: Louisiana | AQ20: 5740 | AS20: 584 | AT20: 2011 | AU20: South --> South | AV20: South | AW20: Alabama | AX20: South | AY20: Louisiana | AZ20: 3065 | BB20: 733 | BC20: 2012 | BD20: South --> South | BE20: South | BF20: Alabama | BG20: South | BH20: Louisiana | BI20: 2329
A21: 1699 | B21: 2010 | C21: South --> Northeast | D21: South | E21: Alabama | F21: Northeast | G21: Maine | H21: 402 | AJ21: 1699 | AK21: 2010 | AL21: South --> Northeast | AM21: South | AN21: Alabama | AO21: Northeast | AP21: Maine | AQ21: 402 | AS21: 1469 | AT21: 2011 | AU21: South --> Northeast | AV21: South | AW21: Alabama | AX21: Northeast | AY21: Maine | AZ21: 634 | BB21: 2172 | BC21: 2012 | BD21: South --> Northeast | BE21: South | BF21: Alabama | BG21: Northeast | BH21: Maine | BI21: 129
A22: 900 | B22: 2010 | C22: South --> South | D22: South | E22: Alabama | F22: South | G22: Maryland | H22: 1641 | AJ22: 900 | AK22: 2010 | AL22: South --> South | AM22: South | AN22: Alabama | AO22: South | AP22: Maryland | AQ22: 1641 | AS22: 1975 | AT22: 2011 | AU22: South --> South | AV22: South | AW22: Alabama | AX22: South | AY22: Maryland | AZ22: 228 | BB22: 1068 | BC22: 2012 | BD22: South --> South | BE22: South | BF22: Alabama | BG22: South | BH22: Maryland | BI22: 1261
A23: 1503 | B23: 2010 | C23: South --> Northeast | D23: South | E23: Alabama | F23: Northeast | G23: Massachusetts | H23: 583 | AJ23: 1503 | AK23: 2010 | AL23: South --> Northeast | AM23: South | AN23: Alabama | AO23: Northeast | AP23: Massachusetts | AQ23: 583 | AS23: 1118 | AT23: 2011 | AU23: South --> Northeast | AV23: South | AW23: Alabama | AX23: Northeast | AY23: Massachusetts | AZ23: 1201 | BB23: 1496 | BC23: 2012 | BD23: South --> Northeast | BE23: South | BF23: Alabama | BG23: Northeast | BH23: Massachusetts | BI23: 636
A24: 680 | B24: 2010 | C24: South --> Midwest | D24: South | E24: Alabama | F24: Midwest | G24: Michigan | H24: 2403 | AJ24: 680 | AK24: 2010 | AL24: South --> Midwest | AM24: South | AN24: Alabama | AO24: Midwest | AP24: Michigan | AQ24: 2403 | AS24: 523 | AT24: 2011 | AU24: South --> Midwest | AV24: South | AW24: Alabama | AX24: Midwest | AY24: Michigan | AZ24: 3527 | BB24: 732 | BC24: 2012 | BD24: South --> Midwest | BE24: South | BF24: Alabama | BG24: Midwest | BH24: Michigan | BI24: 2341
A25: 1884 | B25: 2010 | C25: South --> Midwest | D25: South | E25: Alabama | F25: Midwest | G25: Minnesota | H25: 266 | AJ25: 1884 | AK25: 2010 | AL25: South --> Midwest | AM25: South | AN25: Alabama | AO25: Midwest | AP25: Minnesota | AQ25: 266 | AS25: 2172 | AT25: 2011 | AU25: South --> Midwest | AV25: South | AW25: Alabama | AX25: Midwest | AY25: Minnesota | AZ25: 123 | BB25: 1049 | BC25: 2012 | BD25: South --> Midwest | BE25: South | BF25: Alabama | BG25: Midwest | BH25: Minnesota | BI25: 1299
A26: 211 | B26: 2010 | C26: South --> South | D26: South | E26: Alabama | F26: South | G26: Mississippi | H26: 8306 | AJ26: 211 | AK26: 2010 | AL26: South --> South | AM26: South | AN26: Alabama | AO26: South | AP26: Mississippi | AQ26: 8306 | AS26: 197 | AT26: 2011 | AU26: South --> South | AV26: South | AW26: Alabama | AX26: South | AY26: Mississippi | AZ26: 8922 | BB26: 367 | BC26: 2012 | BD26: South --> South | BE26: South | BF26: Alabama | BG26: South | BH26: Mississippi | BI26: 5141
A27: 1302 | B27: 2010 | C27: South --> Midwest | D27: South | E27: Alabama | F27: Midwest | G27: Missouri | H27: 819 | AJ27: 1302 | AK27: 2010 | AL27: South --> Midwest | AM27: South | AN27: Alabama | AO27: Midwest | AP27: Missouri | AQ27: 819 | AS27: 1018 | AT27: 2011 | AU27: South --> Midwest | AV27: South | AW27: Alabama | AX27: Midwest | AY27: Missouri | AZ27: 1395 | BB27: 1032 | BC27: 2012 | BD27: South --> Midwest | BE27: South | BF27: Alabama | BG27: Midwest | BH27: Missouri | BI27: 1333
A28: 1975 | B28: 2010 | C28: South --> West | D28: South | E28: Alabama | F28: West | G28: Montana | H28: 212 | AJ28: 1975 | AK28: 2010 | AL28: South --> West | AM28: South | AN28: Alabama | AO28: West | AP28: Montana | AQ28: 212 | AS28: 1654 | AT28: 2011 | AU28: South --> West | AV28: South | AW28: Alabama | AX28: West | AY28: Montana | AZ28: 449 | BB28: 2414 | BC28: 2012 | BD28: South --> West | BE28: South | BF28: Alabama | BG28: West | BH28: Montana | BI28: 31
A29: 1945 | B29: 2010 | C29: South --> Midwest | D29: South | E29: Alabama | F29: Midwest | G29: Nebraska | H29: 232 | AJ29: 1945 | AK29: 2010 | AL29: South --> Midwest | AM29: South | AN29: Alabama | AO29: Midwest | AP29: Nebraska | AQ29: 232 | AS29: 2085 | AT29: 2011 | AU29: South --> Midwest | AV29: South | AW29: Alabama | AX29: Midwest | AY29: Nebraska | AZ29: 169 | BB29: 1949 | BC29: 2012 | BD29: South --> Midwest | BE29: South | BF29: Alabama | BG29: Midwest | BH29: Nebraska | BI29: 245
A30: 2083 | B30: 2010 | C30: South --> West | D30: South | E30: Alabama | F30: West | G30: Nevada | H30: 150 | AJ30: 2083 | AK30: 2010 | AL30: South --> West | AM30: South | AN30: Alabama | AO30: West | AP30: Nevada | AQ30: 150 | AS30: 1883 | AT30: 2011 | AU30: South --> West | AV30: South | AW30: Alabama | AX30: West | AY30: Nevada | AZ30: 280 | BB30: 1400 | BC30: 2012 | BD30: South --> West | BE30: South | BF30: Alabama | BG30: West | BH30: Nevada | BI30: 761
A31: 2079 | B31: 2010 | C31: South --> Northeast | D31: South | E31: Alabama | F31: Northeast | G31: New Hampshire | H31: 152 | AJ31: 2079 | AK31: 2010 | AL31: South --> Northeast | AM31: South | AN31: Alabama | AO31: Northeast | AP31: New Hampshire | AQ31: 152 | AS31: 2043 | AT31: 2011 | AU31: South --> Northeast | AV31: South | AW31: Alabama | AX31: Northeast | AY31: New Hampshire | AZ31: 193 | BB31: 2470 | BC31: 2012 | BD31: South --> Northeast | BE31: South | BF31: Alabama | BG31: Northeast | BH31: New Hampshire | BI31: 0
A32: 1471 | B32: 2010 | C32: South --> Northeast | D32: South | E32: Alabama | F32: Northeast | G32: New Jersey | H32: 616 | AJ32: 1471 | AK32: 2010 | AL32: South --> Northeast | AM32: South | AN32: Alabama | AO32: Northeast | AP32: New Jersey | AQ32: 616 | AS32: 2048 | AT32: 2011 | AU32: South --> Northeast | AV32: South | AW32: Alabama | AX32: Northeast | AY32: New Jersey | AZ32: 189 | BB32: 1388 | BC32: 2012 | BD32: South --> Northeast | BE32: South | BF32: Alabama | BG32: Northeast | BH32: New Jersey | BI32: 779
A33: 1347 | B33: 2010 | C33: South --> West | D33: South | E33: Alabama | F33: West | G33: New Mexico | H33: 751 | AJ33: 1347 | AK33: 2010 | AL33: South --> West | AM33: South | AN33: Alabama | AO33: West | AP33: New Mexico | AQ33: 751 | AS33: 1702 | AT33: 2011 | AU33: South --> West | AV33: South | AW33: Alabama | AX33: West | AY33: New Mexico | AZ33: 410 | BB33: 1376 | BC33: 2012 | BD33: South --> West | BE33: South | BF33: Alabama | BG33: West | BH33: New Mexico | BI33: 787
A34: 1048 | B34: 2010 | C34: South --> Northeast | D34: South | E34: Alabama | F34: Northeast | G34: New York | H34: 1310 | AJ34: 1048 | AK34: 2010 | AL34: South --> Northeast | AM34: South | AN34: Alabama | AO34: Northeast | AP34: New York | AQ34: 1310 | AS34: 860 | AT34: 2011 | AU34: South --> Northeast | AV34: South | AW34: Alabama | AX34: Northeast | AY34: New York | AZ34: 1812 | BB34: 1013 | BC34: 2012 | BD34: South --> Northeast | BE34: South | BF34: Alabama | BG34: Northeast | BH34: New York | BI34: 1364
A35: 560 | B35: 2010 | C35: South --> South | D35: South | E35: Alabama | F35: South | G35: North Carolina | H35: 3044 | AJ35: 560 | AK35: 2010 | AL35: South --> South | AM35: South | AN35: Alabama | AO35: South | AP35: North Carolina | AQ35: 3044 | AS35: 346 | AT35: 2011 | AU35: South --> South | AV35: South | AW35: Alabama | AX35: South | AY35: North Carolina | AZ35: 5420 | BB35: 431 | BC35: 2012 | BD35: South --> South | BE35: South | BF35: Alabama | BG35: South | BH35: North Carolina | BI35: 4329
A36: 2170 | B36: 2010 | C36: South --> Midwest | D36: South | E36: Alabama | F36: Midwest | G36: North Dakota | H36: 109 | AJ36: 2170 | AK36: 2010 | AL36: South --> Midwest | AM36: South | AN36: Alabama | AO36: Midwest | AP36: North Dakota | AQ36: 109 | AS36: 2227 | AT36: 2011 | AU36: South --> Midwest | AV36: South | AW36: Alabama | AX36: Midwest | AY36: North Dakota | AZ36: 97 | BB36: 2276 | BC36: 2012 | BD36: South --> Midwest | BE36: South | BF36: Alabama | BG36: Midwest | BH36: North Dakota | BI36: 83
A37: 1056 | B37: 2010 | C37: South --> Midwest | D37: South | E37: Alabama | F37: Midwest | G37: Ohio | H37: 1289 | AJ37: 1056 | AK37: 2010 | AL37: South --> Midwest | AM37: South | AN37: Alabama | AO37: Midwest | AP37: Ohio | AQ37: 1289 | AS37: 948 | AT37: 2011 | AU37: South --> Midwest | AV37: South | AW37: Alabama | AX37: Midwest | AY37: Ohio | AZ37: 1567 | BB37: 491 | BC37: 2012 | BD37: South --> Midwest | BE37: South | BF37: Alabama | BG37: Midwest | BH37: Ohio | BI37: 3705
A38: 914 | B38: 2010 | C38: South --> South | D38: South | E38: Alabama | F38: South | G38: Oklahoma | H38: 1612 | AJ38: 914 | AK38: 2010 | AL38: South --> South | AM38: South | AN38: Alabama | AO38: South | AP38: Oklahoma | AQ38: 1612 | AS38: 1511 | AT38: 2011 | AU38: South --> South | AV38: South | AW38: Alabama | AX38: South | AY38: Oklahoma | AZ38: 591 | BB38: 1210 | BC38: 2012 | BD38: South --> South | BE38: South | BF38: Alabama | BG38: South | BH38: Oklahoma | BI38: 1030
A39: 1703 | B39: 2010 | C39: South --> West | D39: South | E39: Alabama | F39: West | G39: Oregon | H39: 400 | AJ39: 1703 | AK39: 2010 | AL39: South --> West | AM39: South | AN39: Alabama | AO39: West | AP39: Oregon | AQ39: 400 | AS39: 1385 | AT39: 2011 | AU39: South --> West | AV39: South | AW39: Alabama | AX39: West | AY39: Oregon | AZ39: 758 | BB39: 1762 | BC39: 2012 | BD39: South --> West | BE39: South | BF39: Alabama | BG39: West | BH39: Oregon | BI39: 373
A40: 1749 | B40: 2010 | C40: South --> Northeast | D40: South | E40: Alabama | F40: Northeast | G40: Pennsylvania | H40: 369 | AJ40: 1749 | AK40: 2010 | AL40: South --> Northeast | AM40: South | AN40: Alabama | AO40: Northeast | AP40: Pennsylvania | AQ40: 369 | AS40: 1055 | AT40: 2011 | AU40: South --> Northeast | AV40: South | AW40: Alabama | AX40: Northeast | AY40: Pennsylvania | AZ40: 1332 | BB40: 819 | BC40: 2012 | BD40: South --> Northeast | BE40: South | BF40: Alabama | BG40: Northeast | BH40: Pennsylvania | BI40: 1926
A41: 2117 | B41: 2010 | C41: South --> Northeast | D41: South | E41: Alabama | F41: Northeast | G41: Rhode Island | H41: 136 | AJ41: 2117 | AK41: 2010 | AL41: South --> Northeast | AM41: South | AN41: Alabama | AO41: Northeast | AP41: Rhode Island | AQ41: 136 | AS41: 2462 | AT41: 2011 | AU41: South --> Northeast | AV41: South | AW41: Alabama | AX41: Northeast | AY41: Rhode Island | AZ41: 0 | BB41: 2436 | BC41: 2012 | BD41: South --> Northeast | BE41: South | BF41: Alabama | BG41: Northeast | BH41: Rhode Island | BI41: 20
A42: 858 | B42: 2010 | C42: South --> South | D42: South | E42: Alabama | F42: South | G42: South Carolina | H42: 1741 | AJ42: 858 | AK42: 2010 | AL42: South --> South | AM42: South | AN42: Alabama | AO42: South | AP42: South Carolina | AQ42: 1741 | AS42: 594 | AT42: 2011 | AU42: South --> South | AV42: South | AW42: Alabama | AX42: South | AY42: South Carolina | AZ42: 2999 | BB42: 896 | BC42: 2012 | BD42: South --> South | BE42: South | BF42: Alabama | BG42: South | BH42: South Carolina | BI42: 1665
A43: 1801 | B43: 2010 | C43: South --> Midwest | D43: South | E43: Alabama | F43: Midwest | G43: South Dakota | H43: 325 | AJ43: 1801 | AK43: 2010 | AL43: South --> Midwest | AM43: South | AN43: Alabama | AO43: Midwest | AP43: South Dakota | AQ43: 325 | AS43: 2462 | AT43: 2011 | AU43: South --> Midwest | AV43: South | AW43: Alabama | AX43: Midwest | AY43: South Dakota | AZ43: 0 | BB43: 2470 | BC43: 2012 | BD43: South --> Midwest | BE43: South | BF43: Alabama | BG43: Midwest | BH43: South Dakota | BI43: 0
A44: 190 | B44: 2010 | C44: South --> South | D44: South | E44: Alabama | F44: South | G44: Tennessee | H44: 8897 | AJ44: 190 | AK44: 2010 | AL44: South --> South | AM44: South | AN44: Alabama | AO44: South | AP44: Tennessee | AQ44: 8897 | AS44: 186 | AT44: 2011 | AU44: South --> South | AV44: South | AW44: Alabama | AX44: South | AY44: Tennessee | AZ44: 9326 | BB44: 134 | BC44: 2012 | BD44: South --> South | BE44: South | BF44: Alabama | BG44: South | BH44: Tennessee | BI44: 12116
A45: 201 | B45: 2010 | C45: South --> South | D45: South | E45: Alabama | F45: South | G45: Texas | H45: 8636 | AJ45: 201 | AK45: 2010 | AL45: South --> South | AM45: South | AN45: Alabama | AO45: South | AP45: Texas | AQ45: 8636 | AS45: 202 | AT45: 2011 | AU45: South --> South | AV45: South | AW45: Alabama | AX45: South | AY45: Texas | AZ45: 8747 | BB45: 182 | BC45: 2012 | BD45: South --> South | BE45: South | BF45: Alabama | BG45: South | BH45: Texas | BI45: 9993
A46: 2208 | B46: 2010 | C46: South --> West | D46: South | E46: Alabama | F46: West | G46: Utah | H46: 93 | AJ46: 2208 | AK46: 2010 | AL46: South --> West | AM46: South | AN46: Alabama | AO46: West | AP46: Utah | AQ46: 93 | AS46: 1606 | AT46: 2011 | AU46: South --> West | AV46: South | AW46: Alabama | AX46: West | AY46: Utah | AZ46: 486 | BB46: 2177 | BC46: 2012 | BD46: South --> West | BE46: South | BF46: Alabama | BG46: West | BH46: Utah | BI46: 126
A47: 2399 | B47: 2010 | C47: South --> Northeast | D47: South | E47: Alabama | F47: Northeast | G47: Vermont | H47: 0 | AJ47: 2399 | AK47: 2010 | AL47: South --> Northeast | AM47: South | AN47: Alabama | AO47: Northeast | AP47: Vermont | AQ47: 0 | AS47: 2462 | AT47: 2011 | AU47: South --> Northeast | AV47: South | AW47: Alabama | AX47: Northeast | AY47: Vermont | AZ47: 0 | BB47: 2445 | BC47: 2012 | BD47: South --> Northeast | BE47: South | BF47: Alabama | BG47: Northeast | BH47: Vermont | BI47: 16
A48: 619 | B48: 2010 | C48: South --> South | D48: South | E48: Alabama | F48: South | G48: Virginia | H48: 2671 | AJ48: 619 | AK48: 2010 | AL48: South --> South | AM48: South | AN48: Alabama | AO48: South | AP48: Virginia | AQ48: 2671 | AS48: 378 | AT48: 2011 | AU48: South --> South | AV48: South | AW48: Alabama | AX48: South | AY48: Virginia | AZ48: 4930 | BB48: 690 | BC48: 2012 | BD48: South --> South | BE48: South | BF48: Alabama | BG48: South | BH48: Virginia | BI48: 2515
A49: 1039 | B49: 2010 | C49: South --> West | D49: South | E49: Alabama | F49: West | G49: Washington | H49: 1322 | AJ49: 1039 | AK49: 2010 | AL49: South --> West | AM49: South | AN49: Alabama | AO49: West | AP49: Washington | AQ49: 1322 | AS49: 856 | AT49: 2011 | AU49: South --> West | AV49: South | AW49: Alabama | AX49: West | AY49: Washington | AZ49: 1821 | BB49: 959 | BC49: 2012 | BD49: South --> West | BE49: South | BF49: Alabama | BG49: West | BH49: Washington | BI49: 1507
A50: 2355 | B50: 2010 | C50: South --> South | D50: South | E50: Alabama | F50: South | G50: West Virginia | H50: 41 | AJ50: 2355 | AK50: 2010 | AL50: South --> South | AM50: South | AN50: Alabama | AO50: South | AP50: West Virginia | AQ50: 41 | AS50: 1993 | AT50: 2011 | AU50: South --> South | AV50: South | AW50: Alabama | AX50: South | AY50: West Virginia | AZ50: 221 | BB50: 1643 | BC50: 2012 | BD50: South --> South | BE50: South | BF50: Alabama | BG50: South | BH50: West Virginia | BI50: 477
A51: 1528 | B51: 2010 | C51: South --> Midwest | D51: South | E51: Alabama | F51: Midwest | G51: Wisconsin | H51: 552 | AJ51: 1528 | AK51: 2010 | AL51: South --> Midwest | AM51: South | AN51: Alabama | AO51: Midwest | AP51: Wisconsin | AQ51: 552 | AS51: 1415 | AT51: 2011 | AU51: South --> Midwest | AV51: South | AW51: Alabama | AX51: Midwest | AY51: Wisconsin | AZ51: 708 | BB51: 1828 | BC51: 2012 | BD51: South --> Midwest | BE51: South | BF51: Alabama | BG51: Midwest | BH51: Wisconsin | BI51: 323
A52: 2040 | B52: 2010 | C52: South --> West | D52: South | E52: Alabama | F52: West | G52: Wyoming | H52: 172 | AJ52: 2040 | AK52: 2010 | AL52: South --> West | AM52: South | AN52: Alabama | AO52: West | AP52: Wyoming | AQ52: 172 | AS52: 2346 | AT52: 2011 | AU52: South --> West | AV52: South | AW52: Alabama | AX52: West | AY52: Wyoming | AZ52: 51 | BB52: 1924 | BC52: 2012 | BD52: South --> West | BE52: South | BF52: Alabama | BG52: West | BH52: Wyoming | BI52: 260
A53: 1460 | B53: 2010 | C53: South --> Northeast | D53: South | E53: Alabama | F53: Northeast | G53: Puerto Rico | H53: 629 | AJ53: 1460 | AK53: 2010 | AL53: South --> Northeast | AM53: South | AN53: Alabama | AO53: Northeast | AP53: Puerto Rico | AQ53: 629 | AS53: 2387 | AT53: 2011 | AU53: South --> Northeast | AV53: South | AW53: Alabama | AX53: Northeast | AY53: Puerto Rico | AZ53: 35 | BB53: 2456 | BC53: 2012 | BD53: South --> Northeast | BE53: South | BF53: Alabama | BG53: Northeast | BH53: Puerto Rico | BI53: 8
A54: 566 | B54: 2010 | C54: West --> South | D54: West | E54: Alaska | F54: South | G54: Alabama | H54: 3013 | AJ54: 566 | AK54: 2010 | AL54: West --> South | AM54: West | AN54: Alaska | AO54: South | AP54: Alabama | AQ54: 3013 | AS54: 873 | AT54: 2011 | AU54: West --> South | AV54: West | AW54: Alaska | AX54: South | AY54: Alabama | AZ54: 1771 | BB54: 1227 | BC54: 2012 | BD54: West --> South | BE54: West | BF54: Alaska | BG54: South | BH54: Alabama | BI54: 1004
A55: 2399 | B55: 2010 | C55: West --> West | D55: West | E55: Alaska | F55: West | G55: Alaska | H55: 0 | AJ55: 2399 | AK55: 2010 | AL55: West --> West | AM55: West | AN55: Alaska | AO55: West | AP55: Alaska | AQ55: 0 | AS55: 2462 | AT55: 2011 | AU55: West --> West | AV55: West | AW55: Alaska | AX55: West | AY55: Alaska | AZ55: 0 | BB55: 2470 | BC55: 2012 | BD55: West --> West | BE55: West | BF55: Alaska | BG55: West | BH55: Alaska | BI55: 0
A56: 548 | B56: 2010 | C56: West --> West | D56: West | E56: Alaska | F56: West | G56: Arizona | H56: 3109 | AJ56: 548 | AK56: 2010 | AL56: West --> West | AM56: West | AN56: Alaska | AO56: West | AP56: Arizona | AQ56: 3109 | AS56: 373 | AT56: 2011 | AU56: West --> West | AV56: West | AW56: Alaska | AX56: West | AY56: Arizona | AZ56: 5001 | BB56: 489 | BC56: 2012 | BD56: West --> West | BE56: West | BF56: Alaska | BG56: West | BH56: Arizona | BI56: 3717
A57: 1231 | B57: 2010 | C57: West --> South | D57: West | E57: Alaska | F57: South | G57: Arkansas | H57: 934 | AJ57: 1231 | AK57: 2010 | AL57: West --> South | AM57: West | AN57: Alaska | AO57: South | AP57: Arkansas | AQ57: 934 | AS57: 1542 | AT57: 2011 | AU57: West --> South | AV57: West | AW57: Alaska | AX57: South | AY57: Arkansas | AZ57: 560 | BB57: 1329 | BC57: 2012 | BD57: West --> South | BE57: West | BF57: Alaska | BG57: South | BH57: Arkansas | BI57: 855
A58: 171 | B58: 2010 | C58: West --> West | D58: West | E58: Alaska | F58: West | G58: California | H58: 9579 | AJ58: 171 | AK58: 2010 | AL58: West --> West | AM58: West | AN58: Alaska | AO58: West | AP58: California | AQ58: 9579 | AS58: 254 | AT58: 2011 | AU58: West --> West | AV58: West | AW58: Alaska | AX58: West | AY58: California | AZ58: 7358 | BB58: 266 | BC58: 2012 | BD58: West --> West | BE58: West | BF58: Alaska | BG58: West | BH58: California | BI58: 6995
A59: 720 | B59: 2010 | C59: West --> West | D59: West | E59: Alaska | F59: West | G59: Colorado | H59: 2225 | AJ59: 720 | AK59: 2010 | AL59: West --> West | AM59: West | AN59: Alaska | AO59: West | AP59: Colorado | AQ59: 2225 | AS59: 569 | AT59: 2011 | AU59: West --> West | AV59: West | AW59: Alaska | AX59: West | AY59: Colorado | AZ59: 3191 | BB59: 524 | BC59: 2012 | BD59: West --> West | BE59: West | BF59: Alaska | BG59: West | BH59: Colorado | BI59: 3457
A60: 2399 | B60: 2010 | C60: West --> Northeast | D60: West | E60: Alaska | F60: Northeast | G60: Connecticut | H60: 0 | AJ60: 2399 | AK60: 2010 | AL60: West --> Northeast | AM60: West | AN60: Alaska | AO60: Northeast | AP60: Connecticut | AQ60: 0 | AS60: 2067 | AT60: 2011 | AU60: West --> Northeast | AV60: West | AW60: Alaska | AX60: Northeast | AY60: Connecticut | AZ60: 180 | BB60: 1687 | BC60: 2012 | BD60: West --> Northeast | BE60: West | BF60: Alaska | BG60: Northeast | BH60: Connecticut | BI60: 439
A61: 2268 | B61: 2010 | C61: West --> South | D61: West | E61: Alaska | F61: South | G61: Delaware | H61: 68 | AJ61: 2268 | AK61: 2010 | AL61: West --> South | AM61: West | AN61: Alaska | AO61: South | AP61: Delaware | AQ61: 68 | AS61: 1812 | AT61: 2011 | AU61: West --> South | AV61: West | AW61: Alaska | AX61: South | AY61: Delaware | AZ61: 329 | BB61: 1455 | BC61: 2012 | BD61: West --> South | BE61: West | BF61: Alaska | BG61: South | BH61: Delaware | BI61: 692
A62: 1495 | B62: 2010 | C62: West --> South | D62: West | E62: Alaska | F62: South | G62: District of Columbia | H62: 591 | AJ62: 1495 | AK62: 2010 | AL62: West --> South | AM62: West | AN62: Alaska | AO62: South | AP62: District of Columbia | AQ62: 591 | AS62: 2149 | AT62: 2011 | AU62: West --> South | AV62: West | AW62: Alaska | AX62: South | AY62: District of Columbia | AZ62: 135 | BB62: 1076 | BC62: 2012 | BD62: West --> South | BE62: West | BF62: Alaska | BG62: South | BH62: District of Columbia | BI62: 1247
A63: 305 | B63: 2010 | C63: West --> South | D63: West | E63: Alaska | F63: South | G63: Florida | H63: 5887 | AJ63: 305 | AK63: 2010 | AL63: West --> South | AM63: West | AN63: Alaska | AO63: South | AP63: Florida | AQ63: 5887 | AS63: 251 | AT63: 2011 | AU63: West --> South | AV63: West | AW63: Alaska | AX63: South | AY63: Florida | AZ63: 7405 | BB63: 163 | BC63: 2012 | BD63: West --> South | BE63: West | BF63: Alaska | BG63: South | BH63: Florida | BI63: 10704
A64: 497 | B64: 2010 | C64: West --> South | D64: West | E64: Alaska | F64: South | G64: Georgia | H64: 3645 | AJ64: 497 | AK64: 2010 | AL64: West --> South | AM64: West | AN64: Alaska | AO64: South | AP64: Georgia | AQ64: 3645 | AS64: 1174 | AT64: 2011 | AU64: West --> South | AV64: West | AW64: Alaska | AX64: South | AY64: Georgia | AZ64: 1079 | BB64: 665 | BC64: 2012 | BD64: West --> South | BE64: West | BF64: Alaska | BG64: South | BH64: Georgia | BI64: 2654
A65: 1359 | B65: 2010 | C65: West --> West | D65: West | E65: Alaska | F65: West | G65: Hawaii | H65: 743 | AJ65: 1359 | AK65: 2010 | AL65: West --> West | AM65: West | AN65: Alaska | AO65: West | AP65: Hawaii | AQ65: 743 | AS65: 1330 | AT65: 2011 | AU65: West --> West | AV65: West | AW65: Alaska | AX65: West | AY65: Hawaii | AZ65: 844 | BB65: 990 | BC65: 2012 | BD65: West --> West | BE65: West | BF65: Alaska | BG65: West | BH65: Hawaii | BI65: 1417
A66: 527 | B66: 2010 | C66: West --> West | D66: West | E66: Alaska | F66: West | G66: Idaho | H66: 3264 | AJ66: 527 | AK66: 2010 | AL66: West --> West | AM66: West | AN66: Alaska | AO66: West | AP66: Idaho | AQ66: 3264 | AS66: 414 | AT66: 2011 | AU66: West --> West | AV66: West | AW66: Alaska | AX66: West | AY66: Idaho | AZ66: 4510 | BB66: 1106 | BC66: 2012 | BD66: West --> West | BE66: West | BF66: Alaska | BG66: West | BH66: Idaho | BI66: 1198
A67: 852 | B67: 2010 | C67: West --> Midwest | D67: West | E67: Alaska | F67: Midwest | G67: Illinois | H67: 1764 | AJ67: =RANK(AQ67,AQ:AQ,0) -> 852 | AK67: 2010 | AL67: West --> Midwest | AM67: West | AN67: Alaska | AO67: Midwest | AP67: Illinois | AQ67: 1764 | AS67: =RANK(AZ67,AZ:AZ) -> 447 | AT67: 2011 | AU67: West --> Midwest | AV67: West | AW67: Alaska | AX67: Midwest | AY67: Illinois | AZ67: 4119 | BB67: =RANK(BI67,BI:BI,0) -> 755 | BC67: 2012 | BD67: West --> Midwest | BE67: West | BF67: Alaska | BG67: Midwest | BH67: Illinois | BI67: 2250
A68: =RANK(H68,$H$2:$H$2705) -> 2031 | B68: 2010 | C68: West --> Midwest | D68: West | E68: Alaska | F68: Midwest | G68: Indiana | H68: 177 | AJ68: 2031 | AK68: 2010 | AL68: West --> Midwest | AM68: West | AN68: Alaska | AO68: Midwest | AP68: Indiana | AQ68: 177 | AS68: 1751 | AT68: 2011 | AU68: West --> Midwest | AV68: West | AW68: Alaska | AX68: Midwest | AY68: Indiana | AZ68: 371 | BB68: 1641 | BC68: 2012 | BD68: West --> Midwest | BE68: West | BF68: Alaska | BG68: Midwest | BH68: Indiana | BI68: 479
A69: 1567 | B69: 2010 | C69: West --> Midwest | D69: West | E69: Alaska | F69: Midwest | G69: Iowa | H69: 519 | AJ69: 1567 | AK69: 2010 | AL69: West --> Midwest | AM69: West | AN69: Alaska | AO69: Midwest | AP69: Iowa | AQ69: 519 | AS69: 1242 | AT69: 2011 | AU69: West --> Midwest | AV69: West | AW69: Alaska | AX69: Midwest | AY69: Iowa | AZ69: 967 | BB69: 1262 | BC69: 2012 | BD69: West --> Midwest | BE69: West | BF69: Alaska | BG69: Midwest | BH69: Iowa | BI69: 951
A70: 1172 | B70: 2010 | C70: West --> Midwest | D70: West | E70: Alaska | F70: Midwest | G70: Kansas | H70: 1050 | AJ70: 1172 | AK70: 2010 | AL70: West --> Midwest | AM70: West | AN70: Alaska | AO70: Midwest | AP70: Kansas | AQ70: 1050 | AS70: 2209 | AT70: 2011 | AU70: West --> Midwest | AV70: West | AW70: Alaska | AX70: Midwest | AY70: Kansas | AZ70: 108 | BB70: 1811 | BC70: 2012 | BD70: West --> Midwest | BE70: West | BF70: Alaska | BG70: Midwest | BH70: Kansas | BI70: 333
A71: 565 | B71: 2010 | C71: West --> South | D71: West | E71: Alaska | F71: South | G71: Kentucky | H71: 3017 | AJ71: 565 | AK71: 2010 | AL71: West --> South | AM71: West | AN71: Alaska | AO71: South | AP71: Kentucky | AQ71: 3017 | AS71: 2462 | AT71: 2011 | AU71: West --> South | AV71: West | AW71: Alaska | AX71: South | AY71: Kentucky | AZ71: 0 | BB71: 1850 | BC71: 2012 | BD71: West --> South | BE71: West | BF71: Alaska | BG71: South | BH71: Kentucky | BI71: 304
A72: 960 | B72: 2010 | C72: West --> South | D72: West | E72: Alaska | F72: South | G72: Louisiana | H72: 1504 | AJ72: 960 | AK72: 2010 | AL72: West --> South | AM72: West | AN72: Alaska | AO72: South | AP72: Louisiana | AQ72: 1504 | AS72: 1869 | AT72: 2011 | AU72: West --> South | AV72: West | AW72: Alaska | AX72: South | AY72: Louisiana | AZ72: 288 | BB72: 1728 | BC72: 2012 | BD72: West --> South | BE72: West | BF72: Alaska | BG72: South | BH72: Louisiana | BI72: 403
A73: 1674 | B73: 2010 | C73: West --> Northeast | D73: West | E73: Alaska | F73: Northeast | G73: Maine | H73: 424 | AJ73: 1674 | AK73: 2010 | AL73: West --> Northeast | AM73: West | AN73: Alaska | AO73: Northeast | AP73: Maine | AQ73: 424 | AS73: 2384 | AT73: 2011 | AU73: West --> Northeast | AV73: West | AW73: Alaska | AX73: Northeast | AY73: Maine | AZ73: 37 | BB73: 2392 | BC73: 2012 | BD73: West --> Northeast | BE73: West | BF73: Alaska | BG73: Northeast | BH73: Maine | BI73: 38
A74: 618 | B74: 2010 | C74: West --> South | D74: West | E74: Alaska | F74: South | G74: Maryland | H74: 2672 | AJ74: 618 | AK74: 2010 | AL74: West --> South | AM74: West | AN74: Alaska | AO74: South | AP74: Maryland | AQ74: 2672 | AS74: 1444 | AT74: 2011 | AU74: West --> South | AV74: West | AW74: Alaska | AX74: South | AY74: Maryland | AZ74: 671 | BB74: 816 | BC74: 2012 | BD74: West --> South | BE74: West | BF74: Alaska | BG74: South | BH74: Maryland | BI74: 1947
A75: 813 | B75: 2010 | C75: West --> Northeast | D75: West | E75: Alaska | F75: Northeast | G75: Massachusetts | H75: 1891 | AJ75: 813 | AK75: 2010 | AL75: West --> Northeast | AM75: West | AN75: Alaska | AO75: Northeast | AP75: Massachusetts | AQ75: 1891 | AS75: 1983 | AT75: 2011 | AU75: West --> Northeast | AV75: West | AW75: Alaska | AX75: Northeast | AY75: Massachusetts | AZ75: 225 | BB75: 1311 | BC75: 2012 | BD75: West --> Northeast | BE75: West | BF75: Alaska | BG75: Northeast | BH75: Massachusetts | BI75: 890
A76: 1180 | B76: 2010 | C76: West --> Midwest | D76: West | E76: Alaska | F76: Midwest | G76: Michigan | H76: 1040 | AJ76: 1180 | AK76: 2010 | AL76: West --> Midwest | AM76: West | AN76: Alaska | AO76: Midwest | AP76: Michigan | AQ76: 1040 | AS76: 531 | AT76: 2011 | AU76: West --> Midwest | AV76: West | AW76: Alaska | AX76: Midwest | AY76: Michigan | AZ76: 3456 | BB76: 1133 | BC76: 2012 | BD76: West --> Midwest | BE76: West | BF76: Alaska | BG76: Midwest | BH76: Michigan | BI76: 1152
A77: 1110 | B77: 2010 | C77: West --> Midwest | D77: West | E77: Alaska | F77: Midwest | G77: Minnesota | H77: 1169 | AJ77: 1110 | AK77: 2010 | AL77: West --> Midwest | AM77: West | AN77: Alaska | AO77: Midwest | AP77: Minnesota | AQ77: 1169 | AS77: 1293 | AT77: 2011 | AU77: West --> Midwest | AV77: West | AW77: Alaska | AX77: Midwest | AY77: Minnesota | AZ77: 893 | BB77: 1601 | BC77: 2012 | BD77: West --> Midwest | BE77: West | BF77: Alaska | BG77: Midwest | BH77: Minnesota | BI77: 523
A78: 1095 | B78: 2010 | C78: West --> South | D78: West | E78: Alaska | F78: South | G78: Mississippi | H78: 1192 | AJ78: 1095 | AK78: 2010 | AL78: West --> South | AM78: West | AN78: Alaska | AO78: South | AP78: Mississippi | AQ78: 1192 | AS78: 2188 | AT78: 2011 | AU78: West --> South | AV78: West | AW78: Alaska | AX78: South | AY78: Mississippi | AZ78: 117 | BB78: 2470 | BC78: 2012 | BD78: West --> South | BE78: West | BF78: Alaska | BG78: South | BH78: Mississippi | BI78: 0
A79: 1169 | B79: 2010 | C79: West --> Midwest | D79: West | E79: Alaska | F79: Midwest | G79: Missouri | H79: 1051 | AJ79: 1169 | AK79: 2010 | AL79: West --> Midwest | AM79: West | AN79: Alaska | AO79: Midwest | AP79: Missouri | AQ79: 1051 | AS79: 787 | AT79: 2011 | AU79: West --> Midwest | AV79: West | AW79: Alaska | AX79: Midwest | AY79: Missouri | AZ79: 2043 | BB79: 774 | BC79: 2012 | BD79: West --> Midwest | BE79: West | BF79: Alaska | BG79: Midwest | BH79: Missouri | BI79: 2186
A80: 1438 | B80: 2010 | C80: West --> West | D80: West | E80: Alaska | F80: West | G80: Montana | H80: 650 | AJ80: 1438 | AK80: 2010 | AL80: West --> West | AM80: West | AN80: Alaska | AO80: West | AP80: Montana | AQ80: 650 | AS80: 1154 | AT80: 2011 | AU80: West --> West | AV80: West | AW80: Alaska | AX80: West | AY80: Montana | AZ80: 1118 | BB80: 1430 | BC80: 2012 | BD80: West --> West | BE80: West | BF80: Alaska | BG80: West | BH80: Montana | BI80: 726
A81: 2368 | B81: 2010 | C81: West --> Midwest | D81: West | E81: Alaska | F81: Midwest | G81: Nebraska | H81: 35 | AJ81: 2368 | AK81: 2010 | AL81: West --> Midwest | AM81: West | AN81: Alaska | AO81: Midwest | AP81: Nebraska | AQ81: 35 | AS81: 1402 | AT81: 2011 | AU81: West --> Midwest | AV81: West | AW81: Alaska | AX81: Midwest | AY81: Nebraska | AZ81: 721 | BB81: 1504 | BC81: 2012 | BD81: West --> Midwest | BE81: West | BF81: Alaska | BG81: Midwest | BH81: Nebraska | BI81: 626
A82: 1580 | B82: 2010 | C82: West --> West | D82: West | E82: Alaska | F82: West | G82: Nevada | H82: 511 | AJ82: 1580 | AK82: 2010 | AL82: West --> West | AM82: West | AN82: Alaska | AO82: West | AP82: Nevada | AQ82: 511 | AS82: 1507 | AT82: 2011 | AU82: West --> West | AV82: West | AW82: Alaska | AX82: West | AY82: Nevada | AZ82: 597 | BB82: 779 | BC82: 2012 | BD82: West --> West | BE82: West | BF82: Alaska | BG82: West | BH82: Nevada | BI82: 2161
A83: 2399 | B83: 2010 | C83: West --> Northeast | D83: West | E83: Alaska | F83: Northeast | G83: New Hampshire | H83: 0 | AJ83: 2399 | AK83: 2010 | AL83: West --> Northeast | AM83: West | AN83: Alaska | AO83: Northeast | AP83: New Hampshire | AQ83: 0 | AS83: 2462 | AT83: 2011 | AU83: West --> Northeast | AV83: West | AW83: Alaska | AX83: Northeast | AY83: New Hampshire | AZ83: 0 | BB83: 1689 | BC83: 2012 | BD83: West --> Northeast | BE83: West | BF83: Alaska | BG83: Northeast | BH83: New Hampshire | BI83: 437
A84: 1725 | B84: 2010 | C84: West --> Northeast | D84: West | E84: Alaska | F84: Northeast | G84: New Jersey | H84: 383 | AJ84: 1725 | AK84: 2010 | AL84: West --> Northeast | AM84: West | AN84: Alaska | AO84: Northeast | AP84: New Jersey | AQ84: 383 | AS84: 1121 | AT84: 2011 | AU84: West --> Northeast | AV84: West | AW84: Alaska | AX84: Northeast | AY84: New Jersey | AZ84: 1198 | BB84: 1779 | BC84: 2012 | BD84: West --> Northeast | BE84: West | BF84: Alaska | BG84: Northeast | BH84: New Jersey | BI84: 359
A85: 1214 | B85: 2010 | C85: West --> West | D85: West | E85: Alaska | F85: West | G85: New Mexico | H85: 969 | AJ85: 1214 | AK85: 2010 | AL85: West --> West | AM85: West | AN85: Alaska | AO85: West | AP85: New Mexico | AQ85: 969 | AS85: 1697 | AT85: 2011 | AU85: West --> West | AV85: West | AW85: Alaska | AX85: West | AY85: New Mexico | AZ85: 416 | BB85: 1833 | BC85: 2012 | BD85: West --> West | BE85: West | BF85: Alaska | BG85: West | BH85: New Mexico | BI85: 320
A86: 349 | B86: 2010 | C86: West --> Northeast | D86: West | E86: Alaska | F86: Northeast | G86: New York | H86: 5070 | AJ86: 349 | AK86: 2010 | AL86: West --> Northeast | AM86: West | AN86: Alaska | AO86: Northeast | AP86: New York | AQ86: 5070 | AS86: 307 | AT86: 2011 | AU86: West --> Northeast | AV86: West | AW86: Alaska | AX86: Northeast | AY86: New York | AZ86: 6124 | BB86: 458 | BC86: 2012 | BD86: West --> Northeast | BE86: West | BF86: Alaska | BG86: Northeast | BH86: New York | BI86: 4002
A87: 911 | B87: 2010 | C87: West --> South | D87: West | E87: Alaska | F87: South | G87: North Carolina | H87: 1618 | AJ87: 911 | AK87: 2010 | AL87: West --> South | AM87: West | AN87: Alaska | AO87: South | AP87: North Carolina | AQ87: 1618 | AS87: 464 | AT87: 2011 | AU87: West --> South | AV87: West | AW87: Alaska | AX87: South | AY87: North Carolina | AZ87: 3991 | BB87: 979 | BC87: 2012 | BD87: West --> South | BE87: West | BF87: Alaska | BG87: South | BH87: North Carolina | BI87: 1458
A88: 1164 | B88: 2010 | C88: West --> Midwest | D88: West | E88: Alaska | F88: Midwest | G88: North Dakota | H88: 1066 | AJ88: 1164 | AK88: 2010 | AL88: West --> Midwest | AM88: West | AN88: Alaska | AO88: Midwest | AP88: North Dakota | AQ88: 1066 | AS88: 1720 | AT88: 2011 | AU88: West --> Midwest | AV88: West | AW88: Alaska | AX88: Midwest | AY88: North Dakota | AZ88: 393 | BB88: 2310 | BC88: 2012 | BD88: West --> Midwest | BE88: West | BF88: Alaska | BG88: Midwest | BH88: North Dakota | BI88: 70
A89: 933 | B89: 2010 | C89: West --> Midwest | D89: West | E89: Alaska | F89: Midwest | G89: Ohio | H89: 1556 | AJ89: 933 | AK89: 2010 | AL89: West --> Midwest | AM89: West | AN89: Alaska | AO89: Midwest | AP89: Ohio | AQ89: 1556 | AS89: 919 | AT89: 2011 | AU89: West --> Midwest | AV89: West | AW89: Alaska | AX89: Midwest | AY89: Ohio | AZ89: 1637 | BB89: 769 | BC89: 2012 | BD89: West --> Midwest | BE89: West | BF89: Alaska | BG89: Midwest | BH89: Ohio | BI89: 2207
A90: 1002 | B90: 2010 | C90: West --> South | D90: West | E90: Alaska | F90: South | G90: Oklahoma | H90: 1397 | AJ90: 1002 | AK90: 2010 | AL90: West --> South | AM90: West | AN90: Alaska | AO90: South | AP90: Oklahoma | AQ90: 1397 | AS90: 1144 | AT90: 2011 | AU90: West --> South | AV90: West | AW90: Alaska | AX90: South | AY90: Oklahoma | AZ90: 1137 | BB90: 1055 | BC90: 2012 | BD90: West --> South | BE90: West | BF90: Alaska | BG90: South | BH90: Oklahoma | BI90: 1279
A91: 769 | B91: 2010 | C91: West --> West | D91: West | E91: Alaska | F91: West | G91: Oregon | H91: 2027 | AJ91: 769 | AK91: 2010 | AL91: West --> West | AM91: West | AN91: Alaska | AO91: West | AP91: Oregon | AQ91: 2027 | AS91: 829 | AT91: 2011 | AU91: West --> West | AV91: West | AW91: Alaska | AX91: West | AY91: Oregon | AZ91: 1935 | BB91: 692 | BC91: 2012 | BD91: West --> West | BE91: West | BF91: Alaska | BG91: West | BH91: Oregon | BI91: 2513
A92: 730 | B92: 2010 | C92: West --> Northeast | D92: West | E92: Alaska | F92: Northeast | G92: Pennsylvania | H92: 2185 | AJ92: 730 | AK92: 2010 | AL92: West --> Northeast | AM92: West | AN92: Alaska | AO92: Northeast | AP92: Pennsylvania | AQ92: 2185 | AS92: 1384 | AT92: 2011 | AU92: West --> Northeast | AV92: West | AW92: Alaska | AX92: Northeast | AY92: Pennsylvania | AZ92: 759 | BB92: 898 | BC92: 2012 | BD92: West --> Northeast | BE92: West | BF92: Alaska | BG92: Northeast | BH92: Pennsylvania | BI92: 1658
A93: 2399 | B93: 2010 | C93: West --> Northeast | D93: West | E93: Alaska | F93: Northeast | G93: Rhode Island | H93: 0 | AJ93: 2399 | AK93: 2010 | AL93: West --> Northeast | AM93: West | AN93: Alaska | AO93: Northeast | AP93: Rhode Island | AQ93: 0 | AS93: 2462 | AT93: 2011 | AU93: West --> Northeast | AV93: West | AW93: Alaska | AX93: Northeast | AY93: Rhode Island | AZ93: 0 | BB93: 2470 | BC93: 2012 | BD93: West --> Northeast | BE93: West | BF93: Alaska | BG93: Northeast | BH93: Rhode Island | BI93: 0
A94: 889 | B94: 2010 | C94: West --> South | D94: West | E94: Alaska | F94: South | G94: South Carolina | H94: 1670 | AJ94: 889 | AK94: 2010 | AL94: West --> South | AM94: West | AN94: Alaska | AO94: South | AP94: South Carolina | AQ94: 1670 | AS94: 699 | AT94: 2011 | AU94: West --> South | AV94: West | AW94: Alaska | AX94: South | AY94: South Carolina | AZ94: 2421 | BB94: 1078 | BC94: 2012 | BD94: West --> South | BE94: West | BF94: Alaska | BG94: South | BH94: South Carolina | BI94: 1244
A95: 2381 | B95: 2010 | C95: West --> Midwest | D95: West | E95: Alaska | F95: Midwest | G95: South Dakota | H95: 25 | AJ95: 2381 | AK95: 2010 | AL95: West --> Midwest | AM95: West | AN95: Alaska | AO95: Midwest | AP95: South Dakota | AQ95: 25 | AS95: 1551 | AT95: 2011 | AU95: West --> Midwest | AV95: West | AW95: Alaska | AX95: Midwest | AY95: South Dakota | AZ95: 554 | BB95: 1329 | BC95: 2012 | BD95: West --> Midwest | BE95: West | BF95: Alaska | BG95: Midwest | BH95: South Dakota | BI95: 855
A96: 1777 | B96: 2010 | C96: West --> South | D96: West | E96: Alaska | F96: South | G96: Tennessee | H96: 343 | AJ96: 1777 | AK96: 2010 | AL96: West --> South | AM96: West | AN96: Alaska | AO96: South | AP96: Tennessee | AQ96: 343 | AS96: 1572 | AT96: 2011 | AU96: West --> South | AV96: West | AW96: Alaska | AX96: South | AY96: Tennessee | AZ96: 531 | BB96: 1054 | BC96: 2012 | BD96: West --> South | BE96: West | BF96: Alaska | BG96: South | BH96: Tennessee | BI96: 1281
A97: 137 | B97: 2010 | C97: West --> South | D97: West | E97: Alaska | F97: South | G97: Texas | H97: 11613 | AJ97: 137 | AK97: 2010 | AL97: West --> South | AM97: West | AN97: Alaska | AO97: South | AP97: Texas | AQ97: 11613 | AS97: 279 | AT97: 2011 | AU97: West --> South | AV97: West | AW97: Alaska | AX97: South | AY97: Texas | AZ97: 6670 | BB97: 278 | BC97: 2012 | BD97: West --> South | BE97: West | BF97: Alaska | BG97: South | BH97: Texas | BI97: 6759
A98: 842 | B98: 2010 | C98: West --> West | D98: West | E98: Alaska | F98: West | G98: Utah | H98: 1798 | AJ98: 842 | AK98: 2010 | AL98: West --> West | AM98: West | AN98: Alaska | AO98: West | AP98: Utah | AQ98: 1798 | AS98: 751 | AT98: 2011 | AU98: West --> West | AV98: West | AW98: Alaska | AX98: West | AY98: Utah | AZ98: 2151 | BB98: 623 | BC98: 2012 | BD98: West --> West | BE98: West | BF98: Alaska | BG98: West | BH98: Utah | BI98: 2819
A99: 2018 | B99: 2010 | C99: West --> Northeast | D99: West | E99: Alaska | F99: Northeast | G99: Vermont | H99: 184 | AJ99: 2018 | AK99: 2010 | AL99: West --> Northeast | AM99: West | AN99: Alaska | AO99: Northeast | AP99: Vermont | AQ99: 184 | AS99: 1525 | AT99: 2011 | AU99: West --> Northeast | AV99: West | AW99: Alaska | AX99: Northeast | AY99: Vermont | AZ99: 580 | BB99: 2256 | BC99: 2012 | BD99: West --> Northeast | BE99: West | BF99: Alaska | BG99: Northeast | BH99: Vermont | BI99: 93
A100: 523 | B100: 2010 | C100: West --> South | D100: West | E100: Alaska | F100: South | G100: Virginia | H100: 3296 | AJ100: 523 | AK100: 2010 | AL100: West --> South | AM100: West | AN100: Alaska | AO100: South | AP100: Virginia | AQ100: 3296 | AS100: 567 | AT100: 2011 | AU100: West --> South | AV100: West | AW100: Alaska | AX100: South | AY100: Virginia | AZ100: 3202 | BB100: 828 | BC100: 2012 | BD100: West --> South | BE100: West | BF100: Alaska | BG100: South | BH100: Virginia | BI100: 1906
A101: 321 | B101: 2010 | C101: West --> West | D101: West | E101: Alaska | F101: West | G101: Washington | H101: 5644 | AJ101: 321 | AK101: 2010 | AL101: West --> West | AM101: West | AN101: Alaska | AO101: West | AP101: Washington | AQ101: 5644 | AS101: 354 | AT101: 2011 | AU101: West --> West | AV101: West | AW101: Alaska | AX101: West | AY101: Washington | AZ101: 5266 | BB101: 432 | BC101: 2012 | BD101: West --> West | BE101: West | BF101: Alaska | BG101: West | BH101: Washington | BI101: 4328
A102: 1036 | B102: 2010 | C102: West --> South | D102: West | E102: Alaska | F102: South | G102: West Virginia | H102: 1326 | AJ102: 1036 | AK102: 2010 | AL102: West --> South | AM102: West | AN102: Alaska | AO102: South | AP102: West Virginia | AQ102: 1326 | AS102: 1505 | AT102: 2011 | AU102: West --> South | AV102: West | AW102: Alaska | AX102: South | AY102: West Virginia | AZ102: 598 | BB102: 1849 | BC102: 2012 | BD102: West --> South | BE102: West | BF102: Alaska | BG102: South | BH102: West Virginia | BI102: 306
A103: 1319 | B103: 2010 | C103: West --> Midwest | D103: West | E103: Alaska | F103: Midwest | G103: Wisconsin | H103: 798 | AJ103: 1319 | AK103: 2010 | AL103: West --> Midwest | AM103: West | AN103: Alaska | AO103: Midwest | AP103: Wisconsin | AQ103: 798 | AS103: 1675 | AT103: 2011 | AU103: West --> Midwest | AV103: West | AW103: Alaska | AX103: Midwest | AY103: Wisconsin | AZ103: 432 | BB103: 1964 | BC103: 2012 | BD103: West --> Midwest | BE103: West | BF103: Alaska | BG103: Midwest | BH103: Wisconsin | BI103: 236
A104: 2399 | B104: 2010 | C104: West --> West | D104: West | E104: Alaska | F104: West | G104: Wyoming | H104: 0 | AJ104: 2399 | AK104: 2010 | AL104: West --> West | AM104: West | AN104: Alaska | AO104: West | AP104: Wyoming | AQ104: 0 | AS104: 1383 | AT104: 2011 | AU104: West --> West | AV104: West | AW104: Alaska | AX104: West | AY104: Wyoming | AZ104: 761 | BB104: 1541 | BC104: 2012 | BD104: West --> West | BE104: West | BF104: Alaska | BG104: West | BH104: Wyoming | BI104: 590
A105: 2070 | B105: 2010 | C105: West --> Northeast | D105: West | E105: Alaska | F105: Northeast | G105: Puerto Rico | H105: 156 | AJ105: 2070 | AK105: 2010 | AL105: West --> Northeast | AM105: West | AN105: Alaska | AO105: Northeast | AP105: Puerto Rico | AQ105: 156 | AS105: 1742 | AT105: 2011 | AU105: West --> Northeast | AV105: West | AW105: Alaska | AX105: Northeast | AY105: Puerto Rico | AZ105: 378 | BB105: 2343 | BC105: 2012 | BD105: West --> Northeast | BE105: West | BF105: Alaska | BG105: Northeast | BH105: Puerto Rico | BI105: 57
A106: 1413 | B106: 2010 | C106: West --> South | D106: West | E106: Arizona | F106: South | G106: Alabama | H106: 676 | AJ106: 1413 | AK106: 2010 | AL106: West --> South | AM106: West | AN106: Arizona | AO106: South | AP106: Alabama | AQ106: 676 | AS106: 904 | AT106: 2011 | AU106: West --> South | AV106: West | AW106: Arizona | AX106: South | AY106: Alabama | AZ106: 1677 | BB106: 1256 | BC106: 2012 | BD106: West --> South | BE106: West | BF106: Arizona | BG106: South | BH106: Alabama | BI106: 962
A107: 1022 | B107: 2010 | C107: West --> West | D107: West | E107: Arizona | F107: West | G107: Alaska | H107: 1354 | AJ107: 1022 | AK107: 2010 | AL107: West --> West | AM107: West | AN107: Arizona | AO107: West | AP107: Alaska | AQ107: 1354 | AS107: 692 | AT107: 2011 | AU107: West --> West | AV107: West | AW107: Arizona | AX107: West | AY107: Alaska | AZ107: 2467 | BB107: 955 | BC107: 2012 | BD107: West --> West | BE107: West | BF107: Arizona | BG107: West | BH107: Alaska | BI107: 1520
A108: 2399 | B108: 2010 | C108: West --> West | D108: West | E108: Arizona | F108: West | G108: Arizona | H108: 0 | AJ108: 2399 | AK108: 2010 | AL108: West --> West | AM108: West | AN108: Arizona | AO108: West | AP108: Arizona | AQ108: 0 | AS108: 2462 | AT108: 2011 | AU108: West --> West | AV108: West | AW108: Arizona | AX108: West | AY108: Arizona | AZ108: 0 | BB108: 2470 | BC108: 2012 | BD108: West --> West | BE108: West | BF108: Arizona | BG108: West | BH108: Arizona | BI108: 0
A109: 1330 | B109: 2010 | C109: West --> South | D109: West | E109: Arizona | F109: South | G109: Arkansas | H109: 777 | AJ109: 1330 | AK109: 2010 | AL109: West --> South | AM109: West | AN109: Arizona | AO109: South | AP109: Arkansas | AQ109: 777 | AS109: 1664 | AT109: 2011 | AU109: West --> South | AV109: West | AW109: Arizona | AX109: South | AY109: Arkansas | AZ109: 439 | BB109: 893 | BC109: 2012 | BD109: West --> South | BE109: West | BF109: Arizona | BG109: South | BH109: Arkansas | BI109: 1677
A110: 13 | B110: 2010 | C110: West --> West | D110: West | E110: Arizona | F110: West | G110: California | H110: 33854 | AJ110: 13 | AK110: 2010 | AL110: West --> West | AM110: West | AN110: Arizona | AO110: West | AP110: California | AQ110: 33854 | AS110: 15 | AT110: 2011 | AU110: West --> West | AV110: West | AW110: Arizona | AX110: West | AY110: California | AZ110: 35650 | BB110: 11 | BC110: 2012 | BD110: West --> West | BE110: West | BF110: Arizona | BG110: West | BH110: California | BI110: 38916
A111: 122 | B111: 2010 | C111: West --> West | D111: West | E111: Arizona | F111: West | G111: Colorado | H111: 12287 | AJ111: 122 | AK111: 2010 | AL111: West --> West | AM111: West | AN111: Arizona | AO111: West | AP111: Colorado | AQ111: 12287 | AS111: 129 | AT111: 2011 | AU111: West --> West | AV111: West | AW111: Arizona | AX111: West | AY111: Colorado | AZ111: 12338 | BB111: 169 | BC111: 2012 | BD111: West --> West | BE111: West | BF111: Arizona | BG111: West | BH111: Colorado | BI111: 10589
A112: 1423 | B112: 2010 | C112: West --> Northeast | D112: West | E112: Arizona | F112: Northeast | G112: Connecticut | H112: 664 | AJ112: 1423 | AK112: 2010 | AL112: West --> Northeast | AM112: West | AN112: Arizona | AO112: Northeast | AP112: Connecticut | AQ112: 664 | AS112: 1024 | AT112: 2011 | AU112: West --> Northeast | AV112: West | AW112: Arizona | AX112: Northeast | AY112: Connecticut | AZ112: 1387 | BB112: 571 | BC112: 2012 | BD112: West --> Northeast | BE112: West | BF112: Arizona | BG112: Northeast | BH112: Connecticut | BI112: 3167
A113: 2291 | B113: 2010 | C113: West --> South | D113: West | E113: Arizona | F113: South | G113: Delaware | H113: 60 | AJ113: 2291 | AK113: 2010 | AL113: West --> South | AM113: West | AN113: Arizona | AO113: South | AP113: Delaware | AQ113: 60 | AS113: 1563 | AT113: 2011 | AU113: West --> South | AV113: West | AW113: Arizona | AX113: South | AY113: Delaware | AZ113: 541 | BB113: 2055 | BC113: 2012 | BD113: West --> South | BE113: West | BF113: Arizona | BG113: South | BH113: Delaware | BI113: 188
A114: 1426 | B114: 2010 | C114: West --> South | D114: West | E114: Arizona | F114: South | G114: District of Columbia | H114: 662 | AJ114: 1426 | AK114: 2010 | AL114: West --> South | AM114: West | AN114: Arizona | AO114: South | AP114: District of Columbia | AQ114: 662 | AS114: 2366 | AT114: 2011 | AU114: West --> South | AV114: West | AW114: Arizona | AX114: South | AY114: District of Columbia | AZ114: 43 | BB114: 1306 | BC114: 2012 | BD114: West --> South | BE114: West | BF114: Arizona | BG114: South | BH114: District of Columbia | BI114: 902
A115: 467 | B115: 2010 | C115: West --> South | D115: West | E115: Arizona | F115: South | G115: Florida | H115: 3907 | AJ115: 467 | AK115: 2010 | AL115: West --> South | AM115: West | AN115: Arizona | AO115: South | AP115: Florida | AQ115: 3907 | AS115: 215 | AT115: 2011 | AU115: West --> South | AV115: West | AW115: Arizona | AX115: South | AY115: Florida | AZ115: 8451 | BB115: 292 | BC115: 2012 | BD115: West --> South | BE115: West | BF115: Arizona | BG115: South | BH115: Florida | BI115: 6473
A116: 648 | B116: 2010 | C116: West --> South | D116: West | E116: Arizona | F116: South | G116: Georgia | H116: 2554 | AJ116: 648 | AK116: 2010 | AL116: West --> South | AM116: West | AN116: Arizona | AO116: South | AP116: Georgia | AQ116: 2554 | AS116: 433 | AT116: 2011 | AU116: West --> South | AV116: West | AW116: Arizona | AX116: South | AY116: Georgia | AZ116: 4292 | BB116: 284 | BC116: 2012 | BD116: West --> South | BE116: West | BF116: Arizona | BG116: South | BH116: Georgia | BI116: 6657
A117: 1001 | B117: 2010 | C117: West --> West | D117: West | E117: Arizona | F117: West | G117: Hawaii | H117: 1398 | AJ117: 1001 | AK117: 2010 | AL117: West --> West | AM117: West | AN117: Arizona | AO117: West | AP117: Hawaii | AQ117: 1398 | AS117: 611 | AT117: 2011 | AU117: West --> West | AV117: West | AW117: Arizona | AX117: West | AY117: Hawaii | AZ117: 2900 | BB117: 836 | BC117: 2012 | BD117: West --> West | BE117: West | BF117: Arizona | BG117: West | BH117: Hawaii | BI117: 1865
A118: 552 | B118: 2010 | C118: West --> West | D118: West | E118: Arizona | F118: West | G118: Idaho | H118: 3086 | AJ118: 552 | AK118: 2010 | AL118: West --> West | AM118: West | AN118: Arizona | AO118: West | AP118: Idaho | AQ118: 3086 | AS118: 522 | AT118: 2011 | AU118: West --> West | AV118: West | AW118: Arizona | AX118: West | AY118: Idaho | AZ118: 3543 | BB118: 714 | BC118: 2012 | BD118: West --> West | BE118: West | BF118: Arizona | BG118: West | BH118: Idaho | BI118: 2424
A119: 303 | B119: 2010 | C119: West --> Midwest | D119: West | E119: Arizona | F119: Midwest | G119: Illinois | H119: 5921 | AJ119: 303 | AK119: 2010 | AL119: West --> Midwest | AM119: West | AN119: Arizona | AO119: Midwest | AP119: Illinois | AQ119: 5921 | AS119: 240 | AT119: 2011 | AU119: West --> Midwest | AV119: West | AW119: Arizona | AX119: Midwest | AY119: Illinois | AZ119: 7657 | BB119: 262 | BC119: 2012 | BD119: West --> Midwest | BE119: West | BF119: Arizona | BG119: Midwest | BH119: Illinois | BI119: 7139
A120: 725 | B120: 2010 | C120: West --> Midwest | D120: West | E120: Arizona | F120: Midwest | G120: Indiana | H120: 2210 | AJ120: 725 | AK120: 2010 | AL120: West --> Midwest | AM120: West | AN120: Arizona | AO120: Midwest | AP120: Indiana | AQ120: 2210 | AS120: 466 | AT120: 2011 | AU120: West --> Midwest | AV120: West | AW120: Arizona | AX120: Midwest | AY120: Indiana | AZ120: 3975 | BB120: 639 | BC120: 2012 | BD120: West --> Midwest | BE120: West | BF120: Arizona | BG120: Midwest | BH120: Indiana | BI120: 2763
A121: 966 | B121: 2010 | C121: West --> Midwest | D121: West | E121: Arizona | F121: Midwest | G121: Iowa | H121: 1483 | AJ121: 966 | AK121: 2010 | AL121: West --> Midwest | AM121: West | AN121: Arizona | AO121: Midwest | AP121: Iowa | AQ121: 1483 | AS121: 1009 | AT121: 2011 | AU121: West --> Midwest | AV121: West | AW121: Arizona | AX121: Midwest | AY121: Iowa | AZ121: 1411 | BB121: 924 | BC121: 2012 | BD121: West --> Midwest | BE121: West | BF121: Arizona | BG121: Midwest | BH121: Iowa | BI121: 1590
A122: 716 | B122: 2010 | C122: West --> Midwest | D122: West | E122: Arizona | F122: Midwest | G122: Kansas | H122: 2238 | AJ122: 716 | AK122: 2010 | AL122: West --> Midwest | AM122: West | AN122: Arizona | AO122: Midwest | AP122: Kansas | AQ122: 2238 | AS122: 793 | AT122: 2011 | AU122: West --> Midwest | AV122: West | AW122: Arizona | AX122: Midwest | AY122: Kansas | AZ122: 2028 | BB122: 581 | BC122: 2012 | BD122: West --> Midwest | BE122: West | BF122: Arizona | BG122: Midwest | BH122: Kansas | BI122: 3094
A123: 641 | B123: 2010 | C123: West --> South | D123: West | E123: Arizona | F123: South | G123: Kentucky | H123: 2598 | AJ123: 641 | AK123: 2010 | AL123: West --> South | AM123: West | AN123: Arizona | AO123: South | AP123: Kentucky | AQ123: 2598 | AS123: 858 | AT123: 2011 | AU123: West --> South | AV123: West | AW123: Arizona | AX123: South | AY123: Kentucky | AZ123: 1818 | BB123: 1161 | BC123: 2012 | BD123: West --> South | BE123: West | BF123: Arizona | BG123: South | BH123: Kentucky | BI123: 1103
A124: 795 | B124: 2010 | C124: West --> South | D124: West | E124: Arizona | F124: South | G124: Louisiana | H124: 1960 | AJ124: 795 | AK124: 2010 | AL124: West --> South | AM124: West | AN124: Arizona | AO124: South | AP124: Louisiana | AQ124: 1960 | AS124: 800 | AT124: 2011 | AU124: West --> South | AV124: West | AW124: Arizona | AX124: South | AY124: Louisiana | AZ124: 2010 | BB124: 800 | BC124: 2012 | BD124: West --> South | BE124: West | BF124: Arizona | BG124: South | BH124: Louisiana | BI124: 2021
A125: 1902 | B125: 2010 | C125: West --> Northeast | D125: West | E125: Arizona | F125: Northeast | G125: Maine | H125: 254 | AJ125: 1902 | AK125: 2010 | AL125: West --> Northeast | AM125: West | AN125: Arizona | AO125: Northeast | AP125: Maine | AQ125: 254 | AS125: 1818 | AT125: 2011 | AU125: West --> Northeast | AV125: West | AW125: Arizona | AX125: Northeast | AY125: Maine | AZ125: 325 | BB125: 1976 | BC125: 2012 | BD125: West --> Northeast | BE125: West | BF125: Arizona | BG125: Northeast | BH125: Maine | BI125: 230
A126: 1133 | B126: 2010 | C126: West --> South | D126: West | E126: Arizona | F126: South | G126: Maryland | H126: 1124 | AJ126: 1133 | AK126: 2010 | AL126: West --> South | AM126: West | AN126: Arizona | AO126: South | AP126: Maryland | AQ126: 1124 | AS126: 1259 | AT126: 2011 | AU126: West --> South | AV126: West | AW126: Arizona | AX126: South | AY126: Maryland | AZ126: 945 | BB126: 1402 | BC126: 2012 | BD126: West --> South | BE126: West | BF126: Arizona | BG126: South | BH126: Maryland | BI126: 760
A127: 924 | B127: 2010 | C127: West --> Northeast | D127: West | E127: Arizona | F127: Northeast | G127: Massachusetts | H127: 1572 | AJ127: 924 | AK127: 2010 | AL127: West --> Northeast | AM127: West | AN127: Arizona | AO127: Northeast | AP127: Massachusetts | AQ127: 1572 | AS127: 1209 | AT127: 2011 | AU127: West --> Northeast | AV127: West | AW127: Arizona | AX127: Northeast | AY127: Massachusetts | AZ127: 1017 | BB127: 809 | BC127: 2012 | BD127: West --> Northeast | BE127: West | BF127: Arizona | BG127: Northeast | BH127: Massachusetts | BI127: 1972
A128: 538 | B128: 2010 | C128: West --> Midwest | D128: West | E128: Arizona | F128: Midwest | G128: Michigan | H128: 3197 | AJ128: 538 | AK128: 2010 | AL128: West --> Midwest | AM128: West | AN128: Arizona | AO128: Midwest | AP128: Michigan | AQ128: 3197 | AS128: 485 | AT128: 2011 | AU128: West --> Midwest | AV128: West | AW128: Arizona | AX128: Midwest | AY128: Michigan | AZ128: 3840 | BB128: 260 | BC128: 2012 | BD128: West --> Midwest | BE128: West | BF128: Arizona | BG128: Midwest | BH128: Michigan | BI128: 7168
A129: 435 | B129: 2010 | C129: West --> Midwest | D129: West | E129: Arizona | F129: Midwest | G129: Minnesota | H129: 4165 | AJ129: 435 | AK129: 2010 | AL129: West --> Midwest | AM129: West | AN129: Arizona | AO129: Midwest | AP129: Minnesota | AQ129: 4165 | AS129: 720 | AT129: 2011 | AU129: West --> Midwest | AV129: West | AW129: Arizona | AX129: Midwest | AY129: Minnesota | AZ129: 2314 | BB129: 584 | BC129: 2012 | BD129: West --> Midwest | BE129: West | BF129: Arizona | BG129: Midwest | BH129: Minnesota | BI129: 3065
A130: 2016 | B130: 2010 | C130: West --> South | D130: West | E130: Arizona | F130: South | G130: Mississippi | H130: 187 | AJ130: 2016 | AK130: 2010 | AL130: West --> South | AM130: West | AN130: Arizona | AO130: South | AP130: Mississippi | AQ130: 187 | AS130: 1548 | AT130: 2011 | AU130: West --> South | AV130: West | AW130: Arizona | AX130: South | AY130: Mississippi | AZ130: 556 | BB130: 1443 | BC130: 2012 | BD130: West --> South | BE130: West | BF130: Arizona | BG130: South | BH130: Mississippi | BI130: 710
A131: 573 | B131: 2010 | C131: West --> Midwest | D131: West | E131: Arizona | F131: Midwest | G131: Missouri | H131: 2988 | AJ131: =RANK(AQ131,AQ:AQ,0) -> 573 | AK131: 2010 | AL131: West --> Midwest | AM131: West | AN131: Arizona | AO131: Midwest | AP131: Missouri | AQ131: 2988 | AS131: =RANK(AZ131,AZ:AZ) -> 710 | AT131: 2011 | AU131: West --> Midwest | AV131: West | AW131: Arizona | AX131: Midwest | AY131: Missouri | AZ131: 2356 | BB131: =RANK(BI131,BI:BI,0) -> 742 | BC131: 2012 | BD131: West --> Midwest | BE131: West | BF131: Arizona | BG131: Midwest | BH131: Missouri | BI131: 2297
A132: =RANK(H132,$H$2:$H$2705) -> 809 | B132: 2010 | C132: West --> West | D132: West | E132: Arizona | F132: West | G132: Montana | H132: 1909 | AJ132: 809 | AK132: 2010 | AL132: West --> West | AM132: West | AN132: Arizona | AO132: West | AP132: Montana | AQ132: 1909 | AS132: 815 | AT132: 2011 | AU132: West --> West | AV132: West | AW132: Arizona | AX132: West | AY132: Montana | AZ132: 1971 | BB132: 940 | BC132: 2012 | BD132: West --> West | BE132: West | BF132: Arizona | BG132: West | BH132: Montana | BI132: 1548
A133: 697 | B133: 2010 | C133: West --> Midwest | D133: West | E133: Arizona | F133: Midwest | G133: Nebraska | H133: 2322 | AJ133: 697 | AK133: 2010 | AL133: West --> Midwest | AM133: West | AN133: Arizona | AO133: Midwest | AP133: Nebraska | AQ133: 2322 | AS133: 915 | AT133: 2011 | AU133: West --> Midwest | AV133: West | AW133: Arizona | AX133: Midwest | AY133: Nebraska | AZ133: 1646 | BB133: 718 | BC133: 2012 | BD133: West --> Midwest | BE133: West | BF133: Arizona | BG133: Midwest | BH133: Nebraska | BI133: 2406
A134: 225 | B134: 2010 | C134: West --> West | D134: West | E134: Arizona | F134: West | G134: Nevada | H134: 7818 | AJ134: 225 | AK134: 2010 | AL134: West --> West | AM134: West | AN134: Arizona | AO134: West | AP134: Nevada | AQ134: 7818 | AS134: 170 | AT134: 2011 | AU134: West --> West | AV134: West | AW134: Arizona | AX134: West | AY134: Nevada | AZ134: 10142 | BB134: 208 | BC134: 2012 | BD134: West --> West | BE134: West | BF134: Arizona | BG134: West | BH134: Nevada | BI134: 8748
A135: 1538 | B135: 2010 | C135: West --> Northeast | D135: West | E135: Arizona | F135: Northeast | G135: New Hampshire | H135: 544 | AJ135: 1538 | AK135: 2010 | AL135: West --> Northeast | AM135: West | AN135: Arizona | AO135: Northeast | AP135: New Hampshire | AQ135: 544 | AS135: 1942 | AT135: 2011 | AU135: West --> Northeast | AV135: West | AW135: Arizona | AX135: Northeast | AY135: New Hampshire | AZ135: 246 | BB135: 1685 | BC135: 2012 | BD135: West --> Northeast | BE135: West | BF135: Arizona | BG135: Northeast | BH135: New Hampshire | BI135: 440
A136: 905 | B136: 2010 | C136: West --> Northeast | D136: West | E136: Arizona | F136: Northeast | G136: New Jersey | H136: 1625 | AJ136: 905 | AK136: 2010 | AL136: West --> Northeast | AM136: West | AN136: Arizona | AO136: Northeast | AP136: New Jersey | AQ136: 1625 | AS136: 496 | AT136: 2011 | AU136: West --> Northeast | AV136: West | AW136: Arizona | AX136: Northeast | AY136: New Jersey | AZ136: 3784 | BB136: 1035 | BC136: 2012 | BD136: West --> Northeast | BE136: West | BF136: Arizona | BG136: Northeast | BH136: New Jersey | BI136: 1328
A137: 294 | B137: 2010 | C137: West --> West | D137: West | E137: Arizona | F137: West | G137: New Mexico | H137: 6117 | AJ137: 294 | AK137: 2010 | AL137: West --> West | AM137: West | AN137: Arizona | AO137: West | AP137: New Mexico | AQ137: 6117 | AS137: 249 | AT137: 2011 | AU137: West --> West | AV137: West | AW137: Arizona | AX137: West | AY137: New Mexico | AZ137: 7444 | BB137: 296 | BC137: 2012 | BD137: West --> West | BE137: West | BF137: Arizona | BG137: West | BH137: New Mexico | BI137: 6391
A138: 625 | B138: 2010 | C138: West --> Northeast | D138: West | E138: Arizona | F138: Northeast | G138: New York | H138: 2649 | AJ138: 625 | AK138: 2010 | AL138: West --> Northeast | AM138: West | AN138: Arizona | AO138: Northeast | AP138: New York | AQ138: 2649 | AS138: 623 | AT138: 2011 | AU138: West --> Northeast | AV138: West | AW138: Arizona | AX138: Northeast | AY138: New York | AZ138: 2821 | BB138: 448 | BC138: 2012 | BD138: West --> Northeast | BE138: West | BF138: Arizona | BG138: Northeast | BH138: New York | BI138: 4146
A139: 593 | B139: 2010 | C139: West --> South | D139: West | E139: Arizona | F139: South | G139: North Carolina | H139: 2847 | AJ139: 593 | AK139: 2010 | AL139: West --> South | AM139: West | AN139: Arizona | AO139: South | AP139: North Carolina | AQ139: 2847 | AS139: 435 | AT139: 2011 | AU139: West --> South | AV139: West | AW139: Arizona | AX139: South | AY139: North Carolina | AZ139: 4286 | BB139: 519 | BC139: 2012 | BD139: West --> South | BE139: West | BF139: Arizona | BG139: South | BH139: North Carolina | BI139: 3493
A140: 1426 | B140: 2010 | C140: West --> Midwest | D140: West | E140: Arizona | F140: Midwest | G140: North Dakota | H140: 662 | AJ140: 1426 | AK140: 2010 | AL140: West --> Midwest | AM140: West | AN140: Arizona | AO140: Midwest | AP140: North Dakota | AQ140: 662 | AS140: 1066 | AT140: 2011 | AU140: West --> Midwest | AV140: West | AW140: Arizona | AX140: Midwest | AY140: North Dakota | AZ140: 1313 | BB140: 931 | BC140: 2012 | BD140: West --> Midwest | BE140: West | BF140: Arizona | BG140: Midwest | BH140: North Dakota | BI140: 1571
A141: 373 | B141: 2010 | C141: West --> Midwest | D141: West | E141: Arizona | F141: Midwest | G141: Ohio | H141: 4715 | AJ141: 373 | AK141: 2010 | AL141: West --> Midwest | AM141: West | AN141: Arizona | AO141: Midwest | AP141: Ohio | AQ141: 4715 | AS141: 277 | AT141: 2011 | AU141: West --> Midwest | AV141: West | AW141: Arizona | AX141: Midwest | AY141: Ohio | AZ141: 6763 | BB141: 385 | BC141: 2012 | BD141: West --> Midwest | BE141: West | BF141: Arizona | BG141: Midwest | BH141: Ohio | BI141: 4929
A142: 606 | B142: 2010 | C142: West --> South | D142: West | E142: Arizona | F142: South | G142: Oklahoma | H142: 2759 | AJ142: 606 | AK142: 2010 | AL142: West --> South | AM142: West | AN142: Arizona | AO142: South | AP142: Oklahoma | AQ142: 2759 | AS142: 497 | AT142: 2011 | AU142: West --> South | AV142: West | AW142: Arizona | AX142: South | AY142: Oklahoma | AZ142: 3770 | BB142: 599 | BC142: 2012 | BD142: West --> South | BE142: West | BF142: Arizona | BG142: South | BH142: Oklahoma | BI142: 2974
A143: 339 | B143: 2010 | C143: West --> West | D143: West | E143: Arizona | F143: West | G143: Oregon | H143: 5264 | AJ143: 339 | AK143: 2010 | AL143: West --> West | AM143: West | AN143: Arizona | AO143: West | AP143: Oregon | AQ143: 5264 | AS143: 228 | AT143: 2011 | AU143: West --> West | AV143: West | AW143: Arizona | AX143: West | AY143: Oregon | AZ143: 7911 | BB143: 237 | BC143: 2012 | BD143: West --> West | BE143: West | BF143: Arizona | BG143: West | BH143: Oregon | BI143: 7954
A144: 494 | B144: 2010 | C144: West --> Northeast | D144: West | E144: Arizona | F144: Northeast | G144: Pennsylvania | H144: 3668 | AJ144: 494 | AK144: 2010 | AL144: West --> Northeast | AM144: West | AN144: Arizona | AO144: Northeast | AP144: Pennsylvania | AQ144: 3668 | AS144: 726 | AT144: 2011 | AU144: West --> Northeast | AV144: West | AW144: Arizona | AX144: Northeast | AY144: Pennsylvania | AZ144: 2278 | BB144: 514 | BC144: 2012 | BD144: West --> Northeast | BE144: West | BF144: Arizona | BG144: Northeast | BH144: Pennsylvania | BI144: 3529
A145: 1804 | B145: 2010 | C145: West --> Northeast | D145: West | E145: Arizona | F145: Northeast | G145: Rhode Island | H145: 324 | AJ145: 1804 | AK145: 2010 | AL145: West --> Northeast | AM145: West | AN145: Arizona | AO145: Northeast | AP145: Rhode Island | AQ145: 324 | AS145: 2004 | AT145: 2011 | AU145: West --> Northeast | AV145: West | AW145: Arizona | AX145: Northeast | AY145: Rhode Island | AZ145: 214 | BB145: 2256 | BC145: 2012 | BD145: West --> Northeast | BE145: West | BF145: Arizona | BG145: Northeast | BH145: Rhode Island | BI145: 93
A146: 976 | B146: 2010 | C146: West --> South | D146: West | E146: Arizona | F146: South | G146: South Carolina | H146: 1457 | AJ146: 976 | AK146: 2010 | AL146: West --> South | AM146: West | AN146: Arizona | AO146: South | AP146: South Carolina | AQ146: 1457 | AS146: 815 | AT146: 2011 | AU146: West --> South | AV146: West | AW146: Arizona | AX146: South | AY146: South Carolina | AZ146: 1971 | BB146: 763 | BC146: 2012 | BD146: West --> South | BE146: West | BF146: Arizona | BG146: South | BH146: South Carolina | BI146: 2222
A147: 1356 | B147: 2010 | C147: West --> Midwest | D147: West | E147: Arizona | F147: Midwest | G147: South Dakota | H147: 745 | AJ147: 1356 | AK147: 2010 | AL147: West --> Midwest | AM147: West | AN147: Arizona | AO147: Midwest | AP147: South Dakota | AQ147: 745 | AS147: 1002 | AT147: 2011 | AU147: West --> Midwest | AV147: West | AW147: Arizona | AX147: Midwest | AY147: South Dakota | AZ147: 1422 | BB147: 1691 | BC147: 2012 | BD147: West --> Midwest | BE147: West | BF147: Arizona | BG147: Midwest | BH147: South Dakota | BI147: 435
A148: 704 | B148: 2010 | C148: West --> South | D148: West | E148: Arizona | F148: South | G148: Tennessee | H148: 2291 | AJ148: 704 | AK148: 2010 | AL148: West --> South | AM148: West | AN148: Arizona | AO148: South | AP148: Tennessee | AQ148: 2291 | AS148: 1046 | AT148: 2011 | AU148: West --> South | AV148: West | AW148: Arizona | AX148: South | AY148: Tennessee | AZ148: 1346 | BB148: 755 | BC148: 2012 | BD148: West --> South | BE148: West | BF148: Arizona | BG148: South | BH148: Tennessee | BI148: 2250
A149: 76 | B149: 2010 | C149: West --> South | D149: West | E149: Arizona | F149: South | G149: Texas | H149: 16521 | AJ149: 76 | AK149: 2010 | AL149: West --> South | AM149: West | AN149: Arizona | AO149: South | AP149: Texas | AQ149: 16521 | AS149: 52 | AT149: 2011 | AU149: West --> South | AV149: West | AW149: Arizona | AX149: South | AY149: Texas | AZ149: 20073 | BB149: 67 | BC149: 2012 | BD149: West --> South | BE149: West | BF149: Arizona | BG149: South | BH149: Texas | BI149: 18908
A150: 215 | B150: 2010 | C150: West --> West | D150: West | E150: Arizona | F150: West | G150: Utah | H150: 8147 | AJ150: 215 | AK150: 2010 | AL150: West --> West | AM150: West | AN150: Arizona | AO150: West | AP150: Utah | AQ150: 8147 | AS150: 288 | AT150: 2011 | AU150: West --> West | AV150: West | AW150: Arizona | AX150: West | AY150: Utah | AZ150: 6585 | BB150: 236 | BC150: 2012 | BD150: West --> West | BE150: West | BF150: Arizona | BG150: West | BH150: Utah | BI150: 7966
A151: 2277 | B151: 2010 | C151: West --> Northeast | D151: West | E151: Arizona | F151: Northeast | G151: Vermont | H151: 65 | AJ151: 2277 | AK151: 2010 | AL151: West --> Northeast | AM151: West | AN151: Arizona | AO151: Northeast | AP151: Vermont | AQ151: 65 | AS151: 1840 | AT151: 2011 | AU151: West --> Northeast | AV151: West | AW151: Arizona | AX151: Northeast | AY151: Vermont | AZ151: 310 | BB151: 2176 | BC151: 2012 | BD151: West --> Northeast | BE151: West | BF151: Arizona | BG151: Northeast | BH151: Vermont | BI151: 127
A152: 479 | B152: 2010 | C152: West --> South | D152: West | E152: Arizona | F152: South | G152: Virginia | H152: 3807 | AJ152: 479 | AK152: 2010 | AL152: West --> South | AM152: West | AN152: Arizona | AO152: South | AP152: Virginia | AQ152: 3807 | AS152: 395 | AT152: 2011 | AU152: West --> South | AV152: West | AW152: Arizona | AX152: South | AY152: Virginia | AZ152: 4679 | BB152: 715 | BC152: 2012 | BD152: West --> South | BE152: West | BF152: Arizona | BG152: South | BH152: Virginia | BI152: 2420
A153: 301 | B153: 2010 | C153: West --> West | D153: West | E153: Arizona | F153: West | G153: Washington | H153: 5971 | AJ153: 301 | AK153: 2010 | AL153: West --> West | AM153: West | AN153: Arizona | AO153: West | AP153: Washington | AQ153: 5971 | AS153: 128 | AT153: 2011 | AU153: West --> West | AV153: West | AW153: Arizona | AX153: West | AY153: Washington | AZ153: 12397 | BB153: 226 | BC153: 2012 | BD153: West --> West | BE153: West | BF153: Arizona | BG153: West | BH153: Washington | BI153: 8362
A154: 2399 | B154: 2010 | C154: West --> South | D154: West | E154: Arizona | F154: South | G154: West Virginia | H154: 0 | AJ154: 2399 | AK154: 2010 | AL154: West --> South | AM154: West | AN154: Arizona | AO154: South | AP154: West Virginia | AQ154: 0 | AS154: 2350 | AT154: 2011 | AU154: West --> South | AV154: West | AW154: Arizona | AX154: South | AY154: West Virginia | AZ154: 50 | BB154: 2288 | BC154: 2012 | BD154: West --> South | BE154: West | BF154: Arizona | BG154: South | BH154: West Virginia | BI154: 79
A155: 829 | B155: 2010 | C155: West --> Midwest | D155: West | E155: Arizona | F155: Midwest | G155: Wisconsin | H155: 1854 | AJ155: 829 | AK155: 2010 | AL155: West --> Midwest | AM155: West | AN155: Arizona | AO155: Midwest | AP155: Wisconsin | AQ155: 1854 | AS155: 455 | AT155: 2011 | AU155: West --> Midwest | AV155: West | AW155: Arizona | AX155: Midwest | AY155: Wisconsin | AZ155: 4045 | BB155: 557 | BC155: 2012 | BD155: West --> Midwest | BE155: West | BF155: Arizona | BG155: Midwest | BH155: Wisconsin | BI155: 3257
A156: 954 | B156: 2010 | C156: West --> West | D156: West | E156: Arizona | F156: West | G156: Wyoming | H156: 1511 | AJ156: 954 | AK156: 2010 | AL156: West --> West | AM156: West | AN156: Arizona | AO156: West | AP156: Wyoming | AQ156: 1511 | AS156: 1756 | AT156: 2011 | AU156: West --> West | AV156: West | AW156: Arizona | AX156: West | AY156: Wyoming | AZ156: 369 | BB156: 802 | BC156: 2012 | BD156: West --> West | BE156: West | BF156: Arizona | BG156: West | BH156: Wyoming | BI156: 2014
A157: 1857 | B157: 2010 | C157: West --> Northeast | D157: West | E157: Arizona | F157: Northeast | G157: Puerto Rico | H157: 288 | AJ157: 1857 | AK157: 2010 | AL157: West --> Northeast | AM157: West | AN157: Arizona | AO157: Northeast | AP157: Puerto Rico | AQ157: 288 | AS157: 1973 | AT157: 2011 | AU157: West --> Northeast | AV157: West | AW157: Arizona | AX157: Northeast | AY157: Puerto Rico | AZ157: 229 | BB157: 2354 | BC157: 2012 | BD157: West --> Northeast | BE157: West | BF157: Arizona | BG157: Northeast | BH157: Puerto Rico | BI157: 54
A158: 967 | B158: 2010 | C158: South --> South | D158: South | E158: Arkansas | F158: South | G158: Alabama | H158: 1481 | AJ158: 967 | AK158: 2010 | AL158: South --> South | AM158: South | AN158: Arkansas | AO158: South | AP158: Alabama | AQ158: 1481 | AS158: 917 | AT158: 2011 | AU158: South --> South | AV158: South | AW158: Arkansas | AX158: South | AY158: Alabama | AZ158: 1642 | BB158: 1476 | BC158: 2012 | BD158: South --> South | BE158: South | BF158: Arkansas | BG158: South | BH158: Alabama | BI158: 660
A159: 2336 | B159: 2010 | C159: South --> West | D159: South | E159: Arkansas | F159: West | G159: Alaska | H159: 47 | AJ159: 2336 | AK159: 2010 | AL159: South --> West | AM159: South | AN159: Arkansas | AO159: West | AP159: Alaska | AQ159: 47 | AS159: 2046 | AT159: 2011 | AU159: South --> West | AV159: South | AW159: Arkansas | AX159: West | AY159: Alaska | AZ159: 190 | BB159: 2036 | BC159: 2012 | BD159: South --> West | BE159: South | BF159: Arkansas | BG159: West | BH159: Alaska | BI159: 196
A160: 1404 | B160: 2010 | C160: South --> West | D160: South | E160: Arkansas | F160: West | G160: Arizona | H160: 689 | AJ160: 1404 | AK160: 2010 | AL160: South --> West | AM160: South | AN160: Arkansas | AO160: West | AP160: Arizona | AQ160: 689 | AS160: 1181 | AT160: 2011 | AU160: South --> West | AV160: South | AW160: Arkansas | AX160: West | AY160: Arizona | AZ160: 1066 | BB160: 1099 | BC160: 2012 | BD160: South --> West | BE160: South | BF160: Arkansas | BG160: West | BH160: Arizona | BI160: 1214
A161: 2399 | B161: 2010 | C161: South --> South | D161: South | E161: Arkansas | F161: South | G161: Arkansas | H161: 0 | AJ161: 2399 | AK161: 2010 | AL161: South --> South | AM161: South | AN161: Arkansas | AO161: South | AP161: Arkansas | AQ161: 0 | AS161: 2462 | AT161: 2011 | AU161: South --> South | AV161: South | AW161: Arkansas | AX161: South | AY161: Arkansas | AZ161: 0 | BB161: 2470 | BC161: 2012 | BD161: South --> South | BE161: South | BF161: Arkansas | BG161: South | BH161: Arkansas | BI161: 0
A162: 434 | B162: 2010 | C162: South --> West | D162: South | E162: Arkansas | F162: West | G162: California | H162: 4172 | AJ162: 434 | AK162: 2010 | AL162: South --> West | AM162: South | AN162: Arkansas | AO162: West | AP162: California | AQ162: 4172 | AS162: 652 | AT162: 2011 | AU162: South --> West | AV162: South | AW162: Arkansas | AX162: West | AY162: California | AZ162: 2648 | BB162: 521 | BC162: 2012 | BD162: South --> West | BE162: South | BF162: Arkansas | BG162: West | BH162: California | BI162: 3472
A163: 1186 | B163: 2010 | C163: South --> West | D163: South | E163: Arkansas | F163: West | G163: Colorado | H163: 1034 | AJ163: 1186 | AK163: 2010 | AL163: South --> West | AM163: South | AN163: Arkansas | AO163: West | AP163: Colorado | AQ163: 1034 | AS163: 928 | AT163: 2011 | AU163: South --> West | AV163: South | AW163: Arkansas | AX163: West | AY163: Colorado | AZ163: 1615 | BB163: 1200 | BC163: 2012 | BD163: South --> West | BE163: South | BF163: Arkansas | BG163: West | BH163: Colorado | BI163: 1043
A164: 1787 | B164: 2010 | C164: South --> Northeast | D164: South | E164: Arkansas | F164: Northeast | G164: Connecticut | H164: 334 | AJ164: 1787 | AK164: 2010 | AL164: South --> Northeast | AM164: South | AN164: Arkansas | AO164: Northeast | AP164: Connecticut | AQ164: 334 | AS164: 2252 | AT164: 2011 | AU164: South --> Northeast | AV164: South | AW164: Arkansas | AX164: Northeast | AY164: Connecticut | AZ164: 84 | BB164: 2028 | BC164: 2012 | BD164: South --> Northeast | BE164: South | BF164: Arkansas | BG164: Northeast | BH164: Connecticut | BI164: 200
A165: 2399 | B165: 2010 | C165: South --> South | D165: South | E165: Arkansas | F165: South | G165: Delaware | H165: 0 | AJ165: 2399 | AK165: 2010 | AL165: South --> South | AM165: South | AN165: Arkansas | AO165: South | AP165: Delaware | AQ165: 0 | AS165: 2462 | AT165: 2011 | AU165: South --> South | AV165: South | AW165: Arkansas | AX165: South | AY165: Delaware | AZ165: 0 | BB165: 2470 | BC165: 2012 | BD165: South --> South | BE165: South | BF165: Arkansas | BG165: South | BH165: Delaware | BI165: 0
A166: 2072 | B166: 2010 | C166: South --> South | D166: South | E166: Arkansas | F166: South | G166: District of Columbia | H166: 155 | AJ166: 2072 | AK166: 2010 | AL166: South --> South | AM166: South | AN166: Arkansas | AO166: South | AP166: District of Columbia | AQ166: 155 | AS166: 2262 | AT166: 2011 | AU166: South --> South | AV166: South | AW166: Arkansas | AX166: South | AY166: District of Columbia | AZ166: 81 | BB166: 2399 | BC166: 2012 | BD166: South --> South | BE166: South | BF166: Arkansas | BG166: South | BH166: District of Columbia | BI166: 35
A167: 500 | B167: 2010 | C167: South --> South | D167: South | E167: Arkansas | F167: South | G167: Florida | H167: 3611 | AJ167: 500 | AK167: 2010 | AL167: South --> South | AM167: South | AN167: Arkansas | AO167: South | AP167: Florida | AQ167: 3611 | AS167: 590 | AT167: 2011 | AU167: South --> South | AV167: South | AW167: Arkansas | AX167: South | AY167: Florida | AZ167: 3025 | BB167: 541 | BC167: 2012 | BD167: South --> South | BE167: South | BF167: Arkansas | BG167: South | BH167: Florida | BI167: 3321
A168: 1486 | B168: 2010 | C168: South --> South | D168: South | E168: Arkansas | F168: South | G168: Georgia | H168: 599 | AJ168: 1486 | AK168: 2010 | AL168: South --> South | AM168: South | AN168: Arkansas | AO168: South | AP168: Georgia | AQ168: 599 | AS168: 766 | AT168: 2011 | AU168: South --> South | AV168: South | AW168: Arkansas | AX168: South | AY168: Georgia | AZ168: 2112 | BB168: 1201 | BC168: 2012 | BD168: South --> South | BE168: South | BF168: Arkansas | BG168: South | BH168: Georgia | BI168: 1041
A169: 2399 | B169: 2010 | C169: South --> West | D169: South | E169: Arkansas | F169: West | G169: Hawaii | H169: 0 | AJ169: 2399 | AK169: 2010 | AL169: South --> West | AM169: South | AN169: Arkansas | AO169: West | AP169: Hawaii | AQ169: 0 | AS169: 1947 | AT169: 2011 | AU169: South --> West | AV169: South | AW169: Arkansas | AX169: West | AY169: Hawaii | AZ169: 242 | BB169: 2426 | BC169: 2012 | BD169: South --> West | BE169: South | BF169: Arkansas | BG169: West | BH169: Hawaii | BI169: 24
A170: 2344 | B170: 2010 | C170: South --> West | D170: South | E170: Arkansas | F170: West | G170: Idaho | H170: 45 | AJ170: 2344 | AK170: 2010 | AL170: South --> West | AM170: South | AN170: Arkansas | AO170: West | AP170: Idaho | AQ170: 45 | AS170: 1985 | AT170: 2011 | AU170: South --> West | AV170: South | AW170: Arkansas | AX170: West | AY170: Idaho | AZ170: 224 | BB170: 1875 | BC170: 2012 | BD170: South --> West | BE170: South | BF170: Arkansas | BG170: West | BH170: Idaho | BI170: 291
A171: 1094 | B171: 2010 | C171: South --> Midwest | D171: South | E171: Arkansas | F171: Midwest | G171: Illinois | H171: 1194 | AJ171: 1094 | AK171: 2010 | AL171: South --> Midwest | AM171: South | AN171: Arkansas | AO171: Midwest | AP171: Illinois | AQ171: 1194 | AS171: 570 | AT171: 2011 | AU171: South --> Midwest | AV171: South | AW171: Arkansas | AX171: Midwest | AY171: Illinois | AZ171: 3185 | BB171: 927 | BC171: 2012 | BD171: South --> Midwest | BE171: South | BF171: Arkansas | BG171: Midwest | BH171: Illinois | BI171: 1587
A172: 938 | B172: 2010 | C172: South --> Midwest | D172: South | E172: Arkansas | F172: Midwest | G172: Indiana | H172: 1548 | AJ172: 938 | AK172: 2010 | AL172: South --> Midwest | AM172: South | AN172: Arkansas | AO172: Midwest | AP172: Indiana | AQ172: 1548 | AS172: 798 | AT172: 2011 | AU172: South --> Midwest | AV172: South | AW172: Arkansas | AX172: Midwest | AY172: Indiana | AZ172: 2016 | BB172: 1569 | BC172: 2012 | BD172: South --> Midwest | BE172: South | BF172: Arkansas | BG172: Midwest | BH172: Indiana | BI172: 564
A173: 1913 | B173: 2010 | C173: South --> Midwest | D173: South | E173: Arkansas | F173: Midwest | G173: Iowa | H173: 247 | AJ173: 1913 | AK173: 2010 | AL173: South --> Midwest | AM173: South | AN173: Arkansas | AO173: Midwest | AP173: Iowa | AQ173: 247 | AS173: 1674 | AT173: 2011 | AU173: South --> Midwest | AV173: South | AW173: Arkansas | AX173: Midwest | AY173: Iowa | AZ173: 433 | BB173: 1673 | BC173: 2012 | BD173: South --> Midwest | BE173: South | BF173: Arkansas | BG173: Midwest | BH173: Iowa | BI173: 451
A174: 921 | B174: 2010 | C174: South --> Midwest | D174: South | E174: Arkansas | F174: Midwest | G174: Kansas | H174: 1596 | AJ174: 921 | AK174: 2010 | AL174: South --> Midwest | AM174: South | AN174: Arkansas | AO174: Midwest | AP174: Kansas | AQ174: 1596 | AS174: 1224 | AT174: 2011 | AU174: South --> Midwest | AV174: South | AW174: Arkansas | AX174: Midwest | AY174: Kansas | AZ174: 998 | BB174: 781 | BC174: 2012 | BD174: South --> Midwest | BE174: South | BF174: Arkansas | BG174: Midwest | BH174: Kansas | BI174: 2158
A175: 1522 | B175: 2010 | C175: South --> South | D175: South | E175: Arkansas | F175: South | G175: Kentucky | H175: 558 | AJ175: 1522 | AK175: 2010 | AL175: South --> South | AM175: South | AN175: Arkansas | AO175: South | AP175: Kentucky | AQ175: 558 | AS175: 1184 | AT175: 2011 | AU175: South --> South | AV175: South | AW175: Arkansas | AX175: South | AY175: Kentucky | AZ175: 1058 | BB175: 1606 | BC175: 2012 | BD175: South --> South | BE175: South | BF175: Arkansas | BG175: South | BH175: Kentucky | BI175: 518
A176: 682 | B176: 2010 | C176: South --> South | D176: South | E176: Arkansas | F176: South | G176: Louisiana | H176: 2382 | AJ176: 682 | AK176: 2010 | AL176: South --> South | AM176: South | AN176: Arkansas | AO176: South | AP176: Louisiana | AQ176: 2382 | AS176: 632 | AT176: 2011 | AU176: South --> South | AV176: South | AW176: Arkansas | AX176: South | AY176: Louisiana | AZ176: 2774 | BB176: 495 | BC176: 2012 | BD176: South --> South | BE176: South | BF176: Arkansas | BG176: South | BH176: Louisiana | BI176: 3645
A177: 2272 | B177: 2010 | C177: South --> Northeast | D177: South | E177: Arkansas | F177: Northeast | G177: Maine | H177: 67 | AJ177: 2272 | AK177: 2010 | AL177: South --> Northeast | AM177: South | AN177: Arkansas | AO177: Northeast | AP177: Maine | AQ177: 67 | AS177: 2378 | AT177: 2011 | AU177: South --> Northeast | AV177: South | AW177: Arkansas | AX177: Northeast | AY177: Maine | AZ177: 38 | BB177: 2470 | BC177: 2012 | BD177: South --> Northeast | BE177: South | BF177: Arkansas | BG177: Northeast | BH177: Maine | BI177: 0
A178: 1871 | B178: 2010 | C178: South --> South | D178: South | E178: Arkansas | F178: South | G178: Maryland | H178: 273 | AJ178: 1871 | AK178: 2010 | AL178: South --> South | AM178: South | AN178: Arkansas | AO178: South | AP178: Maryland | AQ178: 273 | AS178: 1685 | AT178: 2011 | AU178: South --> South | AV178: South | AW178: Arkansas | AX178: South | AY178: Maryland | AZ178: 423 | BB178: 2152 | BC178: 2012 | BD178: South --> South | BE178: South | BF178: Arkansas | BG178: South | BH178: Maryland | BI178: 136
A179: 1985 | B179: 2010 | C179: South --> Northeast | D179: South | E179: Arkansas | F179: Northeast | G179: Massachusetts | H179: 206 | AJ179: 1985 | AK179: 2010 | AL179: South --> Northeast | AM179: South | AN179: Arkansas | AO179: Northeast | AP179: Massachusetts | AQ179: 206 | AS179: 2090 | AT179: 2011 | AU179: South --> Northeast | AV179: South | AW179: Arkansas | AX179: Northeast | AY179: Massachusetts | AZ179: 167 | BB179: 1736 | BC179: 2012 | BD179: South --> Northeast | BE179: South | BF179: Arkansas | BG179: Northeast | BH179: Massachusetts | BI179: 394
A180: 1455 | B180: 2010 | C180: South --> Midwest | D180: South | E180: Arkansas | F180: Midwest | G180: Michigan | H180: 636 | AJ180: 1455 | AK180: 2010 | AL180: South --> Midwest | AM180: South | AN180: Arkansas | AO180: Midwest | AP180: Michigan | AQ180: 636 | AS180: 784 | AT180: 2011 | AU180: South --> Midwest | AV180: South | AW180: Arkansas | AX180: Midwest | AY180: Michigan | AZ180: 2054 | BB180: 1301 | BC180: 2012 | BD180: South --> Midwest | BE180: South | BF180: Arkansas | BG180: Midwest | BH180: Michigan | BI180: 906
A181: 1863 | B181: 2010 | C181: South --> Midwest | D181: South | E181: Arkansas | F181: Midwest | G181: Minnesota | H181: 279 | AJ181: 1863 | AK181: 2010 | AL181: South --> Midwest | AM181: South | AN181: Arkansas | AO181: Midwest | AP181: Minnesota | AQ181: 279 | AS181: 1252 | AT181: 2011 | AU181: South --> Midwest | AV181: South | AW181: Arkansas | AX181: Midwest | AY181: Minnesota | AZ181: 951 | BB181: 1760 | BC181: 2012 | BD181: South --> Midwest | BE181: South | BF181: Arkansas | BG181: Midwest | BH181: Minnesota | BI181: 375
A182: 358 | B182: 2010 | C182: South --> South | D182: South | E182: Arkansas | F182: South | G182: Mississippi | H182: 4941 | AJ182: 358 | AK182: 2010 | AL182: South --> South | AM182: South | AN182: Arkansas | AO182: South | AP182: Mississippi | AQ182: 4941 | AS182: 719 | AT182: 2011 | AU182: South --> South | AV182: South | AW182: Arkansas | AX182: South | AY182: Mississippi | AZ182: 2315 | BB182: 659 | BC182: 2012 | BD182: South --> South | BE182: South | BF182: Arkansas | BG182: South | BH182: Mississippi | BI182: 2680
A183: 412 | B183: 2010 | C183: South --> Midwest | D183: South | E183: Arkansas | F183: Midwest | G183: Missouri | H183: 4381 | AJ183: 412 | AK183: 2010 | AL183: South --> Midwest | AM183: South | AN183: Arkansas | AO183: Midwest | AP183: Missouri | AQ183: 4381 | AS183: 305 | AT183: 2011 | AU183: South --> Midwest | AV183: South | AW183: Arkansas | AX183: Midwest | AY183: Missouri | AZ183: 6168 | BB183: 192 | BC183: 2012 | BD183: South --> Midwest | BE183: South | BF183: Arkansas | BG183: Midwest | BH183: Missouri | BI183: 9434
A184: 1417 | B184: 2010 | C184: South --> West | D184: South | E184: Arkansas | F184: West | G184: Montana | H184: 672 | AJ184: 1417 | AK184: 2010 | AL184: South --> West | AM184: South | AN184: Arkansas | AO184: West | AP184: Montana | AQ184: 672 | AS184: 2354 | AT184: 2011 | AU184: South --> West | AV184: South | AW184: Arkansas | AX184: West | AY184: Montana | AZ184: 49 | BB184: 2327 | BC184: 2012 | BD184: South --> West | BE184: South | BF184: Arkansas | BG184: West | BH184: Montana | BI184: 63
A185: 1415 | B185: 2010 | C185: South --> Midwest | D185: South | E185: Arkansas | F185: Midwest | G185: Nebraska | H185: 674 | AJ185: 1415 | AK185: 2010 | AL185: South --> Midwest | AM185: South | AN185: Arkansas | AO185: Midwest | AP185: Nebraska | AQ185: 674 | AS185: 2098 | AT185: 2011 | AU185: South --> Midwest | AV185: South | AW185: Arkansas | AX185: Midwest | AY185: Nebraska | AZ185: 161 | BB185: 1773 | BC185: 2012 | BD185: South --> Midwest | BE185: South | BF185: Arkansas | BG185: Midwest | BH185: Nebraska | BI185: 363
A186: 1552 | B186: 2010 | C186: South --> West | D186: South | E186: Arkansas | F186: West | G186: Nevada | H186: 530 | AJ186: 1552 | AK186: 2010 | AL186: South --> West | AM186: South | AN186: Arkansas | AO186: West | AP186: Nevada | AQ186: 530 | AS186: 1840 | AT186: 2011 | AU186: South --> West | AV186: South | AW186: Arkansas | AX186: West | AY186: Nevada | AZ186: 310 | BB186: 1788 | BC186: 2012 | BD186: South --> West | BE186: South | BF186: Arkansas | BG186: West | BH186: Nevada | BI186: 353
A187: 2399 | B187: 2010 | C187: South --> Northeast | D187: South | E187: Arkansas | F187: Northeast | G187: New Hampshire | H187: 0 | AJ187: 2399 | AK187: 2010 | AL187: South --> Northeast | AM187: South | AN187: Arkansas | AO187: Northeast | AP187: New Hampshire | AQ187: 0 | AS187: 2412 | AT187: 2011 | AU187: South --> Northeast | AV187: South | AW187: Arkansas | AX187: Northeast | AY187: New Hampshire | AZ187: 22 | BB187: 2470 | BC187: 2012 | BD187: South --> Northeast | BE187: South | BF187: Arkansas | BG187: Northeast | BH187: New Hampshire | BI187: 0
A188: 1897 | B188: 2010 | C188: South --> Northeast | D188: South | E188: Arkansas | F188: Northeast | G188: New Jersey | H188: 258 | AJ188: 1897 | AK188: 2010 | AL188: South --> Northeast | AM188: South | AN188: Arkansas | AO188: Northeast | AP188: New Jersey | AQ188: 258 | AS188: 2328 | AT188: 2011 | AU188: South --> Northeast | AV188: South | AW188: Arkansas | AX188: Northeast | AY188: New Jersey | AZ188: 57 | BB188: 2343 | BC188: 2012 | BD188: South --> Northeast | BE188: South | BF188: Arkansas | BG188: Northeast | BH188: New Jersey | BI188: 57
A189: 2242 | B189: 2010 | C189: South --> West | D189: South | E189: Arkansas | F189: West | G189: New Mexico | H189: 77 | AJ189: 2242 | AK189: 2010 | AL189: South --> West | AM189: South | AN189: Arkansas | AO189: West | AP189: New Mexico | AQ189: 77 | AS189: 1434 | AT189: 2011 | AU189: South --> West | AV189: South | AW189: Arkansas | AX189: West | AY189: New Mexico | AZ189: 682 | BB189: 1721 | BC189: 2012 | BD189: South --> West | BE189: South | BF189: Arkansas | BG189: West | BH189: New Mexico | BI189: 410
A190: 1753 | B190: 2010 | C190: South --> Northeast | D190: South | E190: Arkansas | F190: Northeast | G190: New York | H190: 362 | AJ190: 1753 | AK190: 2010 | AL190: South --> Northeast | AM190: South | AN190: Arkansas | AO190: Northeast | AP190: New York | AQ190: 362 | AS190: 1196 | AT190: 2011 | AU190: South --> Northeast | AV190: South | AW190: Arkansas | AX190: Northeast | AY190: New York | AZ190: 1041 | BB190: 1946 | BC190: 2012 | BD190: South --> Northeast | BE190: South | BF190: Arkansas | BG190: Northeast | BH190: New York | BI190: 247
A191: 1531 | B191: 2010 | C191: South --> South | D191: South | E191: Arkansas | F191: South | G191: North Carolina | H191: 550 | AJ191: 1531 | AK191: 2010 | AL191: South --> South | AM191: South | AN191: Arkansas | AO191: South | AP191: North Carolina | AQ191: 550 | AS191: 1814 | AT191: 2011 | AU191: South --> South | AV191: South | AW191: Arkansas | AX191: South | AY191: North Carolina | AZ191: 327 | BB191: 1326 | BC191: 2012 | BD191: South --> South | BE191: South | BF191: Arkansas | BG191: South | BH191: North Carolina | BI191: 861
A192: 2051 | B192: 2010 | C192: South --> Midwest | D192: South | E192: Arkansas | F192: Midwest | G192: North Dakota | H192: 168 | AJ192: 2051 | AK192: 2010 | AL192: South --> Midwest | AM192: South | AN192: Arkansas | AO192: Midwest | AP192: North Dakota | AQ192: 168 | AS192: 1937 | AT192: 2011 | AU192: South --> Midwest | AV192: South | AW192: Arkansas | AX192: Midwest | AY192: North Dakota | AZ192: 249 | BB192: 2470 | BC192: 2012 | BD192: South --> Midwest | BE192: South | BF192: Arkansas | BG192: Midwest | BH192: North Dakota | BI192: 0
A193: 1663 | B193: 2010 | C193: South --> Midwest | D193: South | E193: Arkansas | F193: Midwest | G193: Ohio | H193: 434 | AJ193: 1663 | AK193: 2010 | AL193: South --> Midwest | AM193: South | AN193: Arkansas | AO193: Midwest | AP193: Ohio | AQ193: 434 | AS193: 821 | AT193: 2011 | AU193: South --> Midwest | AV193: South | AW193: Arkansas | AX193: Midwest | AY193: Ohio | AZ193: 1952 | BB193: 1314 | BC193: 2012 | BD193: South --> Midwest | BE193: South | BF193: Arkansas | BG193: Midwest | BH193: Ohio | BI193: 884
A194: 307 | B194: 2010 | C194: South --> South | D194: South | E194: Arkansas | F194: South | G194: Oklahoma | H194: 5873 | AJ194: 307 | AK194: 2010 | AL194: South --> South | AM194: South | AN194: Arkansas | AO194: South | AP194: Oklahoma | AQ194: 5873 | AS194: 274 | AT194: 2011 | AU194: South --> South | AV194: South | AW194: Arkansas | AX194: South | AY194: Oklahoma | AZ194: 6894 | BB194: 329 | BC194: 2012 | BD194: South --> South | BE194: South | BF194: Arkansas | BG194: South | BH194: Oklahoma | BI194: 5777
A195: 1915 | B195: 2010 | C195: South --> West | D195: South | E195: Arkansas | F195: West | G195: Oregon | H195: 246 | AJ195: =RANK(AQ195,AQ:AQ,0) -> 1915 | AK195: 2010 | AL195: South --> West | AM195: South | AN195: Arkansas | AO195: West | AP195: Oregon | AQ195: 246 | AS195: =RANK(AZ195,AZ:AZ) -> 1230 | AT195: 2011 | AU195: South --> West | AV195: South | AW195: Arkansas | AX195: West | AY195: Oregon | AZ195: 988 | BB195: =RANK(BI195,BI:BI,0) -> 2097 | BC195: 2012 | BD195: South --> West | BE195: South | BF195: Arkansas | BG195: West | BH195: Oregon | BI195: 165
A196: =RANK(H196,$H$2:$H$2705) -> 1310 | B196: 2010 | C196: South --> Northeast | D196: South | E196: Arkansas | F196: Northeast | G196: Pennsylvania | H196: 807 | AJ196: 1310 | AK196: 2010 | AL196: South --> Northeast | AM196: South | AN196: Arkansas | AO196: Northeast | AP196: Pennsylvania | AQ196: 807 | AS196: 1522 | AT196: 2011 | AU196: South --> Northeast | AV196: South | AW196: Arkansas | AX196: Northeast | AY196: Pennsylvania | AZ196: 582 | BB196: 1555 | BC196: 2012 | BD196: South --> Northeast | BE196: South | BF196: Arkansas | BG196: Northeast | BH196: Pennsylvania | BI196: 573
A197: 2399 | B197: 2010 | C197: South --> Northeast | D197: South | E197: Arkansas | F197: Northeast | G197: Rhode Island | H197: 0 | AJ197: 2399 | AK197: 2010 | AL197: South --> Northeast | AM197: South | AN197: Arkansas | AO197: Northeast | AP197: Rhode Island | AQ197: 0 | AS197: 2462 | AT197: 2011 | AU197: South --> Northeast | AV197: South | AW197: Arkansas | AX197: Northeast | AY197: Rhode Island | AZ197: 0 | BB197: 2470 | BC197: 2012 | BD197: South --> Northeast | BE197: South | BF197: Arkansas | BG197: Northeast | BH197: Rhode Island | BI197: 0
A198: 1751 | B198: 2010 | C198: South --> South | D198: South | E198: Arkansas | F198: South | G198: South Carolina | H198: 365 | AJ198: 1751 | AK198: 2010 | AL198: South --> South | AM198: South | AN198: Arkansas | AO198: South | AP198: South Carolina | AQ198: 365 | AS198: 1052 | AT198: 2011 | AU198: South --> South | AV198: South | AW198: Arkansas | AX198: South | AY198: South Carolina | AZ198: 1333 | BB198: 1338 | BC198: 2012 | BD198: South --> South | BE198: South | BF198: Arkansas | BG198: South | BH198: South Carolina | BI198: 839
A199: 2287 | B199: 2010 | C199: South --> Midwest | D199: South | E199: Arkansas | F199: Midwest | G199: South Dakota | H199: 61 | AJ199: 2287 | AK199: 2010 | AL199: South --> Midwest | AM199: South | AN199: Arkansas | AO199: Midwest | AP199: South Dakota | AQ199: 61 | AS199: 1450 | AT199: 2011 | AU199: South --> Midwest | AV199: South | AW199: Arkansas | AX199: Midwest | AY199: South Dakota | AZ199: 659 | BB199: 1986 | BC199: 2012 | BD199: South --> Midwest | BE199: South | BF199: Arkansas | BG199: Midwest | BH199: South Dakota | BI199: 227
A200: 371 | B200: 2010 | C200: South --> South | D200: South | E200: Arkansas | F200: South | G200: Tennessee | H200: 4736 | AJ200: 371 | AK200: 2010 | AL200: South --> South | AM200: South | AN200: Arkansas | AO200: South | AP200: Tennessee | AQ200: 4736 | AS200: 253 | AT200: 2011 | AU200: South --> South | AV200: South | AW200: Arkansas | AX200: South | AY200: Tennessee | AZ200: 7393 | BB200: 546 | BC200: 2012 | BD200: South --> South | BE200: South | BF200: Arkansas | BG200: South | BH200: Tennessee | BI200: 3306
... 2050 more rows

Sheet Data-2
A1: Country | B1: Region | C1: Year | D1: Population In | E1: Population Out | J1: Midwest | L1: Northeast | N1: South | P1: West
A2: California | B2: West | C2: 2010 | D2: 444749 | E2: 575165 | J2: Population in % | K2: Population Out % | L2: Population in % | M2: Population Out % | N2: Population in % | O2: Population Out % | P2: Population in % | Q2: Population Out %
A3: New York | B3: Northeast | C3: 2010 | D3: 269427 | E3: 367907 | I3: 2012 | J3: =SUMIFS($D:$D,$B:$B,J$1,$C:$C,$I3)/SUMIF($C:$D,$I3,$D:$D) -> 0.1844753511 | K3: =SUMIFS($E:$E,$B:$B,J$1,$C:$C,$I3)/SUMIF($C:$D,$I3,$E:$E) -> 0.1980092085 | L3: =SUMIFS($D:$D,$B:$B,L$1,$C:$C,$I3)/SUMIF($C:$D,$I3,$D:$D) -> 0.1402732629 | M3: =SUMIFS($E:$E,$B:$B,L$1,$C:$C,$I3)/SUMIF($C:$D,$I3,$E:$E) -> 0.1841655886 | N3: =SUMIFS($D:$D,$B:$B,N$1,$C:$C,$I3)/SUMIF($C:$D,$I3,$D:$D) -> 0.4285643566 | O3: =SUMIFS($E:$E,$B:$B,N$1,$C:$C,$I3)/SUMIF($C:$D,$I3,$E:$E) -> 0.3754535485 | P3: =SUMIFS($D:$D,$B:$B,P$1,$C:$C,$I3)/SUMIF($C:$D,$I3,$D:$D) -> 0.2466870294 | Q3: =SUMIFS($E:$E,$B:$B,P$1,$C:$C,$I3)/SUMIF($C:$D,$I3,$E:$E) -> 0.2423716543
A4: Illinois | B4: Midwest | C4: 2010 | D4: 203959 | E4: 279221 | I4: 2011 | J4: =SUMIFS(D:D,B:B,J1,C:C,I4)/SUMIF(C:D,I4,D:D) -> 0.1855977084 | K4: =SUMIFS(E:E,B:B,J1,C:C,I4)/SUMIF(C:D,I4,E:E) -> 0.2019740109 | L4: =SUMIFS($D:$D,$B:$B,L$1,$C:$C,$I4)/SUMIF($C:$D,$I4,$D:$D) -> 0.1438966686 | M4: =SUMIFS($E:$E,$B:$B,L$1,$C:$C,$I4)/SUMIF($C:$D,$I4,$E:$E) -> 0.1777257555 | N4: =SUMIFS($D:$D,$B:$B,N$1,$C:$C,$I4)/SUMIF($C:$D,$I4,$D:$D) -> 0.4273267081 | O4: =SUMIFS($E:$E,$B:$B,N$1,$C:$C,$I4)/SUMIF($C:$D,$I4,$E:$E) -> 0.372138962 | P4: =SUMIFS($D:$D,$B:$B,P$1,$C:$C,$I4)/SUMIF($C:$D,$I4,$D:$D) -> 0.2431789149 | Q4: =SUMIFS($E:$E,$B:$B,P$1,$C:$C,$I4)/SUMIF($C:$D,$I4,$E:$E) -> 0.2481612716
A5: New Jersey | B5: Northeast | C5: 2010 | D5: 127369 | E5: 195216 | I5: 2010 | J5: =SUMIFS(D:D,B:B,J1,C:C,I5)/SUMIF(C:D,I5,D:D) -> 0.1805235484 | K5: =SUMIFS(E:E,B:B,J1,C:C,I5)/SUMIF(C:D,I5,E:E) -> 0.2040141065 | L5: =SUMIFS($D:$D,$B:$B,L$1,$C:$C,$I5)/SUMIF($C:$D,$I5,$D:$D) -> 0.148091775 | M5: =SUMIFS($E:$E,$B:$B,L$1,$C:$C,$I5)/SUMIF($C:$D,$I5,$E:$E) -> 0.1734302426 | N5: =SUMIFS($D:$D,$B:$B,N$1,$C:$C,$I5)/SUMIF($C:$D,$I5,$D:$D) -> 0.4314413028 | O5: =SUMIFS($E:$E,$B:$B,N$1,$C:$C,$I5)/SUMIF($C:$D,$I5,$E:$E) -> 0.3800550883 | P5: =SUMIFS($D:$D,$B:$B,P$1,$C:$C,$I5)/SUMIF($C:$D,$I5,$D:$D) -> 0.2399433738 | Q5: =SUMIFS($E:$E,$B:$B,P$1,$C:$C,$I5)/SUMIF($C:$D,$I5,$E:$E) -> 0.2425005626
A6: Michigan | B6: Midwest | C6: 2010 | D6: 116149 | E6: 178296
A7: Alaska | B7: West | C7: 2010 | D7: 36326 | E7: 94848
A8: Puerto Rico | B8: Northeast | C8: 2010 | D8: 31732 | E8: 59885
A9: Wisconsin | B9: Midwest | C9: 2010 | D9: 93065 | E9: 111825
A10: Ohio | B10: Midwest | C10: 2010 | D10: 172633 | E10: 188082
A11: Minnesota | B11: Midwest | C11: 2010 | D11: 89872 | E11: 104815
A12: Connecticut | B12: Northeast | C12: 2010 | D12: 77333 | E12: 90259
A13: West Virginia | B13: South | C13: 2010 | D13: 39609 | E13: 49490
A14: Nevada | B14: West | C14: 2010 | D14: 102677 | E14: 109409
A15: Massachusetts | B15: Northeast | C15: 2010 | D15: 140162 | E15: 146156
A16: District of Columbia | B16: South | C16: 2010 | D16: 51244 | E16: 56052
A17: Maine | B17: Northeast | C17: 2010 | D17: 27758 | E17: 32209
A18: Missouri | B18: Midwest | C18: 2010 | D18: 145226 | E18: 148276
A19: Indiana | B19: Midwest | C19: 2010 | D19: 127353 | E19: 130279
A20: South Dakota | B20: Midwest | C20: 2010 | D20: 25777 | E20: 27915
A21: Montana | B21: West | C21: 2010 | D21: 35630 | E21: 35870
A22: Wyoming | B22: West | C22: 2010 | D22: 28046 | E22: 28186
A23: Delaware | B23: South | C23: 2010 | D23: 30759 | E23: 30055
A24: New Hampshire | B24: Northeast | C24: 2010 | D24: 39367 | E24: 38399
A25: Utah | B25: West | C25: 2010 | D25: 77780 | E25: 76423
A26: Idaho | B26: West | C26: 2010 | D26: 55638 | E26: 53122
A27: Mississippi | B27: South | C27: 2010 | D27: 72321 | E27: 68533
A28: Vermont | B28: Northeast | C28: 2010 | D28: 22529 | E28: 18380
A29: Georgia | B29: South | C29: 2010 | D29: 249459 | E29: 245199
A30: Kansas | B30: Midwest | C30: 2010 | D30: 95059 | E30: 90793
A31: Hawaii | B31: West | C31: 2010 | D31: 53581 | E31: 49218
A32: Maryland | B32: South | C32: 2010 | D32: 164484 | E32: 159925
A33: Iowa | B33: Midwest | C33: 2010 | D33: 72557 | E33: 66922
A34: North Dakota | B34: Midwest | C34: 2010 | D34: 30100 | E34: 24450
A35: Rhode Island | B35: Northeast | C35: 2010 | D35: 32059 | E35: 25632
A36: Nebraska | B36: Midwest | C36: 2010 | D36: 51290 | E36: 43531
A37: Alabama | B37: South | C37: 2010 | D37: 108723 | E37: 99850
A38: Louisiana | B38: South | C38: 2010 | D38: 97889 | E38: 88240
A39: Arkansas | B39: South | C39: 2010 | D39: 79127 | E39: 64264
A40: Oklahoma | B40: South | C40: 2010 | D40: 106511 | E40: 90616
A41: Oregon | B41: West | C41: 2010 | D41: 116700 | E41: 100185
A42: Tennessee | B42: South | C42: 2010 | D42: 159778 | E42: 143165
A43: New Mexico | B43: West | C43: 2010 | D43: 73605 | E43: 50802
A44: Pennsylvania | B44: Northeast | C44: 2010 | D44: 235580 | E44: 211326
A45: Kentucky | B45: South | C45: 2010 | D45: 118443 | E45: 93253
A46: Washington | B46: West | C46: 2010 | D46: 191784 | E46: 166162
A47: Virginia | B47: South | C47: 2010 | D47: 259507 | E47: 232394
A48: South Carolina | B48: South | C48: 2010 | D48: 152441 | E48: 117678
A49: Florida | B49: South | C49: 2010 | D49: 482889 | E49: 439115
A50: Colorado | B50: West | C50: 2010 | D50: 186366 | E50: 141008
A51: Arizona | B51: West | C51: 2010 | D51: 222725 | E51: 177056
A52: North Carolina | B52: South | C52: 2010 | D52: 263256 | E52: 207171
A53: Texas | B53: South | C53: 2010 | D53: 486558 | E53: 412618
A54: California | B54: West | C54: 2011 | D54: 468428 | E54: 562550
A55: New York | B55: Northeast | C55: 2011 | D55: 282209 | E55: 380415
A56: Illinois | B56: Midwest | C56: 2011 | D56: 216204 | E56: 269632
A57: New Jersey | B57: Northeast | C57: 2011 | D57: 140194 | E57: 218519
A58: Michigan | B58: Midwest | C58: 2011 | D58: 139158 | E58: 186593
A59: Alaska | B59: West | C59: 2011 | D59: 35084 | E59: 89228
A60: Puerto Rico | B60: Northeast | C60: 2011 | D60: 22649 | E60: 76218
A61: Wisconsin | B61: Midwest | C61: 2011 | D61: 109439 | E61: 105599
A62: Ohio | B62: Midwest | C62: 2011 | D62: 191778 | E62: 206049
A63: Minnesota | B63: Midwest | C63: 2011 | D63: 101029 | E63: 103253
A64: Connecticut | B64: Northeast | C64: 2011 | D64: 71502 | E64: 93144
A65: West Virginia | B65: South | C65: 2011 | D65: 50068 | E65: 45970
A66: Nevada | B66: West | C66: 2011 | D66: 110345 | E66: 115943
A67: Massachusetts | B67: Northeast | C67: 2011 | D67: 139830 | E67: 147281
A68: District of Columbia | B68: South | C68: 2011 | D68: 48066 | E68: 49944
A69: Maine | B69: Northeast | C69: 2011 | D69: 33818 | E69: 33729
A70: Missouri | B70: Midwest | C70: 2011 | D70: 149439 | E70: 138505
A71: Indiana | B71: Midwest | C71: 2011 | D71: 127874 | E71: 144012
A72: South Dakota | B72: Midwest | C72: 2011 | D72: 27506 | E72: 29496
A73: Montana | B73: West | C73: 2011 | D73: 33553 | E73: 31204
A74: Wyoming | B74: West | C74: 2011 | D74: 30651 | E74: 31991
A75: Delaware | B75: South | C75: 2011 | D75: 33912 | E75: 26644
A76: New Hampshire | B76: Northeast | C76: 2011 | D76: 37000 | E76: 43277
A77: Utah | B77: West | C77: 2011 | D77: 85217 | E77: 73211
A78: Idaho | B78: West | C78: 2011 | D78: 60336 | E78: 57844
A79: Mississippi | B79: South | C79: 2011 | D79: 68511 | E79: 68624
A80: Vermont | B80: Northeast | C80: 2011 | D80: 20463 | E80: 18172
A81: Georgia | B81: South | C81: 2011 | D81: 271077 | E81: 249139
A82: Kansas | B82: Midwest | C82: 2011 | D82: 83640 | E82: 94218
A83: Hawaii | B83: West | C83: 2011 | D83: 57542 | E83: 61940
A84: Maryland | B84: South | C84: 2011 | D84: 153979 | E84: 165111
A85: Iowa | B85: Midwest | C85: 2011 | D85: 70405 | E85: 74516
A86: North Dakota | B86: Midwest | C86: 2011 | D86: 32510 | E86: 26563
A87: Rhode Island | B87: Northeast | C87: 2011 | D87: 26769 | E87: 31555
A88: Nebraska | B88: Midwest | C88: 2011 | D88: 52070 | E88: 52809
A89: Alabama | B89: South | C89: 2011 | D89: 117726 | E89: 106841
A90: Louisiana | B90: South | C90: 2011 | D90: 99138 | E90: 86593
A91: Arkansas | B91: South | C91: 2011 | D91: 69845 | E91: 77226
A92: Oklahoma | B92: South | C92: 2011 | D92: 108878 | E92: 81088
A93: Oregon | B93: West | C93: 2011 | D93: 127906 | E93: 109795
A94: Tennessee | B94: South | C94: 2011 | D94: 170969 | E94: 154467
A95: New Mexico | B95: West | C95: 2011 | D95: 62130 | E95: 61482
A96: Pennsylvania | B96: Northeast | C96: 2011 | D96: 234291 | E96: 217105
A97: Kentucky | B97: South | C97: 2011 | D97: 110031 | E97: 99256
A98: Washington | B98: West | C98: 2011 | D98: 208507 | E98: 190685
A99: Virginia | B99: South | C99: 2011 | D99: 257130 | E99: 230304
A100: South Carolina | B100: South | C100: 2011 | D100: 157644 | E100: 121429
A101: Florida | B101: South | C101: 2011 | D101: 498597 | E101: 443816
A102: Colorado | B102: West | C102: 2011 | D102: 202124 | E102: 160623
A103: Arizona | B103: West | C103: 2011 | D103: 222877 | E103: 212045
A104: North Carolina | B104: South | C104: 2011 | D104: 265291 | E104: 225347
A105: Texas | B105: South | C105: 2011 | D105: 514726 | E105: 405283
A106: California | B106: West | C106: 2012 | D106: 493641 | E106: 567505
A107: New York | B107: Northeast | C107: 2012 | D107: 270053 | E107: 408178
A108: Illinois | B108: Midwest | C108: 2012 | D108: 208755 | E108: 278974
A109: New Jersey | B109: Northeast | C109: 2012 | D109: 130223 | E109: 221124
A110: Michigan | B110: Midwest | C110: 2012 | D110: 133981 | E110: 176168
A111: Alaska | B111: West | C111: 2012 | D111: 33415 | E111: 84125
A112: Puerto Rico | B112: Northeast | C112: 2012 | D112: 20044 | E112: 74500
A113: Wisconsin | B113: Midwest | C113: 2012 | D113: 99192 | E113: 98713
A114: Ohio | B114: Midwest | C114: 2012 | D114: 196391 | E114: 199530
A115: Minnesota | B115: Midwest | C115: 2012 | D115: 101042 | E115: 115946
A116: Connecticut | B116: Northeast | C116: 2012 | D116: 80311 | E116: 87393
A117: West Virginia | B117: South | C117: 2012 | D117: 47125 | E117: 47433
A118: Nevada | B118: West | C118: 2012 | D118: 124285 | E118: 98882
A119: Massachusetts | B119: Northeast | C119: 2012 | D119: 142577 | E119: 160414
A120: District of Columbia | B120: South | C120: 2012 | D120: 53830 | E120: 59513
A121: Maine | B121: Northeast | C121: 2012 | D121: 27523 | E121: 38574
A122: Missouri | B122: Midwest | C122: 2012 | D122: 162930 | E122: 142754
A123: Indiana | B123: Midwest | C123: 2012 | D123: 134137 | E123: 144718
A124: South Dakota | B124: Midwest | C124: 2012 | D124: 26051 | E124: 22534
A125: Montana | B125: West | C125: 2012 | D125: 37690 | E125: 33832
A126: Wyoming | B126: West | C126: 2012 | D126: 31149 | E126: 32228
A127: Delaware | B127: South | C127: 2012 | D127: 34757 | E127: 25149
A128: New Hampshire | B128: Northeast | C128: 2012 | D128: 50484 | E128: 38696
A129: Utah | B129: West | C129: 2012 | D129: 87870 | E129: 82165
A130: Idaho | B130: West | C130: 2012 | D130: 59283 | E130: 55191
A131: Mississippi | B131: South | C131: 2012 | D131: 73500 | E131: 66947
A132: Vermont | B132: Northeast | C132: 2012 | D132: 24431 | E132: 20056
A133: Georgia | B133: South | C133: 2012 | D133: 277466 | E133: 252494
A134: Kansas | B134: Midwest | C134: 2012 | D134: 88284 | E134: 93277
A135: Hawaii | B135: West | C135: 2012 | D135: 55145 | E135: 61619
A136: Maryland | B136: South | C136: 2012 | D136: 154983 | E136: 157772
A137: Iowa | B137: Midwest | C137: 2012 | D137: 75760 | E137: 73325
A138: North Dakota | B138: Midwest | C138: 2012 | D138: 38213 | E138: 23959
A139: Rhode Island | B139: Northeast | C139: 2012 | D139: 33446 | E139: 31122
A140: Nebraska | B140: Midwest | C140: 2012 | D140: 43266 | E140: 48816
A141: Alabama | B141: South | C141: 2012 | D141: 104600 | E141: 109218
A142: Louisiana | B142: South | C142: 2012 | D142: 91215 | E142: 96015
A143: Arkansas | B143: South | C143: 2012 | D143: 76948 | E143: 65060
A144: Oklahoma | B144: South | C144: 2012 | D144: 108972 | E144: 102572
A145: Oregon | B145: West | C145: 2012 | D145: 118925 | E145: 108182
A146: Tennessee | B146: South | C146: 2012 | D146: 177098 | E146: 163858
A147: New Mexico | B147: West | C147: 2012 | D147: 54693 | E147: 63949
A148: Pennsylvania | B148: Northeast | C148: 2012 | D148: 215500 | E148: 239469
A149: Kentucky | B149: South | C149: 2012 | D149: 112787 | E149: 103041
A150: Washington | B150: West | C150: 2012 | D150: 215494 | E150: 180462
A151: Virginia | B151: South | C151: 2012 | D151: 250653 | E151: 239224
A152: South Carolina | B152: South | C152: 2012 | D152: 156705 | E152: 127422
A153: Florida | B153: South | C153: 2012 | D153: 537148 | E153: 432517
A154: Colorado | B154: West | C154: 2012 | D154: 205060 | E154: 161530
A155: Arizona | B155: West | C155: 2012 | D155: 232457 | E155: 206896
A156: North Carolina | B156: South | C156: 2012 | D156: 273149 | E156: 239301
A157: Texas | B157: South | C157: 2012 | D157: 507752 | E157: 402547

Sheet Data-3
A1: Year | B1: Direction | C1: Last ResidentRegion | D1: Last Residence City | E1: Current ResidentRegion | F1: Current Resident City | G1: Total | K1: Input Year | L1: Input City | N1: Current Resident City | O1: Out | P1: In | Q1: Out% | R1: In%
A2: 2010 | B2: South --> South | C2: South | D2: Alabama | E2: South | F2: Alabama | G2: 0 | K2: 2012 | L2: Illinois | N2: Alabama | O2: =SUMIFS($G:$G,$F:$F,N2,$D:$D,$L$2,$A:$A,Pickedyear)*-1 -> -2722 | P2: =SUMIFS($G:$G,$D:$D,N2,$F:$F,$L$2,$A:$A,Pickedyear) -> 883 | Q2: =O2/SUM($O$2:$O$53)*-1 -> -0.009757181673 | R2: =P2/SUM($P$2:$P$53) -> 0.004188725072
A3: 2010 | B3: South --> West | C3: South | D3: Alabama | E3: West | F3: Alaska | G3: 477 | L3: ="'"&L2&"'!A:B" -> 'Illinois'!A:B | N3: Alaska | O3: -58 | P3: 2250 | Q3: =O3/SUM($O$2:$O$53)*-1 -> -0.0002079046793 | R3: =P3/SUM($P$2:$P$53) -> 0.01067342176
A4: 2010 | B4: South --> West | C4: South | D4: Alabama | E4: West | F4: Arizona | G4: 416 | N4: Arizona | O4: -10744 | P4: 7139 | Q4: -0.03851254956 | R4: 0.0338655813
A5: 2010 | B5: South --> South | C5: South | D5: Alabama | E5: South | F5: Arkansas | G5: 1405 | N5: Arkansas | O5: -3576 | P5: 1587 | Q5: -0.01281839885 | R5: 0.007528320146
A6: 2010 | B6: South --> West | C6: South | D6: Alabama | E6: West | F6: California | G6: 3364 | N6: California | O6: -21251 | P6: 14940 | Q6: -0.07617555758 | R6: 0.07087152046
A7: 2010 | B7: South --> West | C7: South | D7: Alabama | E7: West | F7: Colorado | G7: 954 | N7: Colorado | O7: -6374 | P7: 3036 | Q7: -0.02284800734 | R7: 0.01440200376
A8: 2010 | B8: South --> Northeast | C8: South | D8: Alabama | E8: Northeast | F8: Connecticut | G8: 896 | N8: Connecticut | O8: -912 | P8: 955 | Q8: -0.003269121854 | R8: 0.004530274568
A9: 2010 | B9: South --> South | C9: South | D9: Alabama | E9: South | F9: Delaware | G9: 128 | N9: Delaware | O9: -567 | P9: 234 | Q9: -0.002032447468 | R9: 0.001110035863
A10: 2010 | B10: South --> South | C10: South | D10: Alabama | E10: South | F10: District of Columbia | G10: 360 | N10: District of Columbia | O10: -795 | P10: 1066 | Q10: -0.002849727932 | R10: 0.005056830041
A11: 2010 | B11: South --> South | C11: South | D11: Alabama | E11: South | F11: Florida | G11: 15830 | N11: Florida | O11: -22565 | P11: 12687 | Q11: -0.08088567393 | R11: 0.06018386748
A12: 2010 | B12: South --> South | C12: South | D12: Alabama | E12: South | F12: Georgia | G12: 13840 | N12: Georgia | O12: -7143 | P12: 8745 | Q12: -0.02560453662 | R12: 0.04148403256
A13: 2010 | B13: South --> West | C13: South | D13: Alabama | E13: West | F13: Hawaii | G13: 749 | N13: Hawaii | O13: -318 | P13: 869 | Q13: -0.001139891173 | R13: 0.00412231267
A14: 2010 | B14: South --> West | C14: South | D14: Alabama | E14: West | F14: Idaho | G14: 376 | N14: Idaho | O14: -532 | P14: 1384 | Q14: -0.001906987748 | R14: 0.006565340316
A15: 2010 | B15: South --> Midwest | C15: South | D15: Alabama | E15: Midwest | F15: Illinois | G15: 1397 | N15: Illinois | O15: 0 | P15: 0 | Q15: 0 | R15: 0
A16: 2010 | B16: South --> Midwest | C16: South | D16: Alabama | E16: Midwest | F16: Indiana | G16: 1502 | N16: Indiana | O16: -28436 | P16: 16907 | Q16: -0.1019306459 | R16: 0.08020246295
A17: 2010 | B17: South --> Midwest | C17: South | D17: Alabama | E17: Midwest | F17: Iowa | G17: 330 | N17: Iowa | O17: -11969 | P17: 8529 | Q17: -0.04290363977 | R17: 0.04045938407
A18: 2010 | B18: South --> Midwest | C18: South | D18: Alabama | E18: Midwest | F18: Kansas | G18: 44 | N18: Kansas | O18: -1702 | P18: 2009 | Q18: -0.006100926968 | R18: 0.009530179693
A19: 2010 | B19: South --> South | C19: South | D19: Alabama | E19: South | F19: Kentucky | G19: 2161 | N19: Kentucky | O19: -4445 | P19: 2923 | Q19: -0.01593338447 | R19: 0.0138659608
A20: 2010 | B20: South --> South | C20: South | D20: Alabama | E20: South | F20: Louisiana | G20: 5740 | N20: Louisiana | O20: -1229 | P20: 1229 | Q20: -0.004405428463 | R20: 0.005830060151
A21: 2010 | B21: South --> Northeast | C21: South | D21: Alabama | E21: Northeast | F21: Maine | G21: 402 | N21: Maine | O21: -195 | P21: 526 | Q21: -0.00069898987 | R21: 0.00249520882
A22: 2010 | B22: South --> South | C22: South | D22: Alabama | E22: South | F22: Maryland | G22: 1641 | N22: Maryland | O22: -3621 | P22: 1865 | Q22: -0.0129797042 | R22: 0.008847080701
A23: 2010 | B23: South --> Northeast | C23: South | D23: Alabama | E23: Northeast | F23: Massachusetts | G23: 583 | N23: Massachusetts | O23: -2886 | P23: 3296 | Q23: -0.01034505008 | R23: 0.01563537694
A24: 2010 | B24: South --> Midwest | C24: South | D24: Alabama | E24: Midwest | F24: Michigan | G24: 2403 | N24: Michigan | O24: -10047 | P24: 12583 | Q24: -0.03601410884 | R24: 0.05969051821
A25: 2010 | B25: South --> Midwest | C25: South | D25: Alabama | E25: Midwest | F25: Minnesota | G25: 266 | N25: Minnesota | O25: -5896 | P25: 6537 | Q25: -0.02113458602 | R25: 0.03100984801
A26: 2010 | B26: South --> South | C26: South | D26: Alabama | E26: South | F26: Mississippi | G26: 8306 | N26: Mississippi | O26: -2703 | P26: 2744 | Q26: -0.009689074968 | R26: 0.0130168308
A27: 2010 | B27: South --> Midwest | C27: South | D27: Alabama | E27: Midwest | F27: Missouri | G27: 819 | N27: Missouri | O27: -22001 | P27: 13264 | Q27: -0.07886398016 | R27: 0.06292100719
A28: 2010 | B28: South --> West | C28: South | D28: Alabama | E28: West | F28: Montana | G28: 212 | N28: Montana | O28: -542 | P28: 228 | Q28: -0.001942833382 | R28: 0.001081573405
A29: 2010 | B29: South --> Midwest | C29: South | D29: Alabama | E29: Midwest | F29: Nebraska | G29: 232 | N29: Nebraska | O29: -1193 | P29: 1302 | Q29: -0.004276384179 | R29: 0.00617635339
A30: 2010 | B30: South --> West | C30: South | D30: Alabama | E30: West | F30: Nevada | G30: 150 | N30: Nevada | O30: -2822 | P30: 1478 | Q30: -0.01011563802 | R30: 0.007011252158
A31: 2010 | B31: South --> Northeast | C31: South | D31: Alabama | E31: Northeast | F31: New Hampshire | G31: 152 | N31: New Hampshire | O31: -673 | P31: 283 | Q31: -0.002412411192 | R31: 0.00134247927
A32: 2010 | B32: South --> Northeast | C32: South | D32: Alabama | E32: Northeast | F32: New Jersey | G32: 616 | N32: New Jersey | O32: -2052 | P32: 2366 | Q32: -0.007355524171 | R32: 0.01122369595
A33: 2010 | B33: South --> West | C33: South | D33: Alabama | E33: West | F33: New Mexico | G33: 751 | N33: New Mexico | O33: -790 | P33: 1359 | Q33: -0.002831805114 | R33: 0.006446746741
A34: 2010 | B34: South --> Northeast | C34: South | D34: Alabama | E34: Northeast | F34: New York | G34: 1310 | N34: New York | O34: =SUMIFS($G:$G,$F:$F,N34,$D:$D,$L$2,$A:$A,Pickedyear)*-1 -> -8017 | P34: =SUMIFS($G:$G,$D:$D,N34,$F:$F,$L$2,$A:$A,Pickedyear) -> 7561 | Q34: -0.02873744507 | R34: 0.03586744085
A35: 2010 | B35: South --> South | C35: South | D35: Alabama | E35: South | F35: North Carolina | G35: 3044 | N35: North Carolina | O35: -6378 | P35: 3761 | Q35: -0.02286234559 | R35: 0.01784121743
A36: 2010 | B36: South --> Midwest | C36: South | D36: Alabama | E36: Midwest | F36: North Dakota | G36: 109 | N36: North Dakota | O36: -799 | P36: 196 | Q36: -0.002864066185 | R36: 0.0009297736286
A37: 2010 | B37: South --> Midwest | C37: South | D37: Alabama | E37: Midwest | F37: Ohio | G37: 1289 | N37: Ohio | O37: -9510 | P37: 6872 | Q37: -0.03408919828 | R37: 0.03259900192
A38: 2010 | B38: South --> South | C38: South | D38: Alabama | E38: South | F38: Oklahoma | G38: 1612 | N38: Oklahoma | O38: -1100 | P38: 1491 | Q38: -0.00394301978 | R38: 0.007072920817
A39: 2010 | B39: South --> West | C39: South | D39: Alabama | E39: West | F39: Oregon | G39: 400 | N39: Oregon | O39: -1676 | P39: 954 | Q39: -0.006007728319 | R39: 0.004525530825
A40: 2010 | B40: South --> Northeast | C40: South | D40: Alabama | E40: Northeast | F40: Pennsylvania | G40: 369 | N40: Pennsylvania | O40: -3749 | P40: 4588 | Q40: -0.01343852832 | R40: 0.0217642929
A41: 2010 | B41: South --> Northeast | C41: South | D41: Alabama | E41: Northeast | F41: Rhode Island | G41: 136 | N41: Rhode Island | O41: -385 | P41: 462 | Q41: -0.001380056923 | R41: 0.002191609267
A42: 2010 | B42: South --> South | C42: South | D42: Alabama | E42: South | F42: South Carolina | G42: 1741 | N42: South Carolina | O42: -2125 | P42: 1583 | Q42: -0.007617197302 | R42: 0.007509345174
A43: 2010 | B43: South --> Midwest | C43: South | D43: Alabama | E43: Midwest | F43: South Dakota | G43: 325 | N43: South Dakota | O43: -74 | P43: 394 | Q43: -0.0002652576943 | R43: 0.001869034743
A44: 2010 | B44: South --> South | C44: South | D44: Alabama | E44: South | F44: Tennessee | G44: 8897 | N44: Tennessee | O44: -7094 | P44: 4648 | Q44: -0.02542889302 | R44: 0.02204891748
A45: 2010 | B45: South --> South | C45: South | D45: Alabama | E45: South | F45: Texas | G45: 8636 | N45: Texas | O45: -19672 | P45: 16780 | Q45: -0.07051553191 | R45: 0.07960000759
A46: 2010 | B46: South --> West | C46: South | D46: Alabama | E46: West | F46: Utah | G46: 93 | N46: Utah | O46: -1588 | P46: 1154 | Q46: -0.005692286736 | R46: 0.005474279425
A47: 2010 | B47: South --> Northeast | C47: South | D47: Alabama | E47: Northeast | F47: Vermont | G47: 0 | N47: Vermont | O47: -230 | P47: 156 | Q47: -0.0008244495903 | R47: 0.0007400239085
A48: 2010 | B48: South --> South | C48: South | D48: Alabama | E48: South | F48: Virginia | G48: 2671 | N48: Virginia | O48: -7089 | P48: 4311 | Q48: -0.0254109702 | R48: 0.02045027609
A49: 2010 | B49: South --> West | C49: South | D49: Alabama | E49: West | F49: Washington | G49: 1322 | N49: Washington | O49: -4298 | P49: 2704 | Q49: -0.01540645365 | R49: 0.01282708108
A50: 2010 | B50: South --> South | C50: South | D50: Alabama | E50: South | F50: West Virginia | G50: 41 | N50: West Virginia | O50: -220 | P50: 1221 | Q50: -0.0007886039559 | R50: 0.005792110207
A51: 2010 | B51: South --> Midwest | C51: South | D51: Alabama | E51: Midwest | F51: Wisconsin | G51: 552 | N51: Wisconsin | O51: -22285 | P51: 14414 | Q51: -0.07988199617 | R51: 0.06837631164
A52: 2010 | B52: South --> West | C52: South | D52: Alabama | E52: West | F52: Wyoming | G52: 172 | N52: Wyoming | O52: -905 | P52: 302 | Q52: -0.00324402991 | R52: 0.001432610387
A53: 2010 | B53: South --> Northeast | C53: South | D53: Alabama | E53: Northeast | F53: Puerto Rico | G53: 629 | N53: Puerto Rico | O53: -1021 | P53: 2049 | Q53: -0.003659839268 | R53: 0.009719929413
A54: 2010 | B54: West --> South | C54: West | D54: Alaska | E54: South | F54: Alabama | G54: 3013
A55: 2010 | B55: West --> West | C55: West | D55: Alaska | E55: West | F55: Alaska | G55: 0
A56: 2010 | B56: West --> West | C56: West | D56: Alaska | E56: West | F56: Arizona | G56: 3109
A57: 2010 | B57: West --> South | C57: West | D57: Alaska | E57: South | F57: Arkansas | G57: 934
A58: 2010 | B58: West --> West | C58: West | D58: Alaska | E58: West | F58: California | G58: 9579
A59: 2010 | B59: West --> West | C59: West | D59: Alaska | E59: West | F59: Colorado | G59: 2225
A60: 2010 | B60: West --> Northeast | C60: West | D60: Alaska | E60: Northeast | F60: Connecticut | G60: 0
A61: 2010 | B61: West --> South | C61: West | D61: Alaska | E61: South | F61: Delaware | G61: 68
A62: 2010 | B62: West --> South | C62: West | D62: Alaska | E62: South | F62: District of Columbia | G62: 591
A63: 2010 | B63: West --> South | C63: West | D63: Alaska | E63: South | F63: Florida | G63: 5887
A64: 2010 | B64: West --> South | C64: West | D64: Alaska | E64: South | F64: Georgia | G64: 3645
A65: 2010 | B65: West --> West | C65: West | D65: Alaska | E65: West | F65: Hawaii | G65: 743
A66: 2010 | B66: West --> West | C66: West | D66: Alaska | E66: West | F66: Idaho | G66: 3264
A67: 2010 | B67: West --> Midwest | C67: West | D67: Alaska | E67: Midwest | F67: Illinois | G67: 1764
A68: 2010 | B68: West --> Midwest | C68: West | D68: Alaska | E68: Midwest | F68: Indiana | G68: 177
A69: 2010 | B69: West --> Midwest | C69: West | D69: Alaska | E69: Midwest | F69: Iowa | G69: 519
A70: 2010 | B70: West --> Midwest | C70: West | D70: Alaska | E70: Midwest | F70: Kansas | G70: 1050
A71: 2010 | B71: West --> South | C71: West | D71: Alaska | E71: South | F71: Kentucky | G71: 3017
A72: 2010 | B72: West --> South | C72: West | D72: Alaska | E72: South | F72: Louisiana | G72: 1504
A73: 2010 | B73: West --> Northeast | C73: West | D73: Alaska | E73: Northeast | F73: Maine | G73: 424
A74: 2010 | B74: West --> South | C74: West | D74: Alaska | E74: South | F74: Maryland | G74: 2672
A75: 2010 | B75: West --> Northeast | C75: West | D75: Alaska | E75: Northeast | F75: Massachusetts | G75: 1891
A76: 2010 | B76: West --> Midwest | C76: West | D76: Alaska | E76: Midwest | F76: Michigan | G76: 1040
A77: 2010 | B77: West --> Midwest | C77: West | D77: Alaska | E77: Midwest | F77: Minnesota | G77: 1169
A78: 2010 | B78: West --> South | C78: West | D78: Alaska | E78: South | F78: Mississippi | G78: 1192
A79: 2010 | B79: West --> Midwest | C79: West | D79: Alaska | E79: Midwest | F79: Missouri | G79: 1051
A80: 2010 | B80: West --> West | C80: West | D80: Alaska | E80: West | F80: Montana | G80: 650
A81: 2010 | B81: West --> Midwest | C81: West | D81: Alaska | E81: Midwest | F81: Nebraska | G81: 35
A82: 2010 | B82: West --> West | C82: West | D82: Alaska | E82: West | F82: Nevada | G82: 511
A83: 2010 | B83: West --> Northeast | C83: West | D83: Alaska | E83: Northeast | F83: New Hampshire | G83: 0
A84: 2010 | B84: West --> Northeast | C84: West | D84: Alaska | E84: Northeast | F84: New Jersey | G84: 383
A85: 2010 | B85: West --> West | C85: West | D85: Alaska | E85: West | F85: New Mexico | G85: 969
A86: 2010 | B86: West --> Northeast | C86: West | D86: Alaska | E86: Northeast | F86: New York | G86: 5070
A87: 2010 | B87: West --> South | C87: West | D87: Alaska | E87: South | F87: North Carolina | G87: 1618
A88: 2010 | B88: West --> Midwest | C88: West | D88: Alaska | E88: Midwest | F88: North Dakota | G88: 1066
A89: 2010 | B89: West --> Midwest | C89: West | D89: Alaska | E89: Midwest | F89: Ohio | G89: 1556
A90: 2010 | B90: West --> South | C90: West | D90: Alaska | E90: South | F90: Oklahoma | G90: 1397
A91: 2010 | B91: West --> West | C91: West | D91: Alaska | E91: West | F91: Oregon | G91: 2027
A92: 2010 | B92: West --> Northeast | C92: West | D92: Alaska | E92: Northeast | F92: Pennsylvania | G92: 2185
A93: 2010 | B93: West --> Northeast | C93: West | D93: Alaska | E93: Northeast | F93: Rhode Island | G93: 0
A94: 2010 | B94: West --> South | C94: West | D94: Alaska | E94: South | F94: South Carolina | G94: 1670
A95: 2010 | B95: West --> Midwest | C95: West | D95: Alaska | E95: Midwest | F95: South Dakota | G95: 25
A96: 2010 | B96: West --> South | C96: West | D96: Alaska | E96: South | F96: Tennessee | G96: 343
A97: 2010 | B97: West --> South | C97: West | D97: Alaska | E97: South | F97: Texas | G97: 11613
A98: 2010 | B98: West --> West | C98: West | D98: Alaska | E98: West | F98: Utah | G98: 1798
A99: 2010 | B99: West --> Northeast | C99: West | D99: Alaska | E99: Northeast | F99: Vermont | G99: 184
A100: 2010 | B100: West --> South | C100: West | D100: Alaska | E100: South | F100: Virginia | G100: 3296
A101: 2010 | B101: West --> West | C101: West | D101: Alaska | E101: West | F101: Washington | G101: 5644
A102: 2010 | B102: West --> South | C102: West | D102: Alaska | E102: South | F102: West Virginia | G102: 1326
A103: 2010 | B103: West --> Midwest | C103: West | D103: Alaska | E103: Midwest | F103: Wisconsin | G103: 798
A104: 2010 | B104: West --> West | C104: West | D104: Alaska | E104: West | F104: Wyoming | G104: 0
A105: 2010 | B105: West --> Northeast | C105: West | D105: Alaska | E105: Northeast | F105: Puerto Rico | G105: 156
A106: 2010 | B106: West --> South | C106: West | D106: Arizona | E106: South | F106: Alabama | G106: 676
A107: 2010 | B107: West --> West | C107: West | D107: Arizona | E107: West | F107: Alaska | G107: 1354
A108: 2010 | B108: West --> West | C108: West | D108: Arizona | E108: West | F108: Arizona | G108: 0
A109: 2010 | B109: West --> South | C109: West | D109: Arizona | E109: South | F109: Arkansas | G109: 777
A110: 2010 | B110: West --> West | C110: West | D110: Arizona | E110: West | F110: California | G110: 33854
A111: 2010 | B111: West --> West | C111: West | D111: Arizona | E111: West | F111: Colorado | G111: 12287
A112: 2010 | B112: West --> Northeast | C112: West | D112: Arizona | E112: Northeast | F112: Connecticut | G112: 664
A113: 2010 | B113: West --> South | C113: West | D113: Arizona | E113: South | F113: Delaware | G113: 60
A114: 2010 | B114: West --> South | C114: West | D114: Arizona | E114: South | F114: District of Columbia | G114: 662
A115: 2010 | B115: West --> South | C115: West | D115: Arizona | E115: South | F115: Florida | G115: 3907
A116: 2010 | B116: West --> South | C116: West | D116: Arizona | E116: South | F116: Georgia | G116: 2554
A117: 2010 | B117: West --> West | C117: West | D117: Arizona | E117: West | F117: Hawaii | G117: 1398
A118: 2010 | B118: West --> West | C118: West | D118: Arizona | E118: West | F118: Idaho | G118: 3086
A119: 2010 | B119: West --> Midwest | C119: West | D119: Arizona | E119: Midwest | F119: Illinois | G119: 5921
A120: 2010 | B120: West --> Midwest | C120: West | D120: Arizona | E120: Midwest | F120: Indiana | G120: 2210
A121: 2010 | B121: West --> Midwest | C121: West | D121: Arizona | E121: Midwest | F121: Iowa | G121: 1483
A122: 2010 | B122: West --> Midwest | C122: West | D122: Arizona | E122: Midwest | F122: Kansas | G122: 2238
A123: 2010 | B123: West --> South | C123: West | D123: Arizona | E123: South | F123: Kentucky | G123: 2598
A124: 2010 | B124: West --> South | C124: West | D124: Arizona | E124: South | F124: Louisiana | G124: 1960
A125: 2010 | B125: West --> Northeast | C125: West | D125: Arizona | E125: Northeast | F125: Maine | G125: 254
A126: 2010 | B126: West --> South | C126: West | D126: Arizona | E126: South | F126: Maryland | G126: 1124
A127: 2010 | B127: West --> Northeast | C127: West | D127: Arizona | E127: Northeast | F127: Massachusetts | G127: 1572
A128: 2010 | B128: West --> Midwest | C128: West | D128: Arizona | E128: Midwest | F128: Michigan | G128: 3197
A129: 2010 | B129: West --> Midwest | C129: West | D129: Arizona | E129: Midwest | F129: Minnesota | G129: 4165
A130: 2010 | B130: West --> South | C130: West | D130: Arizona | E130: South | F130: Mississippi | G130: 187
A131: 2010 | B131: West --> Midwest | C131: West | D131: Arizona | E131: Midwest | F131: Missouri | G131: 2988
A132: 2010 | B132: West --> West | C132: West | D132: Arizona | E132: West | F132: Montana | G132: 1909
A133: 2010 | B133: West --> Midwest | C133: West | D133: Arizona | E133: Midwest | F133: Nebraska | G133: 2322
A134: 2010 | B134: West --> West | C134: West | D134: Arizona | E134: West | F134: Nevada | G134: 7818
A135: 2010 | B135: West --> Northeast | C135: West | D135: Arizona | E135: Northeast | F135: New Hampshire | G135: 544
A136: 2010 | B136: West --> Northeast | C136: West | D136: Arizona | E136: Northeast | F136: New Jersey | G136: 1625
A137: 2010 | B137: West --> West | C137: West | D137: Arizona | E137: West | F137: New Mexico | G137: 6117
A138: 2010 | B138: West --> Northeast | C138: West | D138: Arizona | E138: Northeast | F138: New York | G138: 2649
A139: 2010 | B139: West --> South | C139: West | D139: Arizona | E139: South | F139: North Carolina | G139: 2847
A140: 2010 | B140: West --> Midwest | C140: West | D140: Arizona | E140: Midwest | F140: North Dakota | G140: 662
A141: 2010 | B141: West --> Midwest | C141: West | D141: Arizona | E141: Midwest | F141: Ohio | G141: 4715
A142: 2010 | B142: West --> South | C142: West | D142: Arizona | E142: South | F142: Oklahoma | G142: 2759
A143: 2010 | B143: West --> West | C143: West | D143: Arizona | E143: West | F143: Oregon | G143: 5264
A144: 2010 | B144: West --> Northeast | C144: West | D144: Arizona | E144: Northeast | F144: Pennsylvania | G144: 3668
A145: 2010 | B145: West --> Northeast | C145: West | D145: Arizona | E145: Northeast | F145: Rhode Island | G145: 324
A146: 2010 | B146: West --> South | C146: West | D146: Arizona | E146: South | F146: South Carolina | G146: 1457
A147: 2010 | B147: West --> Midwest | C147: West | D147: Arizona | E147: Midwest | F147: South Dakota | G147: 745
A148: 2010 | B148: West --> South | C148: West | D148: Arizona | E148: South | F148: Tennessee | G148: 2291
A149: 2010 | B149: West --> South | C149: West | D149: Arizona | E149: South | F149: Texas | G149: 16521
A150: 2010 | B150: West --> West | C150: West | D150: Arizona | E150: West | F150: Utah | G150: 8147
A151: 2010 | B151: West --> Northeast | C151: West | D151: Arizona | E151: Northeast | F151: Vermont | G151: 65
A152: 2010 | B152: West --> South | C152: West | D152: Arizona | E152: South | F152: Virginia | G152: 3807
A153: 2010 | B153: West --> West | C153: West | D153: Arizona | E153: West | F153: Washington | G153: 5971
A154: 2010 | B154: West --> South | C154: West | D154: Arizona | E154: South | F154: West Virginia | G154: 0
A155: 2010 | B155: West --> Midwest | C155: West | D155: Arizona | E155: Midwest | F155: Wisconsin | G155: 1854
A156: 2010 | B156: West --> West | C156: West | D156: Arizona | E156: West | F156: Wyoming | G156: 1511
A157: 2010 | B157: West --> Northeast | C157: West | D157: Arizona | E157: Northeast | F157: Puerto Rico | G157: 288
A158: 2010 | B158: South --> South | C158: South | D158: Arkansas | E158: South | F158: Alabama | G158: 1481
A159: 2010 | B159: South --> West | C159: South | D159: Arkansas | E159: West | F159: Alaska | G159: 47
A160: 2010 | B160: South --> West | C160: South | D160: Arkansas | E160: West | F160: Arizona | G160: 689
A161: 2010 | B161: South --> South | C161: South | D161: Arkansas | E161: South | F161: Arkansas | G161: 0
A162: 2010 | B162: South --> West | C162: South | D162: Arkansas | E162: West | F162: California | G162: 4172
A163: 2010 | B163: South --> West | C163: South | D163: Arkansas | E163: West | F163: Colorado | G163: 1034
A164: 2010 | B164: South --> Northeast | C164: South | D164: Arkansas | E164: Northeast | F164: Connecticut | G164: 334
A165: 2010 | B165: South --> South | C165: South | D165: Arkansas | E165: South | F165: Delaware | G165: 0
A166: 2010 | B166: South --> South | C166: South | D166: Arkansas | E166: South | F166: District of Columbia | G166: 155
A167: 2010 | B167: South --> South | C167: South | D167: Arkansas | E167: South | F167: Florida | G167: 3611
A168: 2010 | B168: South --> South | C168: South | D168: Arkansas | E168: South | F168: Georgia | G168: 599
A169: 2010 | B169: South --> West | C169: South | D169: Arkansas | E169: West | F169: Hawaii | G169: 0
A170: 2010 | B170: South --> West | C170: South | D170: Arkansas | E170: West | F170: Idaho | G170: 45
A171: 2010 | B171: South --> Midwest | C171: South | D171: Arkansas | E171: Midwest | F171: Illinois | G171: 1194
A172: 2010 | B172: South --> Midwest | C172: South | D172: Arkansas | E172: Midwest | F172: Indiana | G172: 1548
A173: 2010 | B173: South --> Midwest | C173: South | D173: Arkansas | E173: Midwest | F173: Iowa | G173: 247
A174: 2010 | B174: South --> Midwest | C174: South | D174: Arkansas | E174: Midwest | F174: Kansas | G174: 1596
A175: 2010 | B175: South --> South | C175: South | D175: Arkansas | E175: South | F175: Kentucky | G175: 558
A176: 2010 | B176: South --> South | C176: South | D176: Arkansas | E176: South | F176: Louisiana | G176: 2382
A177: 2010 | B177: South --> Northeast | C177: South | D177: Arkansas | E177: Northeast | F177: Maine | G177: 67
A178: 2010 | B178: South --> South | C178: South | D178: Arkansas | E178: South | F178: Maryland | G178: 273
A179: 2010 | B179: South --> Northeast | C179: South | D179: Arkansas | E179: Northeast | F179: Massachusetts | G179: 206
A180: 2010 | B180: South --> Midwest | C180: South | D180: Arkansas | E180: Midwest | F180: Michigan | G180: 636
A181: 2010 | B181: South --> Midwest | C181: South | D181: Arkansas | E181: Midwest | F181: Minnesota | G181: 279
A182: 2010 | B182: South --> South | C182: South | D182: Arkansas | E182: South | F182: Mississippi | G182: 4941
A183: 2010 | B183: South --> Midwest | C183: South | D183: Arkansas | E183: Midwest | F183: Missouri | G183: 4381
A184: 2010 | B184: South --> West | C184: South | D184: Arkansas | E184: West | F184: Montana | G184: 672
A185: 2010 | B185: South --> Midwest | C185: South | D185: Arkansas | E185: Midwest | F185: Nebraska | G185: 674
A186: 2010 | B186: South --> West | C186: South | D186: Arkansas | E186: West | F186: Nevada | G186: 530
A187: 2010 | B187: South --> Northeast | C187: South | D187: Arkansas | E187: Northeast | F187: New Hampshire | G187: 0
A188: 2010 | B188: South --> Northeast | C188: South | D188: Arkansas | E188: Northeast | F188: New Jersey | G188: 258
A189: 2010 | B189: South --> West | C189: South | D189: Arkansas | E189: West | F189: New Mexico | G189: 77
A190: 2010 | B190: South --> Northeast | C190: South | D190: Arkansas | E190: Northeast | F190: New York | G190: 362
A191: 2010 | B191: South --> South | C191: South | D191: Arkansas | E191: South | F191: North Carolina | G191: 550
A192: 2010 | B192: South --> Midwest | C192: South | D192: Arkansas | E192: Midwest | F192: North Dakota | G192: 168
A193: 2010 | B193: South --> Midwest | C193: South | D193: Arkansas | E193: Midwest | F193: Ohio | G193: 434
A194: 2010 | B194: South --> South | C194: South | D194: Arkansas | E194: South | F194: Oklahoma | G194: 5873
A195: 2010 | B195: South --> West | C195: South | D195: Arkansas | E195: West | F195: Oregon | G195: 246
A196: 2010 | B196: South --> Northeast | C196: South | D196: Arkansas | E196: Northeast | F196: Pennsylvania | G196: 807
A197: 2010 | B197: South --> Northeast | C197: South | D197: Arkansas | E197: Northeast | F197: Rhode Island | G197: 0
A198: 2010 | B198: South --> South | C198: South | D198: Arkansas | E198: South | F198: South Carolina | G198: 365
A199: 2010 | B199: South --> Midwest | C199: South | D199: Arkansas | E199: Midwest | F199: South Dakota | G199: 61
A200: 2010 | B200: South --> South | C200: South | D200: Arkansas | E200: South | F200: Tennessee | G200: 4736
... 7913 more rows

Sheet Flag (hidden)
A1: Name | B1: Picture Name
A2: Alabama | B2: alabama
A3: Alaska | B3: alaska
A4: Arizona | B4: arizona
A5: Arkansas | B5: arkansas
A6: California | B6: california
A7: Colorado | B7: colorado
A8: Connecticut | B8: connecticut
A9: Delaware | B9: delaware
A10: District of Columbia | B10: DColumbia
A11: Florida | B11: florida
A12: Georgia | B12: georgia
A13: Hawaii | B13: hawaii
A14: Idaho | B14: idaho
A15: Illinois | B15: illinois
A16: Indiana | B16: indiana
A17: Iowa | B17: iowa
A18: Kansas | B18: kansas
A19: Kentucky | B19: kentucky
A20: Louisiana | B20: louisiana
A21: Maine | B21: maine
A22: Maryland | B22: maryland
A23: Massachusetts | B23: massachusetts
A24: Michigan | B24: michigan
A25: Minnesota | B25: minnesota
A26: Mississippi | B26: mississippi
A27: Missouri | B27: missouri
A28: Montana | B28: montana
A29: Nebraska | B29: nebraska
A30: Nevada | B30: nevada
A31: New Hampshire | B31: newhampshire
A32: New Jersey | B32: newjersey
A33: New Mexico | B33: newmexico
A34: New York | B34: newyork
A35: North Carolina | B35: northcarolina
A36: North Dakota | B36: northdakota
A37: Ohio | B37: ohio
A38: Oklahoma | B38: oklahoma
A39: Oregon | B39: oregon
A40: Pennsylvania | B40: pennsylvania
A41: Rhode Island | B41: rhodeisland
A42: South Carolina | B42: southcarolina
A43: South Dakota | B43: southdakota
A44: Tennessee | B44: tennessee
A45: Texas | B45: texas
A46: Utah | B46: utah
A47: Vermont | B47: vermont
A48: Virginia | B48: virginia
A49: Washington | B49: washington
A50: West Virginia | B50: westvirginia
A51: Wisconsin | B51: wisconsin
A52: Wyoming | B52: wyoming
A53: Puerto Rico | B53: puertorico

Sheet State List (hidden)
A1: Last ResidentRegion | B1: Last Residence City | E1: MidWest | H1: List | N1: Year
A2: South | B2: Alabama | C2: =ROWS($B$2:B2) -> 1 | D2: =IF(pickedregion=A2,ROW(),"") ->  | E2: =IFERROR(SMALL($D$2:$D$53,ROW()-1),"") -> 15 | H2: =IFERROR(INDEX($A$1:$B$53,E2,2),"") -> Illinois | N2: 2010
A3: West | B3: Alaska | C3: =ROWS($B$2:B3) -> 2 | E3: =IFERROR(SMALL($D$2:$D$53,ROW()-1),"") -> 16 | H3: Indiana | N3: 2011
A4: West | B4: Arizona | C4: =ROWS($B$2:B4) -> 3 | E4: =IFERROR(SMALL($D$2:$D$53,ROW()-1),"") -> 17 | H4: Iowa | N4: 2012
A5: South | B5: Arkansas | C5: =ROWS($B$2:B5) -> 4 | E5: 18 | H5: Kansas
A6: West | B6: California | C6: =ROWS($B$2:B6) -> 5 | E6: 24 | H6: Michigan
A7: West | B7: Colorado | C7: =ROWS($B$2:B7) -> 6 | E7: 25 | H7: Minnesota
A8: Northeast | B8: Connecticut | C8: =ROWS($B$2:B8) -> 7 | E8: 27 | H8: Missouri
A9: South | B9: Delaware | C9: =ROWS($B$2:B9) -> 8 | E9: 29 | H9: Nebraska
A10: South | B10: District of Columbia | C10: =ROWS($B$2:B10) -> 9 | E10: 36 | H10: North Dakota
A11: South | B11: Florida | C11: =ROWS($B$2:B11) -> 10 | E11: 37 | H11: Ohio
A12: South | B12: Georgia | C12: =ROWS($B$2:B12) -> 11 | E12: 43 | H12: South Dakota
A13: West | B13: Hawaii | C13: =ROWS($B$2:B13) -> 12 | E13: 51 | H13: Wisconsin
A14: West | B14: Idaho | C14: =ROWS($B$2:B14) -> 13
A15: Midwest | B15: Illinois | C15: =ROWS($B$2:B15) -> 14 | D15: 15
A16: Midwest | B16: Indiana | C16: =ROWS($B$2:B16) -> 15 | D16: 16
A17: Midwest | B17: Iowa | C17: =ROWS($B$2:B17) -> 16 | D17: 17
A18: Midwest | B18: Kansas | C18: =ROWS($B$2:B18) -> 17 | D18: 18
A19: South | B19: Kentucky | C19: =ROWS($B$2:B19) -> 18
A20: South | B20: Louisiana | C20: =ROWS($B$2:B20) -> 19
A21: Northeast | B21: Maine | C21: =ROWS($B$2:B21) -> 20
A22: South | B22: Maryland | C22: =ROWS($B$2:B22) -> 21
A23: Northeast | B23: Massachusetts | C23: =ROWS($B$2:B23) -> 22
A24: Midwest | B24: Michigan | C24: =ROWS($B$2:B24) -> 23 | D24: 24 | H24: =IFERROR(INDEX($A$2:$B$53,E24,2),"") -> 
A25: Midwest | B25: Minnesota | C25: =ROWS($B$2:B25) -> 24 | D25: 25
A26: South | B26: Mississippi | C26: =ROWS($B$2:B26) -> 25
A27: Midwest | B27: Missouri | C27: =ROWS($B$2:B27) -> 26 | D27: 27
A28: West | B28: Montana | C28: =ROWS($B$2:B28) -> 27
A29: Midwest | B29: Nebraska | C29: =ROWS($B$2:B29) -> 28 | D29: 29
A30: West | B30: Nevada | C30: =ROWS($B$2:B30) -> 29
A31: Northeast | B31: New Hampshire | C31: =ROWS($B$2:B31) -> 30
A32: Northeast | B32: New Jersey | C32: =ROWS($B$2:B32) -> 31
A33: West | B33: New Mexico | C33: =ROWS($B$2:B33) -> 32
A34: Northeast | B34: New York | C34: =ROWS($B$2:B34) -> 33 | D34: =IF(pickedregion=A34,ROW(),"") -> 
A35: South | B35: North Carolina | C35: =ROWS($B$2:B35) -> 34
A36: Midwest | B36: North Dakota | C36: =ROWS($B$2:B36) -> 35 | D36: 36
A37: Midwest | B37: Ohio | C37: =ROWS($B$2:B37) -> 36 | D37: 37
A38: South | B38: Oklahoma | C38: =ROWS($B$2:B38) -> 37
A39: West | B39: Oregon | C39: =ROWS($B$2:B39) -> 38
A40: Northeast | B40: Pennsylvania | C40: =ROWS($B$2:B40) -> 39
A41: Northeast | B41: Rhode Island | C41: =ROWS($B$2:B41) -> 40
A42: South | B42: South Carolina | C42: =ROWS($B$2:B42) -> 41
A43: Midwest | B43: South Dakota | C43: =ROWS($B$2:B43) -> 42 | D43: 43
A44: South | B44: Tennessee | C44: =ROWS($B$2:B44) -> 43
A45: South | B45: Texas | C45: =ROWS($B$2:B45) -> 44
A46: West | B46: Utah | C46: =ROWS($B$2:B46) -> 45
A47: Northeast | B47: Vermont | C47: =ROWS($B$2:B47) -> 46
A48: South | B48: Virginia | C48: =ROWS($B$2:B48) -> 47
A49: West | B49: Washington | C49: =ROWS($B$2:B49) -> 48
A50: South | B50: West Virginia | C50: =ROWS($B$2:B50) -> 49
A51: Midwest | B51: Wisconsin | C51: =ROWS($B$2:B51) -> 50 | D51: 51
A52: West | B52: Wyoming | C52: =ROWS($B$2:B52) -> 51
A53: Northeast | B53: Puerto Rico | C53: =ROWS($B$2:B53) -> 52

Sheet Alabama (hidden)
A1: State | B1: Alabama was the 22nd state in the USA; it became a state on December 14, 1819.
A2: State Abbreviation | B2: AL
A3: State Capital | B3: Montgomery
A4: Largest City | B4: Birmingham
A5: Area | B5: 52,423 square miles [Alabama is the 30th biggest state in the USA]
A6: Population | B6: 4,833,722 (as of 2013) [Alabama is the 23rd most populous state in the USA]
A7: Name for Residents | B7: Alabamans
A8: Major Industries | B8: agriculture (cotton, corn, peanuts, soybeans, poultry, and livestock), hydroelectric power, mining (coal, limestone, iron ore), steel | C8: making
A9: Major Rivers | B9: Tombigbee River, Alabama River, Tennessee River, Chattahoochee River
A10: Major Lakes | B10: Guntersville Lake, Wilson Lake, Martin Lake, West Point Lake, Lewis Smith Lake
A11: Highest Point | B11: Cheaha Mountain | C11: 2407 feet, (734 m) above sea level
A12: Number of Counties | B12: 67
A13: Bordering States | B13: Florida, Georgia, Mississippi, Tennessee
A14: Bordering Bodies of Water | B14: Gulf of Mexico
A15: Origin of the Name | B15: Alabama means "tribal town" in the language of the local Creek Indians
A16: State Nickname | B16: Heart of Dixie, "Yellowhammer State"
A17: State Motto | B17: "Audemus jura nostra defendere" | C17: We Dare Defend Our Rights
A18: State Song | B18: Alabama

Sheet Alaska (hidden)
A1: State | B1: Alaska was the 49th state in the USA; it became a state on January 3, 1959.
A3: State Abbreviation | B3: AK
A4: State Capital | B4: Juneau
A5: Largest City | B5: Anchorage
A6: Area | B6: 656,425 square miles [Alaska is the biggest state in the USA]
A7: Population | B7: 735,132 (as of 2013) [Alaska is the 47th most populous state in the USA]
A8: Name for Residents | B8: Alaskans
A9: Major Industry | B9: oil (petroleum)
A10: Major Rivers | B10: Yukon River, Kuskokwim River, Colville River, Copper River
A11: Major Lakes | B11: Iliamna Lake, Aleknagik Lake, Becharof Lake, Clark Lake, Minchumina Lake
A12: Highest Point | B12: Mt. McKinley | C12: 20,320 feet (6,194 m) above sea level | D12: this is the highest point in the USA.
A13: Number of Boroughs (Counties) | B13: 27
A14: Bordering US States | B14: none
A15: Bordering Country | B15: Canada
A16: Bordering Bodies of Water | B16: Arctic Ocean, Pacific Ocean, Beaufort Sea, Bering Sea, Gulf of Alaska
A18: Origin of the Name | B18: The word Alaska is from the Aleut Indian word "alaxsxaq" or "agunalaksh" that mean the mainland or shore.
A19: State Nickname | B19: The Last Frontier
A20: State Motto | B20: "North To The Future"
A21: State Song | B21: Alaska's Flag

Sheet Arizona (hidden)
A1: State | B1: Arizona was the 48th state in the USA; it became a state on February 14, 1912.
A2: State Abbreviation | B2: AZ
A3: State Capital | B3: Phoenix
A4: Largest City | B4: Phoenix
A5: Area | B5: 114,006 square miles [Arizona is the 6th biggest state in the USA]
A6: Population | B6: 6,626,624 (as of 2013) [Arizona is the 15th most populous state in the USA]
A7: Name for Residents | B7: Arizonans
A8: Major Industries | B8: mining (copper, molybdenum, gold, and silver), manufacturing, and tourism
A10: Major Rivers | B10: Colorado River, Little Colorado River, Gila River, Bill Williams River
A11: Major Lakes | B11: Lake Mead, Lake Havasu, Lake Mohave, Theodore Roosevelt Lake, San Carlos Lake, Lake Powell
A12: Highest Point | B12: Humphreys Peak | C12: 12,633 feet (3,581 m) above sea level
A13: Number of Counties | B13: 15
A14: Bordering States | B14: California, Colorado, Nevada, New Mexico, Utah
A15: Bordering Country | B15: Mexico
A17: Origin of the Name | B17: The word Arizona comes from one of the following (its origin is not certain): the Aztec Indian word "arizuma," that means "silver | C17: bearing," from the Tohono O'odham Indian word "Aleh | D17: zone" which means "small spring," or the Pima Indian word "Ali shonak" which also means "small spring."
A18: State Nickname | B18: Grand Canyon State
A19: State Motto | B19: "Ditat Deus," God Enriches
A20: State Song | B20: Arizona March Song

Sheet Arkansas (hidden)
A1: State | B1: Arkansas was the 25th state in the USA; it became a state on June 15, 1836.
A2: State Abbreviation | B2: AR
A3: State Capital | B3: Little Rock
A4: Largest City | B4: Little Rock
A5: Area | B5: 53,182 square miles [Arkansas is the 29th biggest state in the USA]
A6: Population | B6: 2,959,373 (as of 2013) [Arkansas is the 32nd most populous state in the USA]
A7: Name for Residents | B7: Arkansans
A8: Major Industries | B8: agriculture (chickens, soybeans, rice, cotton), paper and wood products (including furniture), electronic equipment, mining (aluminum and diamonds)
A10: Presidential Birthplace | B10: William Jefferson Clinton was born in Hope on August 19, 1946 (he was the 42nd US President, serving from 1993 to 2001).
A12: Major Rivers | B12: Arkansas River, Mississippi River
A13: Major Lakes | B13: Lake Ouachita, Bull Shoals Lake
A14: Highest Point | B14: Magazine Mountain | C14: 2,753 feet (839 m) above sea level
A15: Lowest Point | B15: Ouachita River; 55 feet, (17 m) above sea level
A16: Number of Counties | B16: 75
A17: Bordering States | B17: Louisiana, Mississippi, Missouri, Oklahoma, Tennessee, Texas
A19: Origin of the Name | B19: Arkansas is from the Quapaw (Sioux) word "acansa," which means "downstream place" or "south wind."
A20: State Nickname | B20: The Natural State
A21: State Motto | B21: "Regnat populus" | C21: The people rule
A22: State Song | B22: "Arkansas", by Wayland Holyfield, and "Oh Arkansas", by Terry Rose and Gary Klaff

Sheet California (hidden)
A1: State | B1: California was the 31st state in the USA; it was admitted on September 9, 1850.
A2: State Abbreviation | B2: CA
A3: State Capital | B3: Sacramento
A4: Other Notable Cities | B4: Los Angeles, San Diego, San Francisco
A5: Area | B5: 163,707 square miles [California is the 3rd biggest state in the USA | C5: only Alaska and Texas are bigger]
A6: Population | B6: 38,332,521 (as of 2013) [California is the most populous state in the USA]
A7: Name for Residents | B7: Californians
A8: Major Industries | B8: agriculture (many, many products), oil, mining, electronics, movie making/entertainment, and tourism
A10: Presidential Birthplace | B10: Richard Milhous Nixon was born in Yorba Linda on January 9, 1913 (he was the 37th US President, serving from 1969 to 1974).
A12: Main Rivers | B12: Sacramento River, Colorado River, San Joaquin River
A13: Highest Point | B13: Mt. Whitney, 14,495 feet (4,418 m) above sea level
A14: Lowest Point | B14: Death Valley, 282 feet (86 m) below sea level [this is the lowest point in the Western Hemisphere]
A15: Number of Counties | B15: 58
A16: Bordering States | B16: Oregon, Nevada, Arizona
A17: Bordering Country | B17: Mexico
A18: Bordering Bodies of Water | B18: Pacific Ocean
A20: Origin of the Name | B20: The name California comes from a mythical Spanish island ruled by a queen called Califia that was featured in a Spanish romance ("Las Sergas de Esplandian") written by Garcia Ordonez de Montalvo in 1510. The Spanish explorers originally thought that California was an island.
A25: State Nickname | B25: The Golden State
A26: State Motto | B26: Eureka (I have found it)
A27: State Song | B27: "I Love You, California"

Sheet Colorado (hidden)
A1: State | B1: Colorado was the 38th state in the USA; it became a state on August 1, 1876 .
A2: State Abbreviation | B2: CO
A3: State Capital | B3: Denver
A4: Largest City | B4: Denver
A5: Area | B5: 104,100 square miles [Colorado is the 8th biggest state in the USA]
A6: Population | B6: 5,268,367 (as of 2013) [Colorado is the 22nd most populous state in the USA]
A7: Name for Residents | B7: Coloradans
A8: Major Industries | B8: agriculture (wheat, cattle, sheep), tourism (especially skiers), mining (gold, silver), oil, finance, and manufacturing
A10: Major Rivers | B10: Colorado River, Rio Grande, Arkansas River, South Platte River
A11: Major Lakes | B11: Grand Lake, Blue Mesa Reservoir, John Martin Reservoir
A12: Highest Point | B12: Mt. Elbert; 14,433 feet (4,399 m) above sea level
A13: Number of Counties | B13: 64
A14: Bordering States | B14: Arizona, Kansas, Nebraska, New Mexico, Oklahoma, Utah, Wyoming
A16: Origin of the Name | B16: The word Colorado is Spanish for the "color red," and refers to the muddy Colorado River
A17: State Nickname | B17: Centennial State, Colorful Colorado
A18: State Motto | B18: "Nil sine Numine" | C18: Nothing Without Providence
A19: State Song | B19: Where the Columbines Grow

Sheet Connecticut (hidden)
A1: State | B1: Connecticut was the 5th state in the USA; it became a state on January 9, 1788 .
A3: State Abbreviation | B3: CT
A4: State Capital | B4: Hartford
A5: Largest City | B5: Bridgeport
A6: Area | B6: 5,544 square miles [Connecticut is the 48th biggest state in the USA]
A7: Population | B7: 3,596,080 (as of 2013) [Connecticut is the 29th most populous state in the USA]
A8: Name for Residents | B8: Connecticuters
A9: Major Industries | B9: agriculture, industry (especially insurance), tourism
A10: Major Rivers | B10: Connecticut River, Housatonic River, Thames River
A11: Major Lakes | B11: Lake Candlewood
A12: Highest Point | B12: Mt. Frissell | C12: 2380 feet, (725 m) above sea level
A13: Number of Counties | B13: 8
A14: Bordering States | B14: Massachusetts, New York, Rhode Island
A15: Bordering Bodies of Water | B15: Long Island Sound, Atlantic Ocean
A17: Origin of the Name | B17: The name Connecticut is from a Mohican/Algonquin Indian word "quonehtacut", which means "long tidal river."
A18: State Nickname | B18: Constitution State
A19: State Motto | B19: "Qui transtulit sustinet" | C19: He Who Transplanted Still Sustains
A20: State Song | B20: Yankee Doodle

Sheet Delaware (hidden)
A1: State | B1: Delaware was the 1st state in the USA; it became a state on December 7, 1787 .
A2: State Abbreviation | B2: DE
A3: State Capital | B3: Dover
A4: Largest City | B4: Wilmington
A5: Area | B5: 1,954 square miles [Delaware is the 49th biggest state in the USA]
A6: Population | B6: 925,749 (as of 2013) [Delaware is the 45th most populous state in the USA]
A7: Name for Residents | B7: Delawareans
A8: Major Industries | B8: business, agriculture and tourism
A10: Major Rivers | B10: Delaware River, Mispillion River, Nanticoke River
A11: Major Lakes | B11: none
A12: Highest Point | B12: Ebright Road (near the Pennsylvania state line) | C12: 442 feet (135 m) above sea level
A13: Number of Counties | B13: 3
A14: Bordering States | B14: Maryland, New Jersey, Pennsylvania
A15: Bordering Bodies of Water | B15: Delaware Bay, Atlantic Ocean
A17: Origin of the Name | B17: Delaware was named to honor the early Virginia governor, Lord De La Warr.
A18: State Nickname | B18: First State (this is because on Dec. 7, 1787, Delaware was the first of the 12 US states to ratify the new US Constitution), Diamond State, Blue Hen State, Small Wonder
A19: State Motto | B19: "Liberty and Independence"
A20: State Song | B20: Our Delaware

Sheet District of Columbia (hidden)
A1: State | B1: District of Columbia (Washington, D.C.) is the capital city of the USA. The White House, the Capitol, the Supreme Court, and many other government buildings are located in Washington, D.C.
A3: President George Washington chose the site as the future capital of the USA in 1791 (the French architect Pierre Charles L'Enfant designed the city). Washington, D.C. became the nation's capital on June 11, 1800 (previously, the country had been governed from Philadelphia, Pennsylvania). The first President to live in Washington D.C. was John Adams; his family moved there in 1800.
A5: Postal Abbreviation | B5: DC
A6: Area | B6: 68.25 square miles (176.75 square km) [Washington, D.C. is smaller in area than any state in the USA]
A7: Population | B7: 646,449 (as of 2013) [Washington, D.C. has more people than Wyoming and Vermont]
A8: Major Industry | B8: government
A9: Major Rivers | B9: Potomac River, Anacostia River
A10: Highest Point | B10: Tenleytown | C10: 410 feet (125 m) above sea level
A11: Bordering States | B11: Virginia, Maryland
A13: Origin of the Name | B13: The name Washington was to honor the first president of the USA, George Washington. The name Columbia is in reference to Christopher Columbus.
A14: Nickname | B14: D.C.
A15: Official Motto | B15: "Justia Omnibus" | C15: Justice for All
A16: Official Song | B16: The Star | C16: Spangled Banner, words by Francis Scott Key

Sheet Florida (hidden)
A1: State | B1: Florida was the 27th state in the USA; it was admitted on March 3, 1845.
A2: State Abbreviation | B2: FL
A3: State Capital | B3: Tallahassee
A4: Largest City | B4: Jacksonville
A5: Area | B5: 65,758 square miles [Florida is the 22nd biggest state in the USA]
A6: Population | B6: 19,552,860 (as of 2013) [Florida is the fourth most populous state in the USA, after California, New York and Texas]
A7: Name for Residents | B7: Floridians
A8: Major Industries | B8: tourism, agriculture (oranges, grapefruit, tomatos), electronics
A10: Major Rivers | B10: St. Johns River, St. Marys River, Suwannee River
A11: Major Lakes | B11: Lake Okeechobee, Lake George
A12: Highest Point | B12: A hill in Walton County | C12: 345 feet (105 m) above sea level
A13: Number of Counties | B13: 67
A14: Bordering States | B14: Georgia, Alabama
A15: Bordering Bodies of Water | B15: Atlantic Ocean, Gulf of Mexico
A17: Origin of the Name | B17: Florida was first seen by the Spanish explorer Ponce de Leon on Palm Sunday on April 2, 1513 | C17: he then named the "Pascua de Florida," meaning "Feast of Flowers" and claimed it for Spain
A18: State Nickname | B18: The Sunshine State
A19: State Motto | B19: "In God we trust."
A20: State Song | B20: "Swanee River"

Sheet Georgia (hidden)
A1: State | B1: Georgia was the 4th state in the USA; it became a state on January 2, 1788.
A2: State Abbreviation | B2: GA
A3: State Capital | B3: Atlanta
A4: Largest City | B4: Atlanta
A5: Area | B5: 59,441 square miles [Georgia is the 24th biggest state in the USA]
A6: Population | B6: 9,992,167 (as of 2013) [Georgia is the 8th most populous state in the USA]
A7: Name for Residents | B7: Georgians
A8: Major Industries | B8: textiles, timber (especially pine), agriculture (cotton, corn, peanuts, soybeans, poultry)
A10: Presidential Birthplace | B10: James Earl Carter, Jr., was born in Plains on October 1, 1924 (he was the 39th US President, serving from 1977 to 1981).
A12: Major Rivers | B12: Chattahoochee River, Savannah River, Suwannee River
A13: Major Lakes | B13: Lake Sidney Lanier, Clark Hill Lake, West Point Lake, Lake Hartwell
A14: Highest Point | B14: Brasstown Bald | C14: 4,784 feet (1,458 m) above sea level
A15: Number of Counties | B15: 159
A16: Bordering States | B16: Florida, Alabama, Tennessee, North Carolina, South Carolina
A17: Bordering Bodies of Water | B17: Atlantic Ocean
A18: Origin of the Name | B18: Georgia was named to honor King George II of England.
A19: State Nickname | B19: Empire State of the South, Peach State
A20: State Motto | B20: "Wisdom, Justice, and Moderation"
A21: State Song | B21: Georgia on My Mind

Sheet Hawaii (hidden)
A1: State | B1: Hawaii was the 50th state in the USA; it became a state on August 21, 1959. It consists of a long chain of islands in the Pacific Ocean.
A3: State Abbreviation | B3: HI
A4: State Capital | B4: Honolulu
A5: Largest City | B5: Honolulu
A6: Area | B6: 10,932 square miles [Hawaii is the 43rd biggest state in the USA]
A7: Population | B7: 1,404,054 (as of 2013) [Hawaii is the 40th most populous state in the USA]
A8: Name for Residents | B8: Hawaiians
A9: Major Industries | B9: tourism, agriculture (bananas, pineapples, macadamia nuts, taro)
A11: Presidential Birthplace | B11: Barack Obama was born in Honolulu, Hawaii, on August 4, 1961 (the 44th US President)
A12: Major Rivers | B12: Wailuku River (on the island of Hawaii), Anahulu River (on the island of Oahu)
A13: Major Lakes | B13: Salt Lake
A14: Highest Point | B14: Mauna Kea | C14: 13796 feet (4,205 m) above sea level
A15: Number of Counties | B15: 5
A16: Bordering Bodies of Water | B16: Pacific Ocean
A18: Origin of the Name | B18: Hawaii may been named for the traditional home of the Polynesians, Hawaii or Hawaiki, called "Owhyhee".
A19: State Nickname | B19: Aloha State
A20: State Motto | B20: "Ua mau ke ea o ka aina I ka pono" | C20: The life of the land is perpetuated in righteousness
A21: State Song | B21: Hawaii Ponoi (meaning Hawaii's Own)

Sheet Idaho (hidden)
A1: State | B1: Idaho was the 43rd state in the USA; it became a state on July 3, 1890
A2: State Abbreviation | B2: ID
A3: State Capital | B3: Boise
A4: Largest City | B4: Boise
A5: Area | B5: 83,574 square miles [Idaho is the 14th biggest state in the USA]
A6: Population | B6: 1,612,136 (as of 2013) [Idaho is the 39th most populous state in the USA]
A7: Name for Residents | B7: Idahoans
A8: Major Industries | B8: agriculture (potatoes, wheat, sugar beets, barley), lumber, mining
A10: Major Rivers | B10: Snake River, Coeur d'Alene River, St. Joe River, St. Maries River, Kootenai River
A11: Major Lakes | B11: Lake Pend Oreille, American Falls Reservoir, Bear Lake, Coeur d'Alene Lake
A12: Highest Point | B12: Borah Peak | C12: 12,662 feet (3,859 m) above sea level
A13: Lowest Point | B13: Snake River at Lewiston | C13: 770 feet (235 m) above sea level
A14: Number of Counties | B14: 44
A15: Bordering States | B15: Montana, Nevada, Oregon, Utah, Washington, Wyoming
A16: Bordering Country | B16: Canada
A18: Origin of the Name | B18: Unknown
A19: State Nickname | B19: Gem State
A20: State Motto | B20: "Esto perpetua" | C20: May it Endure Forever
A21: State Song | B21: Here We Have Idaho

Sheet Illinois (hidden)
A1: State | B1: Illinois was the 21st state in the USA; it became a state on December 3, 1818.
A2: State Abbreviation | B2: IL
A3: State Capital | B3: Springfield
A4: Largest City | B4: Chicago
A5: Area | B5: 57,918 square miles [Illinois is the 25th biggest state in the USA]
A6: Population | B6: 12,882,135 (as of 2013) [Illinois is the fifth most populous state in the USA, after California, New York, Texas, and Florida]
A7: Name for Residents | B7: Illinoisan
A8: Major Industries | B8: agriculture (corn, soybeans, wheat, oats, barley, rye, sorghum), cattle, manufacturing, mining
A10: Presidential Birthplace | B10: Ronald Wilson Reagan was born in Tampico on February 6, 1911 (he was the 40th US President, serving from 1981 to 1989)
A12: Major Rivers | B12: Mississippi River, Ohio River, Illinois River, Wabash River
A13: Major Lakes | B13: Lake Michigan, Rend Lake
A14: Highest Point | B14: Charles Mound | C14: 1,235 feet (376 m) above sea level
A15: Number of Counties | B15: 102
A16: Bordering States | B16: Indiana, Kentucky, Missouri, Iowa, Wisconsin
A17: Bordering Bodies of Water | B17: Lake Michigan
A19: Origin of the Name | B19: Illinois comes from the word Illini, a confederation of the Cahokia, Kaskaskia, Michigamea, Moingwena, Peoria and Tamaroa Indian tribes.
A20: State Nickname | B20: Prairie State
A21: State Motto | B21: State Sovereignty, National Union
A22: State Song | B22: "Illinois"

Sheet Indiana (hidden)
A1: State | B1: Indiana was the 19th state in the USA; it became a state on December 11, 1816.
A2: State Abbreviation | B2: IN
A3: State Capital | B3: Indianapolis
A4: Largest City | B4: Indianapolis
A5: Area | B5: 36,420 square miles [Indiana is the 38th biggest state in the USA]
A6: Population | B6: 6,570,902 (as of 2013) [Indiana is the 16th most populous state in the USA]
A7: Name for Residents | B7: Indianians or Hoosiers
A8: Major Industries | B8: agriculture (corn, soybeans, wheat), manufacturing, mining (coal, limestone), steel | C8: making
A10: Major Rivers | B10: Ohio River, Wabash River, White River, Tippecanoe River
A11: Major Lakes | B11: Mississinewa Lake, Lake Michigan
A12: Highest Point | B12: Hoosier Hill, Wayne County (near Richmond in east | C12: central Indiana) | D12: 1,257 feet (383 m) above sea level
A13: Number of Counties | B13: 92
A14: Bordering States | B14: Illinois, Kentucky, Michigan, Ohio
A16: Origin of the Name | B16: Indiana is a word that refers to the local Indians.
A17: State Nickname | B17: Hoosier State
A18: State Motto | B18: "The Crossroads of America"
A19: State Song | B19: "On the Banks of the Wabash, Far Away," by Paul Dresser

Sheet Iowa (hidden)
A1: State | B1: Iowa was the 29th state in the USA; it became a state on December 28, 1846 .
A3: State Abbreviation | B3: IA
A4: State Capital | B4: Des Moines
A5: Largest City | B5: Des Moines
A6: Area | B6: 56,276 square miles [Iowa is the 26th biggest state in the USA]
A7: Population | B7: 3,090,416 (as of 2013) [Iowa is the 30th most populous state in the USA]
A8: Name for Residents | B8: Iowans
A9: Major Industries | B9: agriculture (corn, soybeans, hogs, pigs), food manufacturing, insurance
A11: Presidential Birthplace | B11: Herbert Clark Hoover was born in West Branch on August 10, 1874 (he was the 31st US President, serving from 1929 to 1933).
A12: Major Rivers | B12: Mississippi River, Des Moines River, Missouri River, Cedar River, Iowa River
A13: Major Lakes | B13: Lake Red Rock
A14: Highest Point | B14: Hawkeye Point in Osceola County in northwestern Iowa | C14: 1,670 feet (509 m) above sea level
A15: Lowest Point | B15: Where the Mississippi River and Des Moines River meet; 480 feet (146 m) above sea level
A16: Number of Counties | B16: 99
A17: Bordering States | B17: Illinois, Nebraska, Minnesota, Missouri, South Dakota, Wisconsin
A19: Origin of the Name | B19: The name Iowa comes from Ioway, the French word for the Bah | C19: kho | D19: je Indian tribe that lived in the area.
A20: State Nickname | B20: Hawkeye State
A21: State Motto | B21: "Our liberties we prize and our rights we will maintain"
A22: State Song | B22: The Song of Iowa

Sheet Kansas (hidden)
A1: State | B1: Kansas was the 34th state in the USA; it became a state on January 29, 1861.
A3: State Abbreviation | B3: KS
A4: State Capital | B4: Topeka
A5: Largest City | B5: Wichita
A6: Area | B6: 82,282 square miles [Kansas is the 15th biggest state in the USA]
A7: Population | B7: 2,893,957 (as of 2013) [Kansas is the 34th most populous state in the USA]
A8: Name for Residents | B8: Kansans
A9: Major Industries | B9: agriculture (wheat and other grains), aircraft manufacturing, automobile manufacturing
A10: Major Rivers | B10: Kansas River, Republican River, Smoky Hill River, Arkansas River, Missouri River
A11: Major Lakes | B11: Tuttle Creek Reservoir, Cheney Reservoir, Waconda Lake
A12: Highest Point | B12: Mt. Sunflower | C12: 4,039 feet (1,231 m) above sea level
A13: Lowest Point | B13: Verdigris River | C13: 680 feet (270 m) above sea level
A14: Number of Counties | B14: 105
A15: Bordering States | B15: Colorado, Missouri, Nebraska, Oklahoma
A17: Origin of the Name | B17: Kansas was named for Konza (also called Kansa or Kaw) Indians who lived in the area.
A18: State Nickname | B18: Sunflower State
A19: State Motto | B19: "Ad astra per aspera" | C19: To the stars through difficulties
A20: State Song | B20: Home on the Range

Sheet Kentucky (hidden)
A1: State | B1: Kentucky was the 15th state in the USA; it became a state on June 1, 1792.
A2: State Abbreviation | B2: KY
A3: State Capital | B3: Frankfort
A4: Largest City | B4: Louisville
A5: Area | B5: 40,411 square miles [Kentucky is the 37th biggest state in the USA]
A6: Population | B6: 4,395,295 (as of 2013) [Kentucky is the 26th most populous state in the USA]
A7: Name for Residents | B7: Kentuckians
A8: Major Industries | B8: agriculture (tobacco, corn, peanuts, wheat), mining (anthracite coal), horse | C8: raising, whiskey manufacturing, automobile and truck manufacturing, chemical manufacturing
A10: Presidential Birthplace | B10: Abraham Lincoln was born in Hardin County (now called Larue County) on February 12, 1809 (he was the 16th US President, serving from 1861 to 1865).
A12: Major Rivers | B12: Ohio River, Mississippi River, Cumberland River, Kentucky River, Green River
A13: Major Lakes | B13: Lake Cumberland, Kentucky Lake, Lake Barkley
A14: Highest Point | B14: Black Mountain | C14: 4,145 feet (1,263 m) above sea level
A15: Number of Counties | B15: 120
A16: Bordering States | B16: Illinois, Indiana, Missouri, Ohio, Tennessee, Virginia, West Virginia
A17: Origin of the Name | B17: Kentucky is from the Iroquois Indian word "Ken | C17: tah | D17: ten," which means "land of tomorrow."
A18: State Nickname | B18: Bluegrass State
A19: State Motto | B19: "United we stand, divided we fall"
A20: State Slogan | B20: "Unbridled Spirit"
A21: State Song | B21: My Old Kentucky Home, by Stephen Foster

Sheet Louisiana (hidden)
A1: State | B1: Louisiana was the 18th state in the USA; it became a state on April 30, 1812.
A2: State Abbreviation | B2: LA
A3: State Capital | B3: Baton Rouge
A4: Largest City | B4: New Orleans
A5: Area | B5: 51,843 square miles [Louisiana is the 31st biggest state in the USA]
A6: Population | B6: 4,625,470 (as of 2013) [Louisiana is the 25th most populous state in the USA]
A7: Name for Residents | B7: Louisianans or Louisianians
A8: Major Industries | B8: agriculture (rice, cotton, soybeans), salt production, oil and natural gas, fishing (especially shellfish)
A10: Major Rivers | B10: Mississippi River, Red River, Ouachita River, Atchafalaya River, Sabine River
A11: Major Lakes | B11: Lake Pontchartrain, Lake Maurepas, Toledo Bend Reservoir, Grand Lake, White Lake, Calcasieu Lake, Catahoula Lake
A12: Highest Point | B12: Driskill Mountain | C12: 535 feet (163 m) above sea level
A13: Lowest Point | B13: New Orleans | C13: 8 feet (2.5 m) below sea level
A14: Number of Parishes (Counties) | B14: 64
A15: Bordering States | B15: Arkansas, Mississippi, Texas
A16: Bordering Bodies of Water | B16: Gulf of Mexico
A18: Origin of the Name | B18: Louisiana was named by the French explorer Sieur de La Salle in 1682 to honor King Louis XIV (14) of France.
A19: State Nickname | B19: Sportsman's Paradise (previously | C19: Pelican State)
A20: State Motto | B20: "Union, Justice, and Confidence "
A21: State Song | B21: "Give Me Louisiana" and "You Are My Sunshine"

Sheet Maine (hidden)
A1: State | B1: Maine was the 23rd state in the USA; it became a state on March 15, 1820 .
A2: State Abbreviation | B2: ME
A3: State Capital | B3: Augusta
A4: Largest City | B4: Portland
A5: Area | B5: 35,387 square miles [Maine is the 39th biggest state in the USA]
A6: Population | B6: 1,328,302 (as of 2013) [Maine is the 41st most populous state in the USA]
A7: Name for Residents | B7: Mainers
A8: Major Industries | B8: agriculture (especially potatoes), shipbuiding, fishing (especially lobsters), footwear, machinery, electronics, tourism
A10: Major Rivers | B10: Androscoggin River, Kennebec River, Penobscot River, St. John River
A11: Major Lakes | B11: Lake Moosehead, Richardson Lakes
A12: Highest Point | B12: Mt. Katahdin | C12: 5,268 feet (1,606 m) above sea level
A13: Number of Counties | B13: 16
A14: Bordering State | B14: New Hampshire
A15: Bordering Country | B15: Canada
A16: Bordering Bodies of Water | B16: Gulf of Maine, Atlantic Ocean
A18: Origin of the Name | B18: Maine refers to the mainland
A19: State Nickname | B19: Pine Tree State
A20: State Motto | B20: "Dirigo" | C20: I direct
A21: State Song | B21: "State of Maine Song"

Sheet Maryland (hidden)
A1: State | B1: Maryland was the 7th state in the USA; it became a state on April 28,1788.
A3: State Abbreviation | B3: MD
A4: State Capital | B4: Annapolis
A5: Largest City | B5: Baltimore
A6: Area | B6: 12,407 square miles [Maryland is the 42nd biggest state in the USA]
A7: Population | B7: 5,928,814 (as of 2013) [Maryland is the 19th most populous state in the USA]
A8: Name for Residents | B8: Marylanders
A9: Major Industries | B9: farming (corn, soybeans, tobacco, poultry and dairy products), mining (coal), steel products, communications equipment, fishing (crabs and oysters), government services
A10: Major Rivers | B10: Potomac River, Patapsco River, Patuxent River, Susquehanna River
A11: Major Lakes | B11: Lake Oakland, Deep Creek Lake, Prettyboy Reservoir, Loch Raven Reservoir
A12: Highest Point | B12: Backbone Mountain | C12: 3,360 feet (1,024 m) above sea level
A13: Number of Counties | B13: 23
A14: Bordering States | B14: Delaware, Pennsylvania, Virginia, West Virginia [and Washington, District of Columbia]
A15: Bordering Bodies of Water | B15: Chesapeake Bay, Atlantic Ocean
A17: Origin of the Name | B17: Maryland was named to honor the Queen consort Henrietta Maria (1609 | C17: 1669), the wife of Britain's King Charles I
A18: State Nickname | B18: Old Line State
A19: State Motto | B19: "Fatti Maschii, Parole Femine" Manly Deeds, Womanly Words
A20: State Song | B20: Maryland, My Maryland

Sheet Massachusetts (hidden)
A1: State | B1: Massachusetts was the 6th state in the USA; it became a state on February 6, 1788.
A3: State Abbreviation | B3: MA
A4: State Capital | B4: Boston
A5: Largest City | B5: Boston
A6: Area | B6: 10,555 square miles [Massachusetts is the 44th biggest state in the USA]
A7: Population | B7: 6,692,824 (as of 2013) [Massachusetts is the 14th most populous state in the USA]
A8: Name for Residents | B8: Massachusettsans
A9: Major Industries | B9: textiles, electronics, publishing, education, tourism, fishing
A10: Presidential Birthplaces
A11: John Adams was born in Braintree (now Quincy) on October 30, 1735 (he was the 2nd US President, serving from 1797 to 1801).
A12: John Quincy Adams was born in Braintree (now Quincy) on July 11, 1767 (he was the 6th US President, serving from 1825 to 1829).
A14: John Fitzgerald Kennedy was born in Brookline on May 29, 1917 (he was the 35th US President, serving from 1961 to 1963).
A16: George Herbert Walker Bush was born in Milton on June 12, 1924 (he was the 41st US President, serving from 1989 to 1993).
A18: Major Rivers | B18: Charles River, Connecticut River, Merrimack River
A19: Major Lake | B19: Quabbin Reservoir
A20: Highest Point | B20: Mt. Greylock | C20: 3,491 feet (1,064 m) above sea level
A21: Number of Counties | B21: 14
A22: Bordering States | B22: Connecticut, New Hampshire, New York, Rhode Island, Vermont
A23: Bordering Bodies of Water | B23: Atlantic Ocean
A25: Origin of the Name | B25: Massachusetts was named for an Algonquian Indian word that means "a big hill place." State Nickname | C25: Bay State
A26: State Motto | B26: "Ense petit placidam sub libertate quietem" | C26: ( By the sword we seek peace, but peace only under liberty)
A27: State Song | B27: All Hail to Massachusetts

Sheet Michigan (hidden)
A1: State | B1: Michigan was the 26th state in the USA; it became a state on January 26, 1837.
A2: State Abbreviation | B2: MI
A3: State Capital | B3: Lansing
A4: Largest City | B4: Detroit
A5: Area | B5: 96,810 square miles [Michigan is the 11th biggest state in the USA]
A6: Population | B6: 9,895,622 (as of 2013) [Michigan is the 9th most populous state in the USA, after California, New York, Texas,Florida, Illinois, Pennsylvania and Ohio]
A7: Name for Residents | B7: Michiganders, Michiganians or Michiganites
A8: Major Industries | B8: car manufacturing, farming (corn, soybeans, wheat), timber, fishing
A10: Major Rivers | B10: Detroit River, Grand River, Kalamazoo River, St. Clair River, St. Marys River
A11: Major Lakes | B11: Lake Michigan, Lake Superior, Lake Huron, Lake Erie, Lake St. Clair
A12: Highest Point | B12: Mt. Arvon | C12: 1,978 feet (604 m) above sea level
A13: Number of Counties | B13: 83
A14: Bordering States | B14: Wisconsin, Ohio, Indiana, Minnesota (across Lake Superior)
A15: Bordering Country | B15: Canada
A18: Origin of the Name | B18: Michigan is from an Algonquian Chippewa Indian word "meicigama" that means "big sea wate" (referring to the Great Lakes). State Nickname | C18: Wolverine State
A19: State Motto | B19: "Si quaeris peninsulam amoenam, circum spice" [If you are seeking a amenable (pleasant) peninsula, look around you]
A20: State Song | B20: Michigan, My Michigan

Sheet Minnesota (hidden)
A1: State | B1: Minnesota was the 32nd state in the USA; it became a state on May 11, 1858.
A2: State Abbreviation | B2: MN
A3: State Capital | B3: St. Paul
A4: Largest City | B4: Minneapolis
A5: Area | B5: 86,943 square miles [Minnesota is the 12th biggest state in the USA]
A6: Population | B6: 5,420,380 (as of 2013) [Minnesota is the 21st most populous state in the USA]
A7: Name for Residents | B7: Minnesotans
A8: Major Industries | B8: farming (corn, soybeans, sugar beets, wheat, dairy products), paper pulp, mining (iron ore)
A10: Major Rivers | B10: Minnesota River, Mississippi River, Rainy River, Red River of the North, St. Croix River
A11: Major Lakes | B11: Upper Red Lake, Lower Red Lake, Mille Lacs Lake, Vermillion Lake, Rainy Lake, Lake of the Woods, Lake Superior, Leech Lake, Winnibigoshish Lake, Lake Pepin
A12: Highest Point | B12: Eagle Mountain | C12: 2,301 feet (701 m) above sea level
A13: Number of Counties | B13: 87
A14: Bordering States | B14: Iowa, Michigan (across Lake Superior), North Dakota, South Dakota, Wisconsin
A15: Bordering Country | B15: Canada
A17: Origin of the Name | B17: Minnesota is from a Dakota Sioux Indian word that means "cloudy water" or "sky water" and refers to local rivers.
A18: State Nickname | B18: Gopher State. North Star State
A19: State Motto | B19: "L'Etoile du Nord" | C19: The Star of the North
A20: State Song | B20: Hail Minnesota

Sheet Mississippi (hidden)
A1: State | B1: Mississippi was the 20th state in the USA; it became a state on December 10, 1817 .
A2: State Abbreviation | B2: MS
A3: State Capital | B3: Jackson
A4: Largest City | B4: Jackson
A5: Area | B5: 48,434 square miles [Mississippi is the 32nd biggest state in the USA]
A6: Population | B6: 2,991,207 (as of 2013) [Mississippi is the 31st most populous state in the USA]
A7: Name for Residents | B7: Mississippians
A8: Major Industries | B8: farming (cotton, corn, soybeans, rice), oil, textiles, electronic equipment, transprtation equipment, fishing
A10: Major Rivers | B10: Mississippi River, Big Black River, Pearl River, Yazoo River
A11: Major Lakes | B11: Ross Barnett Reservoir, Arkabutla Lake, Sardis Lake, Grenada Lake
A12: Highest Point | B12: Woodall Mountain | C12: 806 feet (245 m) above sea level
A13: Number of Counties | B13: 82
A14: Bordering States | B14: Alabama, Arkansas, Louisiana, Tennessee
A15: Bordering Bodies of Water | B15: Gulf of Mexico
A17: Origin of the Name | B17: Mississippi is perhaps from the Ojibwa (Chippewa) Indian words "mici zibi," which means "great river" or "gathering of waters"
A18: State Nickname | B18: Magnolia State
A19: State Motto | B19: "Virtute et armis" | C19: By valor and arms
A20: State Song | B20: Go Mis | C20: sis | D20: sip | E20: pi

Sheet Missouri (hidden)
A1: State | B1: Missouri was the 24th state in the USA; it became a state on August 10, 1821.
A2: State Abbreviation | B2: MO
A3: State Capital | B3: Jefferson City
A4: Largest City | B4: Kansas City
A5: Area | B5: 69,709 square miles [Missouri is the 21st biggest state in the USA]
A6: Population | B6: 6,044,171 (as of 2013) [Missouri is the 18th most populous state in the USA]
A7: Name for Residents | B7: Missourians
A8: Major Industries | B8: farming (corn, soybeans), mining (zinc, lead), aircraft equipment, cars, beer
A10: Presidential Birthplace | B10: Harry S. Truman was born in Lamar (near Joplin) on May 8, 1884 (he was the 33rd US President, serving from 1945 to 1953).
A12: Major Rivers | B12: Mississippi River, Missouri River, Osage River
A13: Major Lakes | B13: Lake of the Ozarks, Table Rock Lake, Clearwater Lake, Lake Wappapello
A14: Highest Point | B14: Taum Sauk Mountain | C14: 1,772 feet (540 m) above sea level
A15: Number of Counties | B15: 114 (plus one independent city, St. Louis)
A16: Bordering States | B16: Arkansas, Illinois, Iowa, Kansas, Kentucky, Nebraska, Oklahoma, Tennessee
A18: Origin of the Name | B18: Missouri was named for an Algonquian Indian word that means "river of the big canoes."
A19: State Nickname | B19: The Show Me State
A20: State Motto | B20: "Salus populi suprema lex esto " | C20: The welfare of the people shall be the supreme law
A21: State Song | B21: Missouri Waltz

Sheet Montana (hidden)
A1: State | B1: Montana was the 41st state in the USA; it became a state on November 8,1889.
A3: State Abbreviation | B3: MT
A4: State Capital | B4: Helena
A5: Largest City | B5: Billings
A6: Area | B6: 147,046 square miles [Montana is the 4th biggest state in the USA]
A7: Population | B7: 1,015,165 (as of 2013) [Montana is the 44th most populous state in the USA]
A8: Name for Residents | B8: Montanans
A9: Major Industries | B9: farming (wheat, sugar beets), cattle ranching, mining (gold, silver, copper, coal), oil, lumber, tourism
A10: Major Rivers | B10: Yellowstone River, Missouri River, Clark Fork River
A11: Major Lakes | B11: Flathead Lake, Fort Peck Lake
A12: Highest Point | B12: Granite Peak | C12: 12,799 feet (3,901 m) above sea level
A13: Lowest Point | B13: Kootenai River | C13: 1,800 feet (550 m) above sea level
A14: Number of Counties | B14: 56
A15: Bordering States | B15: Idaho, North Dakota, South Dakota, Wyoming
A16: Bordering Country | B16: Canada
A17: Origin of the Name | B17: The name Montana is the from the Spanish word from mountainous.
A18: State Nickname | B18: Big Sky Country, Treasure State
A19: State Motto | B19: "Oro y plata" | C19: Gold and Silver
A20: State Song | B20: Montana

Sheet Nebraska (hidden)
A1: State | B1: Nebraska was the 37th state in the USA; it became a state on March 1, 1867.
A3: State Abbreviation | B3: NE
A4: State Capital | B4: Lincoln
A5: Largest City | B5: Omaha
A6: Area | B6: 77,358 square miles [Nebraska is the 16th biggest state in the USA]
A7: Population | B7: 1,868,516 (as of 2013) [Nebraska is the 37th most populous state in the USA]
A8: Name for Residents | B8: Nebraskans
A9: Major Industries | B9: farming (corn, soybeans, wheat, sorghum), grain processing, meat | C9: packing the Air Force Strategic Air Command,
A11: Presidential Birthplace | B11: Gerald Rudolph Ford was born in Omaha on July 14, 1913 (Ford was the 38th US President, serving from 1974 to 1977).
A12: Major Rivers | B12: Missouri River, Niobrara River, Platte River, Republican River
A13: Major Lakes | B13: Lewis and Clark Lake, Harlan County Lake, Lake C.W. McConaughty
A14: Highest Point | B14: Panorama Point | C14: 5,426 feet (1,654 m) above sea level
A15: Number of Counties | B15: 93
A16: Bordering States | B16: Colorado, Iowa, Kansas, Missouri, South Dakota, Wyoming
A18: Origin of the Name | B18: The name Nebraska is from an Oto Indian word that means "flat water" (referring to the Platte River, which means "flat river" in French)
A19: State Nickname | B19: Cornhusker State, The Tree Planters' State
A20: State Motto | B20: "Equality before the law"
A21: State Song | B21: Beautiful Nebraska

Sheet Nevada (hidden)
A1: State | B1: Nevada was the 36th state in the USA; it became a state on October 31, 1864 .
A2: State Abbreviation | B2: NV
A3: State Capital | B3: Carson City
A4: Largest City | B4: Las Vegas
A5: Area | B5: 110,567 square miles [Nevada is the 7th biggest state in the USA]
A6: Population | B6: 2,790,136 (as of 2013) [Nevada is the 35th most populous state in the USA]
A7: Name for Residents | B7: Nevadans
A8: Major Industries | B8: tourism, mining (gold, silver), hydro | C8: electric power
A10: Major Rivers | B10: Colorado River, Humboldt River, Truckee River
A11: Major Lakes | B11: Pyramid Lake, Lake Mead, Lake Mojave, Lake Tahoe, Walker Lake
A12: Highest Point | B12: Boundary Peak | C12: 13,143 feet (4,006 m) above sea level
A13: Number of Counties | B13: 16 (plus 1 independent city)
A14: Bordering States | B14: Arizona, California, Idaho, Oregon, Utah
A17: Origin of the Name | B17: Nevada is from the Spanish word meaning "snowcapped."
A18: State Nickname | B18: Silver State, Sagebrush State
A19: State Motto | B19: "All for Our Country "
A20: State Song | B20: Home Means Nevada

Sheet New Hampshire (hidden)
A1: State | B1: New Hampshire was the 9th state in the USA; it became a state on June 21, 1788.
A2: State Abbreviation | B2: NH
A3: State Capital | B3: Concord
A4: Largest City | B4: Manchester
A5: Area | B5: 9,351 square miles [New Hampshire is the 46th biggest state in the USA]
A6: Population | B6: 1,323,459 (as of 2013) [New Hampshire is the 42nd most populous state in the USA]
A7: Name for Residents | B7: New Hampshirites
A8: Major Industries | B8: textiles, lumber, tourism, electronic equipment, software
A9: Presidential Birthplace | B9: Franklin Pierce was born in Hillsborough (now Hillsboro) on November 23, 1804 (he was the 14th US President, serving from 1853 to 1857).
A10: Major Rivers | B10: Androscoggin River, Connecticut River, Merrimack River
A11: Major Lake | B11: Lake Winnipesaukee
A12: Highest Point | B12: Mt. Washington | C12: 6,288 feet (1,917 m) above sea level
A13: Number of Counties | B13: 10
A14: Bordering States | B14: Maine, Massachusetts, Vermont
A15: Bordering Country | B15: Canada
A16: Bordering Bodies of Water | B16: Atlantic Ocean
A17: Origin of the Name | B17: New Hampshire was named for Hampshire, England, by Captain John Mason.
A18: State Nickname | B18: Granite State
A19: State Motto | B19: "Live Free or Die"
A20: State Song | B20: Old New Hampshire

Sheet New Jersey (hidden)
A1: State | B1: New Jersey was the 3rd state in the USA; it became a state on December 18, 1787.
A2: State Abbreviation | B2: NJ
A3: State Capital | B3: Trenton
A4: Largest City | B4: Newark
A5: Area | B5: 8,722 square miles [New Jersey is the 47th biggest state in the USA]
A6: Population | B6: 8,899,339 (as of 2013) [New Jersey is the 11th most populous state in the USA]
A7: Name for Residents | B7: New Jerseyites or New Jerseyans
A8: Major Industries | B8: farming (potatoes, tomatoes, peaches), chemicals, pharmaceuticals, petroleum | C8: based products, insurance, tourism
A10: Presidential Birthplace | B10: Grover Cleveland was born in Caldwell on March 18, 1837 (he was the 22nd and 24th US President, from 1885 to 1889 and from 1893 to 1897).
A12: Major Rivers | B12: Delaware River, Hudson River
A13: Highest Point | B13: High Point | C13: 1,803 feet (550 m) above sea level (located in the northernmost part of New Jersey)
A14: Number of Counties | B14: 21
A15: Bordering States | B15: New York, Pennsylvania, Delaware
A16: Bordering Bodies of Water | B16: Atlantic Ocean
A17: Origin of the Name | B17: New Jersey was named by James, Duke of York (the brother of King Charles II of England), who was given New Jersey by his brother. James later gave New Jersey to Lord John Berkeley and Sir George Carteret. James named the colony New Jersey to honor Carteret, who had been the Governor of Jersey, a British island in the English Channel.
A18: State Nickname | B18: Garden State
A19: State Motto | B19: "Liberty and Prosperity"
A20: State Song | B20: none

Sheet New Mexico (hidden)
A1: State | B1: New Mexico was the 47th state in the USA; it became a state on January 6, 1912 .
A2: State Abbreviation | B2: NM
A3: State Capital | B3: Santa Fe
A4: Largest City | B4: Albuquerque
A5: Area | B5: 121,593 square miles [New Mexico is the 5th biggest state in the USA]
A6: Population | B6: 2,085,287 (as of 2013) [New Mexico is the 36th most populous state in the USA]
A7: Name for Residents | B7: New Mexicans
A8: Major Industries | B8: mining (potash, copper, silver, uranium), oil, natural gas, tourism
A10: Major Rivers | B10: Rio Grande, Pecos River
A11: Major Lakes | B11: Elephant Butte Reservoir, Conchas Lake, Navajo Reservoir
A12: Highest Point | B12: Wheeler Peak | C12: 13,161 feet (4,011 m) above sea level
A13: Lowest Point | B13: Red Bluff Lake | C13: 2,817 feet (859 m) above sea level
A14: Number of Counties | B14: 33
A15: Bordering States | B15: Arizona, Colorado, Oklahoma, Texas, Utah
A16: Bordering Country | B16: Mexico
A17: Origin of the Name | B17: Named by the Spanish, in reference to Mexico
A18: State Nickname | B18: Land of Enchantment
A19: State Motto | B19: "Crescit eundo" | C19: It grows as it goes
A20: State Song | B20: O, Fair New Mexico

Sheet New York (hidden)
A1: State | B1: New York was the 11th state in the USA; it became a state on July 26, 1788.
A2: State Abbreviation | B2: NY
A3: State Capital | B3: Albany
A4: Biggest City | B4: New York City
A5: Area | B5: 54,475 square miles [New York is the 27th largest state in the USA]
A6: Population | B6: 19,651,127 (as of 2013) [New York is the third most populous state in the USA, after California and Texas]
A7: Name for Residents | B7: New Yorkers
A8: Major Industries | B8: finance, communications, international trade, publishing, fashion, communications, farming (fruit and dairy), tourism
A9: Main Rivers | B9: Hudson River, Mohawk River, Genesee River
A10: Highest Point | B10: Mt. Marcy, 5,344 feet (1,629 m) above sea level
A11: Number of Counties | B11: 62
A12: Bordering States | B12: Vermont, Massachusetts, Connecticut, New Jersey, Pennsylvania, Rhode Island (water border)
A13: Bordering Country | B13: Canada
A14: Bordering Bodies of Water | B14: Lake Ontario, Lake Erie, Lake Champlain, Atlantic Ocean
A16: Origin of the Name | B16: The English took over of the area that had been called "New Netherland" in 1664, and renamed it New York to honor the Duke of York (York is a city in England).
A17: State Nickname | B17: The Empire State
A18: State Motto | B18: Excelsior (Ever Upwards)
A19: State Song | B19: "I Love New York"

Sheet North Carolina (hidden)
A1: State | B1: North Carolina was the 12th state in the USA; it became a state on November 21, 1789.
A2: State Abbreviation | B2: NC
A3: State Capital | B3: Raleigh
A4: Largest City | B4: Charlotte
A5: Area | B5: 53,821 square miles [North Carolina is the 28th biggest state in the USA]
A6: Population | B6: 9,848,060 (as of 2013) [North Carolina is the 10th most populous state in the USA]
A7: Name for Residents | B7: North Carolinians
A8: Major Industries | B8: farming (tobacco, poultry), textiles, furniture
A9: Presidential Birthplaces
A10: James Knox Polk was born in Mecklenburg County on November 2, 1795 (he was the 11th US President, serving from 1845 to 1849).
A12: Andrew Johnson was born in Raleigh on December 29, 1808 (he was the 17th US President, serving from 1865 to 1869).
A14: Major Rivers | B14: Neuse River, Roanoke River, Yadkin River
A15: Major Lakes | B15: Lake Mattamuskeet, Lake Phelps, Lake Waccamaw
A16: Highest Point | B16: Mt. Mitchell | C16: 6,684 feet (2,037 m) above sea level
A17: Number of Counties | B17: 100
A18: Bordering States | B18: Georgia, South Carolina, Tennessee, Virginia
A19: Origin of the Name | B19: North Carolina was named to honor King Charles I (Carolus is Latin for Charles). State Nickname | C19: Tar Heel State
A20: State Motto | B20: "Esse Quam Videri" (To Be Rather Than to Seem)
A21: State Song | B21: The Old North State

Sheet North Dakota (hidden)
A1: State | B1: North Dakota was the 39th state in the USA; it became a state on November 2, 1889.
A3: State Abbreviation | B3: ND
A4: State Capital | B4: Bismarck
A5: Largest City | B5: Fargo
A6: Area | B6: 70,704 square miles [North Dakota is the 19th biggest state in the USA]
A7: Population | B7: 723,393 (as of 2013) [North Dakota is the 48th most populous state in the USA]
A8: Name for Residents | B8: North Dakotans
A9: Major Industries | B9: farming (wheat, barley, oats, flaxseed), cattle, mining (lignite, soft coal), electrical power generation
A10: Major Rivers | B10: James River, Missouri River, Red River
A11: Major Lakes | B11: Lake Sakakawea, Lake Ohe
A12: Highest Point | B12: White Butte | C12: 3,506 feet (1,069 m) above sea level
A13: Lowest Point | B13: Red River | C13: 750 feet (230 m) above sea level
A14: Number of Counties | B14: 53
A15: Bordering States | B15: Minnesota, Montana, South Dakota
A16: Bordering Country | B16: Canada
A18: Origin of the Name | B18: Dakota was what the Sioux Indians called themselves.
A19: State Nickname | B19: Peace Garden State, Flickertail State, Roughrider State
A20: State Motto | B20: " Liberty and union, now and forever, one and inseparable"
A21: State Song | B21: North Dakota Hymn

Sheet Ohio (hidden)
A1: State | B1: Ohio was the 17th state in the USA; it became a state on March 1, 1803.
A2: State Abbreviation | B2: OH
A3: State Capital | B3: Columbus
A4: Largest City | B4: Columbus
A5: Area | B5: 44,828 square miles [Ohio is the 34th biggest state in the USA]
A6: Population | B6: 11,570,808 (as of 2013) [Ohio is the seventh most populous state in the USA, after California, New York, Texas, Florida,Illinois and Pennsylvania]
A7: Name for Residents | B7: Ohioans
A8: Major Industries | B8: manufacturing (steel, cars, airplanes, rubber products, chemicals, plastics), farming, mining (coal)
A9: Presidential Birthplaces
A11: Major Rivers | B11: Ohio River, Cuyahoga River, Miami River, Maumee River, Muskingham River, Scioto River, Sandusky River
A12: Major Lakes | B12: Lake Erie, Grand Lake
A13: Highest Point | B13: Campbell Hill | C13: 1,549 feet (472 m) above sea level
A14: Number of Counties | B14: 88
A15: Bordering States | B15: Pennsylvania, West Virginia, Kentucky, Indiana, Michigan
A18: Origin of the Name | B18: Ohio derives from the Iroquois Indian word meaning "good river" or "large river."
A19: State Nickname | B19: Buckeye State
A20: State Motto | B20: "With God, All Things Are Possible"
A21: State Song | B21: Beautiful Ohio

Sheet Oklahoma (hidden)
A1: State | B1: Oklahoma was the 46th state in the USA; it became a state on November 16, 1907.
A3: State Abbreviation | B3: OK
A4: State Capital | B4: Oklahoma City
A5: Largest City | B5: Oklahoma City
A6: Area | B6: 69,903 square miles [Oklahoma is the 20th biggest state in the USA]
A7: Population | B7: 3,850,568 (as of 2013) [Oklahoma is the 28th most populous state in the USA]
A8: Name for Residents | B8: Oklahomans
A9: Major Industries | B9: farming (wheat, cattle), oil, natural gas
A10: Major Rivers | B10: Arkansas River, Canadian River, Red River
A11: Major Lakes | B11: Lake Texoma, Eufaula Lake, Lake Hudson, Lake O' the Cherokees, Gibson Lake, Oologah Lake, Keystone Lake
A12: Highest Point | B12: Black Mesa | C12: 4,973 feet (1,516 m) above sea level
A13: Number of Counties | B13: 77
A14: Bordering States | B14: Arkansas, Colorado, Kansas, Missouri, New Mexico, Texas
A16: Origin of the Name | B16: The name Oklahoma is from the Choctaw Indian words "okla" meaning people and "humma" meaning red.
A17: State Nickname | B17: Sooner State
A18: State Motto | B18: "Labor omnia vincit" | C18: Labor Conquers All Things
A19: State Song | B19: "Oklahoma!" by Rodgers and Hammerstein

Sheet Oregon (hidden)
A1: State | B1: Oregon was the 33rd state in the USA; it became a state on February 14, 1859.
A2: State Abbreviation | B2: OR
A3: State Capital | B3: Salem
A4: Largest City | B4: Portland
A5: Area | B5: 98,386 square miles [Oregon is the 9th biggest state in the USA]
A6: Population | B6: 3,930,065 (as of 2013) [Oregon is the 27th most populous state in the USA]
A7: Name for Residents | B7: Oregonians
A8: Major Industries | B8: timber, paper products, farming (wheat, cattle), mining (coal), computer equipment, electronics
A10: Major Rivers | B10: Columbia River, Deschutes, Willamette River, John Day River, Snake River
A11: Major Lakes | B11: Upper Klamath Lake, Crater Lake
A12: Highest Point | B12: Mount Hood | C12: 11,239 feet (3,426 m) above sea level
A13: Number of Counties | B13: 36
A14: Bordering States | B14: California, Idaho, Nevada, Washington
A15: Bordering Bodies of Water | B15: Pacific Ocean
A17: Origin of the Name | B17: The origin is unknown. It may have come from the French word Ouragan (which means Hurricane) and was a former name of the Columbia River.
A18: State Nickname | B18: Beaver State
A19: State Motto | B19: "She Flies With Her Own Wings" and "The Union"
A20: State Song | B20: Oregon, My Oregon

Sheet Pennsylvania (hidden)
A1: State | B1: Pennsylvania was the 2nd state in the USA; it became a state on December 12, 1787.
A2: State Abbreviation | B2: PA
A3: State Capital | B3: Harrisburg
A4: Largest City | B4: Philadelphia
A5: Area | B5: 46,058 square miles [Pennsylvania is the 33rd biggest state in the USA]
A6: Population | B6: 12,773,801 (as of 2013) [Pennsylvania is the sixth most populous state in the USA, after California, New York, Texas,Florida and Illinois]
A7: Name for Residents | B7: Pennsylvanians
A8: Major Industries | B8: steel, farming (corn, oats, soybeans, mushrooms), mining (iron, portland cement, lime, stone), electronics equipment, cars, pharmaceuticals
A10: Presidential Birthplace | B10: James Buchanan was born in Cove Gap (near Mercersburg) on April 23, 1791 (he was the 15th US President, serving from 1857 to 1861)
A12: Major Rivers | B12: Allegheny River, Susquehanna River, Delaware River, Ohio River
A13: Major Lakes | B13: Lake Erie
A14: Highest Point | B14: Mt. Davis | C14: 3,213 feet (979 m) above sea level
A15: Number of Counties | B15: 66
A16: Bordering States | B16: New York, New Jersey, Delaware, Maryland, West Virginia, Ohio
A19: Origin of the Name | B19: This state was named to honor Admiral William Penn and his son, William Penn, Pennsylvania's founder.
A20: State Nickname | B20: Keystone State
A21: State Motto | B21: "Virtue, Liberty, and Independence"
A22: State Song | B22: Pennsylvania, lyrics by Eddie Khoury, music by Ronnie Bonner

Sheet Rhode Island (hidden)
A1: State | B1: Rhode Island was the 13th state in the USA; it became a state on May 29, 1790 .
A2: State Abbreviation | B2: RI
A3: State Capital | B3: Providence
A4: Largest City | B4: Providence
A5: Area | B5: 1,045 square miles square miles (not including Narragansett Bay) or 1,545 square miles square miles (including Narragansett Bay) [either way, Rhode Island is the smallest state in the USA]
A6: Population | B6: 1,051,511 (as of 2013) [Rhode Island is the 43rd most populous state in the USA]
A7: Name for Residents | B7: Rhode Islanders
A8: Major Industries | B8: textiles, jewelry, rubber products, machinery, tourism
A10: Major Rivers | B10: Sakonnet River
A11: Major Lakes | B11: Scituate Reservoir
A12: Highest Point | B12: Jerimoth Hill | C12: 812 feet (247 m) above sea level
A13: Number of Counties | B13: 5
A14: Bordering States | B14: Connecticut, Massachusetts, New York (water border)
A15: Bordering Bodies of Water | B15: Narragansett Bay, Rhode Island Sound, Atlantic Ocean
A17: Origin of the Name | B17: Rhode Island was either named for the Isle of Rhodes (in the Mediterranean Sea) or for its red clay (the Dutch explorer Adriaen Block may have named it "Rood Eylandt" meaning Red Island, in Dutch).
A18: State Nickname | B18: The Ocean State, Little Rhody
A19: State Motto | B19: "Hope"
A20: State Song | B20: Rhode Island, It's for Me

Sheet South Carolina (hidden)
A1: State | B1: South Carolina was the 8th state in the USA; it became a state on May 23, 1788.
A2: State Abbreviation | B2: SC
A3: State Capital | B3: Columbia
A4: Largest City | B4: Columbia
A5: Area | B5: 32,007 square miles [South Carolina is the 40th biggest state in the USA]
A6: Population | B6: 4,774,839 (as of 2013) [South Carolina is the 24th most populous state in the USA]
A7: Name for Residents | B7: South Carolinians
A8: Major Industries | B8: farming (tobacco, soybeans), textiles, manufacturing chemicals, processed foods, machinery, electronics, paper products, tourism
A10: Presidential Birthplace | B10: Andrew Jackson was born in Waxhaw on March 15, 1767 (he was the 7th US President, serving from 1829 to 1837).
A11: Major Rivers | B11: Santee River, Edisto River, Savannah River
A12: Major Lakes | B12: Lake Marion, Lake Moultrie, Lake Murray, Hartwell Lake
A13: Highest Point | B13: Sassafras Mountain | C13: 3,560 feet (1,085 m) above sea level
A14: Number of Counties | B14: 46
A15: Bordering States | B15: Georgia, North Carolina
A16: Bordering Bodies of Water | B16: Atlantic Ocean
A17: Origin of the Name | B17: South Carolina was named to honor King Charles I (Carolus is Latin for Charles).
A18: State Nickname | B18: Palmetto State
A19: State Motto | B19: "Dum Spiro Spero" | C19: While I breathe, I hope
A20: State Song | B20: Carolina

Sheet South Dakota (hidden)
A1: State | B1: South Dakota was the 40th state in the USA; it became a state on November 2, 1889.
A3: State Abbreviation | B3: SD
A4: State Capital | B4: Pierre
A5: Largest City | B5: Sioux Falls
A6: Area | B6: 77,121 square miles [South Dakota is the 17th biggest state in the USA]
A7: Population | B7: 844,877 (as of 2013) [South Dakota is the 46th most populous state in the USA]
A8: Name for Residents | B8: South Dakotans
A9: Major Rivers | B9: Cheyenne River, Missouri River, James River, White River
A10: Major Lakes | B10: Lake Oahe, Lake Francis Case, Lewis and Clark Lake
A11: Highest Point | B11: Harney Peak | C11: 7,242 feet (2,207 m) above sea level
A12: Lowest Point | B12: Big Stone Lake | C12: 962 feet (29.5 m) above sea level
A13: Number of Counties | B13: 64
A14: Bordering States | B14: Iowa, Minnesota, Montana, Nebraska, North Dakota, Wyoming
A16: Origin of the Name | B16: Dakota was what the Sioux Indians called themselves.
A17: State Nickname | B17: Mount Rushmore State
A18: State Motto | B18: "Under God the people rule"
A19: State Song | B19: Hail, South Dakota

Sheet Tennessee (hidden)
A1: State | B1: Tennessee was the 16th state in the USA; it became a state on June 1, 1796.
A3: State Abbreviation | B3: TN
A4: State Capital | B4: Nashville
A5: Largest City | B5: Memphis
A6: Area | B6: 42,146 square miles [Tennessee is the 36th biggest state in the USA]
A7: Population | B7: 6,495,978 (as of 2013) [Tennessee is the 17th most populous state in the USA]
A8: Name for Residents | B8: Tennesseans
A9: Major Industries | B9: mining (coal), electrical power, enriched uranium production, music, automobile manufacturing, farming (tobacco, cattle, soybeans, cotton), walking horses, tourism
A10: Major Rivers | B10: Tennessee River, Mississippi River, Cumberland River, Clinch River, Duck River
A11: Major Lakes | B11: Kentucky Lake, Norris Lake, Chickamauga Lake, Cherokee Lake, Tims Ford Reservoir
A12: Highest Point | B12: Clingmans Dome (located in Great Smoky Mountains National Park) | C12: 6,643 feet (2,025 m) above sea level
A13: Number of Counties | B13: 95
A14: Bordering States | B14: Alabama, Arkansas, Georgia, Kentucky, Mississippi, Missouri, North Carolina, Virginia
A16: Origin of the Name | B16: The name Tennessee came from a Cherokee village in the region that is called "Tanasie."
A17: State Nickname | B17: The Volunteer State
A18: State Motto | B18: "Agriculture and Commerce"
A19: State Song | B19: My Homeland Tennessee, The Tennessee Waltz, When It's Iris Time in Tennessee, My Tennessee, Rocky Top, Tennessee, and The Pride of Tennessee.

Sheet Texas (hidden)
A1: State | B1: Texas was the 28th state in the USA; it was admitted on December 29, 1845.
A2: State Abbreviation | B2: TX
A3: State Capital | B3: Austin
A4: Largest City | B4: Houston
A5: Area | B5: 268,601 square miles [Texas is the second biggest state in the USA | C5: only Alaska is bigger]
A6: Population | B6: 26,448,193 (as of 2013) [Texas is the second most populous state in the USA, after California; New York is the third most populous]
A7: Name for Residents | B7: Texans
A8: Major Industries | B8: petroleum and natural gas, farming (cotton, livestock), steel, banking, insurance, tourism
A9: Presidential Birthplaces
A10: Dwight David Eisenhower was born in Denison on October 14, 1890 (he was the 34th US President, serving from 1953 to 1961).
A12: Lyndon Baines Johnson was born near Johnson City on August 27, 1908 (he was the 36th US President, serving from 1963 to 1969).
A13: Main Rivers | B13: Rio Grande, Red River, Brazos River
A14: Highest Point | B14: Guadalupe Peak, 8,749 feet (2,667 m) above sea level
A15: Number of Counties | B15: 254
A16: Bordering States | B16: Arkansas, Louisiana, New Mexico, Oklahoma
A17: Bordering Country | B17: Mexico
A18: Bordering Bodies of Water | B18: Gulf of Mexico
A20: Origin of the Name | B20: The Caddo Indians of eastern Texas called their group of tribes the "Tejas," meaning "those who are friends".
A25: State Nickname | B25: The Lone Star State
A26: State Motto | B26: Friendship
A27: State Song | B27: "Texas, Our Texas"

Sheet Utah (hidden)
A1: State | B1: Utah was the 45th state in the USA; it became a state on January 4, 1896.
A2: State Abbreviation | B2: UT
A3: State Capital | B3: Salt Lake City
A4: Largest City | B4: Salt Lake City
A5: Area | B5: 84,904 square miles [Utah is the 13th biggest state in the USA]
A6: Population | B6: 2,900,872 (as of 2013) [Utah is the 33rd most populous state in the USA]
A7: Name for Residents | B7: Utahans or Utahns
A8: Major Industries | B8: oil, natural gas, mining (coal, copper, iron ore, silver, gold), steel | C8: making, farming (cattle, sheep, dairy products), tourism (especially skiing)
A10: Major Rivers | B10: Colorado River, Green River
A11: Major Lakes | B11: Great Salt Lake, Lake Powell, Utah Lake
A12: Highest Point | B12: Kings Peak | C12: 13,528 feet, (4,123 m) above sea level
A13: Number of Counties | B13: 29
A14: Bordering States | B14: Arizona, Colorado, Idaho, Nevada, New Mexico, Wyoming
A16: Origin of the Name | B16: The name Utah is from the Ute Indians.
A17: State Nickname | B17: Beehive State
A18: State Motto | B18: "Industry"
A19: State Song | B19: Utah, We Love Thee

Sheet Vermont (hidden)
A1: State | B1: Vermont was the 14th state in the USA; it became a state on March 4, 1791 .
A2: State Abbreviation | B2: VT
A3: State Capital | B3: Montpelier
A4: Largest City | B4: Burlington
A5: Area | B5: 9,615 square miles [Vermont is the 45th biggest state in the USA]
A6: Population | B6: 626,630 (as of 2013) [Vermont is the 49th most populous state in the USA]
A7: Name for Residents | B7: Vermonters
A8: Major Industries | B8: maple syrup, farming (dairy), tourism, electronics, forest products (especially paper)
A9: Presidential Birthplace
A10: Chester Alan Arthur was born in Fairfield on October 5, 1830 (he was the 21th US President, serving from 1881 to 1885).
A11: Calvin Coolidge was born in Plymouth on July 4, 1872 (he was the 30th US President, serving from 1923 to 1929).
A12: Major Rivers | B12: Connecticut River, West River, Otter River
A13: Major Lakes | B13: Lake Champlain, Lake Memphremagog
A14: Highest Point | B14: Mt. Mansfield | C14: 4,393 feet (1,339 m) above sea level
A15: Number of Counties | B15: 14
A16: Bordering States | B16: Massachusetts, New Hampshire, New York
A17: Bordering Country | B17: Canada
A18: Origin of the Name | B18: The name Vermont comes from the French words for green mountain, "mont vert."
A19: State Nickname | B19: Green Mountain State
A20: State Motto | B20: "Freedom and Unity "
A21: State Song | B21: These Green Mountains

Sheet Virginia (hidden)
A1: State | B1: Virginia was the 10th state in the USA; it became a state on June 25, 1788.
A2: State Abbreviation | B2: VA
A3: State Capital | B3: Richmond
A4: Largest City | B4: Virginia Beach
A5: Area | B5: 42,769 square miles [Virginia is the 35th biggest state in the USA]
A6: Population | B6: 8,260,405 (as of 2013) [Virginia is the 12th most populous state in the USA]
A7: Name for Residents | B7: Virginians
A8: Major Industries | B8: farming (tobacco, peanuts, corn, sweet potatoes, poultry, ham), tourism, US Navy warships, mining (coal), lumber (for paper and furniture), government workers
A9: Major Rivers | B9: James River, Rappahannock River, Potomac River, Shenandoah River
A10: Major Lakes and Bodies of Water | B10: Atlantic Intracoastal Waterway, Gathright Dam (Lake Moomaw), John H. Kerr Reservoir, John W. Flannagan Reservoir, Pound Lake, Philpott Lake
A11: Highest Point | B11: Mt. Rogers | C11: 5,729 feet (1,746 m) above sea level
A12: Number of Counties | B12: 95
A13: Bordering States | B13: Kentucky, Maryland, North Carolina, Tennessee, West Virginia [and Washington, District of Columbia]
A14: Bordering Bodies of Water | B14: Atlantic Ocean, Chesapeake Bay
A16: Origin of the Name | B16: Virginia was named for Queen Elizabeth I of England (she was known as the Virgin Queen). Sir Walter Raleigh may have suggested this name around 1584.
A17: State Nickname | B17: Old Dominion
A18: State Motto | B18: "Sic Semper Tyrannis" (Thus Always to Tyrants)
A19: State Song | B19: Carry Me Back to Old Virginia

Sheet Washington (hidden)
A1: State | B1: Washington was the 42nd state in the USA; it became a state on November 11, 1889.
A2: State Abbreviation | B2: WA
A3: State Capital | B3: Olympia
A4: Largest City | B4: Seattle
A5: Area | B5: 71,303 square miles [Washington is the 18th biggest state in the USA]
A6: Population | B6: 6,971,406 (as of 2013) [Washington is the 13th most populous state in the USA]
A7: Name for Residents | B7: Washingtonians
A8: Major Industries | B8: farming (fruit, berries, nuts, cattle, wheat), lumber, tourism, hydroelectric power, computer software, aircraft, aluminum refining
A10: Major Rivers | B10: Columbia River, Snake River, Yakima River
A11: Major Lakes | B11: Lake Franklin D. Roosevelt, Lake Washington
A12: Highest Point | B12: Mt. Rainier | C12: 14,410 feet (4,392 m) above sea level
A13: Number of Counties | B13: 39
A14: Bordering States | B14: Idaho, Oregon
A15: Bordering Country | B15: Canada
A16: Bordering Bodies of Water | B16: Pacific Ocean, Puget Sound
A18: Origin of the Name | B18: This state is named for George Washington, the first president of the USA.
A19: State Nickname | B19: The Evergreen State
A20: State Motto | B20: "Alki" (By and By)
A21: State Song | B21: Washington, My Home

Sheet West Virginia (hidden)
A1: State | B1: West Virginia was the 35th state in the USA; it became a state on June 20, 1863.
A3: State Abbreviation | B3: WV
A4: State Capital | B4: Charleston
A5: Largest City | B5: Charleston
A6: Area | B6: 24,231 square miles [West Virginia is the 41st biggest state in the USA]
A7: Population | B7: 1,854,304 (as of 2013) [West Virginia is the 38th most populous state in the USA]
A8: Name for Residents | B8: West Virginians
A9: Major Industries | B9: mining (coal), livestock, chemical manufacturing, glass products, tourism
A10: Major Rivers | B10: Ohio River, Guyandotte River, Greenbrier River
A11: Major Lakes | B11: Tygart Lake, Bluestone Lake
A12: Highest Point | B12: Spruce Knob | C12: 4,863 feet (1,482 m) above sea level
A13: Lowest Point | B13: Potomac River | C13: 240 feet (73 m) above sea level
A14: Number of Counties | B14: 55
A15: Bordering States | B15: Kentucky, Maryland, Ohio, Pennsylvania, Virginia
A17: Origin of the Name | B17: West Virginia was named for Queen Elizabeth I of England (she was known as the Virgin Queen). Sir Walter Raleigh may have suggested this name around 1584.
A18: State Nickname | B18: Mountain State
A19: State Motto | B19: "Montani semper liberi" | C19: Mountaineers are always free
A20: State Song | B20: West Virginia My Home, The West Virginia Hills, This Is My West Virginia

Sheet Wisconsin (hidden)
A1: State | B1: Wisconsin was the 30th state in the USA; it became a state on May 29,1848.
A2: State Abbreviation | B2: WI
A3: State Capital | B3: Madison
A4: Largest City | B4: Milwaukee
A5: Area | B5: 65,503 square miles [Wisconsin is the 23rd biggest state in the USA]
A6: Population | B6: 5,742,713 (as of 2013) [Wisconsin is the 20th most populous state in the USA]
A7: Name for Residents | B7: Wisconsinites
A8: Major Industries | B8: dairy products (milk, butter, cheese), farming (corn), machinery, paper manufacturing, beer, tourism
A10: Major Rivers | B10: Wisconsin River, Mississippi River, St. Croix River, Chippewa River
A11: Major Lakes | B11: Lake Michigan, Lake Superior, Lake Winnebago
A12: Highest Point | B12: Timms Hill | C12: 1,952 feet (595 m) above sea level
A13: Number of Counties | B13: 72
A14: Bordering States | B14: Minnesota, Michigan, Iowa, Illinois
A17: Origin of the Name | B17: Wisconsin is from an Indian word, but the origin is uncertain. It is perhaps an Algonquian Indian word that means "long river," a Chippewa/Ojibwa/Anishinabe word, "Ouisconsin," that means "grassy place," or "gathering of the waters."
A18: State Nickname | B18: Badger State
A19: State Motto | B19: "Forward"
A20: State Song | B20: On, Wisconsin!

Sheet Wyoming (hidden)
A1: State | B1: Wyoming was the 44th state in the USA; it became a state on July 10, 1890 .
A3: State Abbreviation | B3: WY
A4: State Capital | B4: Cheyenne
A5: Largest City | B5: Cheyenne
A6: Area | B6: 97,818 square miles [Wyoming is the 10th biggest state in the USA]
A7: Population | B7: 582,658 (as of 2013) [Wyoming is the least populous state in the USA]
A8: Name for Residents | B8: Wyomingites
A9: Major Industries | B9: farming (cattle, sheep), mining (coal, uranium), oil, natural gas, tourism
A10: Major Rivers | B10: Bighorn River, Green River, Belle Fourche River, Powder River, North Platte River
A11: Major Lakes | B11: Yellowstone Lake, Glendo Reservoir, Bighorn Lake, Boysen Reservoir, Flaming Gorge Reservoir, Seminoe Reservoir, Alcova Reservoir, Keyhole Reservoir
A12: Highest Point | B12: Gannett Peak | C12: 13,804 feet (4,207 m) above sea level
A13: Lowest Point | B13: Belle Fourche River | C13: 3,099 feet (944 m) above sea level
A14: Number of Counties | B14: 23 (plus Yellowstone National Park)
A15: Bordering States | B15: Colorado, Montana, Nebraska, South Dakota, Utah
A16: , Idaho
A17: Origin of the Name | B17: The name Wyoming may be derived from the Delaware Indian word "Maughwauwama," which means "large plains."
A18: State Nickname | B18: Equality State
A19: State Motto | B19: "Equal Rights"
A20: State Song | B20: "Wyoming"

Sheet Puerto Rico (hidden)
A1: State | B1: Puerto Rico (Source: wikipedia)
A2: State Abbreviation
A3: State Capital | B3: San Juan
A4: Largest City | B4: San Juan
A5: Area | B5: 3,515 square miles
A6: Population
A7: Name for Residents
A8: Major Industries | B8: Agriculture
A9: Major Rivers | B9: Rio de la Plata
A10: Major Lakes | B10: Puerto Rico has 17 lakes, all man-made, and more than 50 rivers, most originating in the Cordillera Central
A11: Highest Point | B11: The highest elevation in Puerto Rico, Cerro de Punta 1,339 meters (4,393 ft)
A12: Number of Counties | B12: 78 municipalities at the secondary level which function as counties
A13: Bordering States
A14: Bordering Bodies of Water
A15: Origin of the Name
A16: State Nickname
A17: State Motto | B17: Joannes Est Nomen Eius
A18: State Song | B18: La Borinqueña
